{"text_format":"1","workbook":"xlsx","n_sheets":2,"sheets":["Surfacing","Lookups"],"not_rendered":{"charts":0,"images":0,"macros":0,"external_links":0,"defined_names":36,"comments":1,"pivot_tables":0},"unopened":[],"bounds":{"document_bytes":16777216,"sheet_cells":100000,"rows_first":2000,"rows_last":500,"rows_between":2000,"halvings":0,"cell_chars":16384,"cell_head_chars":4096},"cells_cut":0,"cells_raw":0,"read":"whole","date_system":"1900"}

{"sheet":"Surfacing","index":0,"n_rows":100,"n_cols":74,"rows_kept":100,"cut":false,"hidden":false,"merged":[]}
["15f221f1-c15e-4d8e-a679-81fade5c4405_road_id","ba4adf1f-d64b-4d2c-a600-a59acebf3405_road_id","sh-rs-d","15f221f1-c15e-4d8e-a679-81fade5c4404_start_m","ba4adf1f-d64b-4d2c-a600-a59acebf3404_end_m","60bd99b3-4d01-4b77-aa7d-508e40916011_not_ramm_field_contract_name","7a865e33-3a97-4ee1-be55-9348eb999028_surf_material_desc","7a865e33-3a97-4ee1-be55-9348eb999028_surf_material","1b62333d-553d-4ae2-9353-8b165f7f14cb_surf_function","f6174586-3cad-47e2-a59c-5df3947e8873_surf_spec_desc","f6174586-3cad-47e2-a59c-5df3947e8873_surf_spec","adfd6a86-277c-4147-88e4-3fd2c56b0c42_surf_reason_desc","adfd6a86-277c-4147-88e4-3fd2c56b0c42_surf_reason","fe4891a1-024d-4c99-b969-852ceb2a522f_notes","4e9906b7-645a-4f27-83e7-26ecae526806_Not_RAMMfield_membrane_layer_constructed","46e400fb-dceb-4c93-89ca-17e108ac2f26_chip_size","fdb27bea-4da7-47e1-83a9-2156e4e54aab_chip_2nd_size","26616390-3e60-4d9d-a21c-8fae493dc0ec_RAMM_Note_field_3rdchip_size","20ad9983-58be-4979-b05d-815c6fa1410d_use_calc_depth","46ba5dff-0b90-4d19-a240-dcf690941c14_surf_depth","03017284-fc3c-4646-8279-c41bffab2295_average_dim","69984be4-88df-44ab-8f7c-1b203db9b48a_rate","edf4b0b7-3722-4a2c-857d-99f0de26d5ff_pave_source","15385980-5734-463d-97de-6684266b7fbf_polished_stone","adba53d1-a2a7-49e6-90ef-de3406acb944_full_width_flag","6841a5cb-c8db-47b4-96a1-c328edda1d0b_surf_width","f7d57705-d7de-4fa0-88d2-f763a96b8450_surf_offset","8f1dc22d-c7bc-4ef1-9e40-8a0589b7375a_sealed_area","d9225201-ce3e-4e8e-b709-de6c52cc9441_sealed_area_ok","8190d800-898d-4f96-a9dc-6b18d61c2dae_lane_coverage","57c46e3c-8060-4c85-9eac-1028fe29b448_surface_date","99c1974e-aaa1-43d9-9546-6b432f427efc_design_life","315a4ff9-d511-40f0-9954-c85077bdc588_default_life","a0ca7b6f-ef48-4dd9-abe7-570329160d18_asset_owner_desc","a0ca7b6f-ef48-4dd9-abe7-570329160d18_asset_owner","205248e8-29e1-40bd-9e11-4687059c9e3e_surf_binder_desc","205248e8-29e1-40bd-9e11-4687059c9e3e_surf_binder","1464da99-c2e1-4a27-a40e-afcc78a82454_adhesion","699e0844-401d-4c01-946f-5543f6ef86f9_surf_adhesion_desc","699e0844-401d-4c01-946f-5543f6ef86f9_surf_adhesion","b9fd64e4-a4a7-4b46-a08d-01d54deb5ec7_additive","4ee09f0d-d311-49bf-bbcd-05e62ed8ac8d_surf_additive_desc","4ee09f0d-d311-49bf-bbcd-05e62ed8ac8d_surf_additive","6218e3fa-c973-4272-8f6f-358f8c804f22_polymer_mod_pcnt","93dccd67-d543-4427-bba2-5b88db61c886_poylmer_type_desc","93dccd67-d543-4427-bba2-5b88db61c886_poylmer_type","bd36ca54-1bc7-47f1-a8ed-f96925682ed4_elastic_recovery","60368164-c050-4252-a993-a83c287f73df_softening_point","135c591f-87b1-4e37-9b7e-515ce7d606be_cutter","25b00167-2a72-4984-95bf-e5bf142f4d63_cutter_type","6a2647ee-2359-4e7d-bae4-d36b277ff63a_flux","78cb2262-4654-4b72-8e87-b4d080185961_collect_name_desc","78cb2262-4654-4b72-8e87-b4d080185961_collect_name","11885746-fab7-490f-a6c7-12c6665ea63a_contract_number","1d93ba5f-6b6a-4d0b-91c0-5897b8ce2d55_activity_desc","1d93ba5f-6b6a-4d0b-91c0-5897b8ce2d55_activity","6a46eaa0-d66d-405d-ae50-18d21a63459d_work_origin_id","13d137f5-68e3-4653-af99-3109b35ed6d6_work_category","bc278381-8d88-4024-b92a-9766a568f27d_RAMM_Note_field_site_name","fac42ec6-71e1-4218-93b7-957fb0782eab_recycling","c4e0c6a0-bf55-48de-8837-70f0500f62a6_pct_recycled","ecee3f8b-2bb6-4794-989f-faae3863dbcc_surf_recycled_cpnt_desc","ecee3f8b-2bb6-4794-989f-faae3863dbcc_surf_recycled_cpnt","7cea950c-165c-4122-a878-8641c61e5a22_Not_RAMMfield_existing_surface_treatment_full_milling","a32c6f86-13df-44b8-9a1c-ac6bfdb4997b_Not_RAMMfield_existing_surface_treatment_start","67bb5502-7997-44df-a506-1722e3cf337d_Not_RAMMfield_existing_surface_treatment_end","d85ce33a-3f24-41ee-966e-c9f72a88546e_Not_RAMMfield_existing_surface_treatment_width","7c2e41d1-c3eb-406f-a151-90c3420a48d3_Not_RAMMfield_existing_surface_treatment_offset","8337f878-1157-4081-abad-4a61a5bf365f_Not_RAMMfield_existing_surface_treatment_surf_depth","e64155ba-140a-4c7b-ab53-f208b188d791_Not_RAMMfield_existing_surface_treatment_area","ae670b21-27b0-47bb-b640-f3d95bc36625_removed_date","149af82d-1974-4869-b6a0-8012a4c6ab36_condition_desc","149af82d-1974-4869-b6a0-8012a4c6ab36_condition","99743389-64d0-45fc-8900-c3d41954b334_condition_date"]
["road_id","road_id","sh-rs-d","start_m","end_m","not_ramm_field_contract_name","surf_material_desc","surf_material","surf_function","surf_spec_desc","surf_spec","surf_reason_desc","surf_reason","notes","Not_RAMMfield_membrane_layer_constructed","chip_size","chip_2nd_size","RAMM_Note_field_3rdchip_size","use_calc_depth","surf_depth","average_dim","rate","pave_source","polished_stone","full_width_flag","surf_width","surf_offset","sealed_area","sealed_area_ok","lane_coverage","surface_date","design_life","default_life","asset_owner_desc","asset_owner","surf_binder_desc","surf_binder","adhesion","surf_adhesion_desc","surf_adhesion","additive","surf_additive_desc","surf_additive","polymer_mod_pcnt","poylmer_type_desc","poylmer_type","elastic_recovery","softening_point","cutter","cutter_type","flux","collect_name_desc","collect_name","contract_number","activity_desc","activity","work_origin_id","work_category","RAMM_Note_field_site_name","recycling","pct_recycled","surf_recycled_cpnt_desc","surf_recycled_cpnt","Not_RAMMfield_existing_surface_treatment_full_milling","Not_RAMMfield_existing_surface_treatment_start","Not_RAMMfield_existing_surface_treatment_end","Not_RAMMfield_existing_surface_treatment_width","Not_RAMMfield_existing_surface_treatment_offset","Not_RAMMfield_existing_surface_treatment_surf_depth","Not_RAMMfield_existing_surface_treatment_area","removed_date","condition_desc","condition","condition_date"]
["Start Road Id","End Road Id","SH-RS-D  (e.g. 016-0000-B) letter must be uppercase and must include leading 0","RP Start (m)","RP End (m)","Contract Name (must be the same for each record/row)","Surface Material Description","Surface Material","Surface Function","Surface Specification Description","Surface Specification","Surface Reason Description","Surface Reason","Comments","Membrane layer constructed (must populate with Y or N as uppercase)","1st Chip Size","2nd Chip Size","3rd Chip Size"," Use Calculated depth (must populate with Y or N as uppercase)","Surface Depth","Average Dimension (ALD)"," Rate","Pavement Source","Polished Stone Value (PSV)","Full Width (must populate with Y or N as uppercase)","Surface Width","Surface Offset","Seal Area (m2)","Sealed Area Ok (must populate with Y or N as uppercase)","Lane Coverage","Surface Date (dd/mm/yyyy) must include leading 0","Design Life","Default Life","Asset Owner Description","Asset Owner","Surface Binder Description","Surface Binder","Adhesion Qty","Adhesion Agent Description","Adhesion Agent","Additive","Additive Type Description","Additive Type","Polymer Mod %","Polymer Type Description","Polymer Type","Elastic Recovery","Softening Point","Cutter","Cutter Type","Flux","Organisation Description","Organisation","Contract Number","Activity Description","Activity","Work Origin","Work Category","Site Name","Recycling  (must populate with Y or N as uppercase)","Percentage Recycled","Recycled Component Description","Recycled Component","Existing Surface Treatment - Full Milling  (must populate with Y or N as uppercase)","Existing Surface Treatment - Start","Existing Surface Treatment - End","Existing Surface Treatment - Width","Existing Surface Treatment - Offset","Existing Surface Treatment - Depth","Existing Surface Treatment - Area","Existing Surface Treatment - Remove Date (dd/mm/yyyy) must include leading 0","Surface Condition Description","Surface Condition","Condition Date (dd/mm/yyyy) must include leading 0"]
[{"$f":"_xlfn.FILTERXML(_xlfn.WEBSERVICE(\"https://nds-beta.mobileroad.org/xy_sh?rp=\"&C4&\"/\"&D4&\"&xml=true\"),\"/lrms/id_road\")","v":"null"},{"$f":"_xlfn.FILTERXML(_xlfn.WEBSERVICE(\"https://nds-beta.mobileroad.org/xy_sh?rp=\"&C4&\"/\"&E4&\"&xml=true\"),\"/lrms/id_road\")","v":"null"},null,null,null,null,null,{"$f":"IF(G4=\"\",\"\",VLOOKUP(G4,surface_material[],2,FALSE))","v":""},null,null,{"$f":"IF(J4=\"\",\"\",VLOOKUP(J4,surface_specification[],2,FALSE))","v":""},null,{"$f":"IF(L4=\"\",\"\",VLOOKUP(L4,surface_reason[],2,FALSE))","v":""},null,null,null,null,null,null,null,null,null,null,null,null,null,null,null,null,null,null,null,null,null,{"$f":"IF(AH4=\"\",\"\",VLOOKUP(AH4,asset_owner[],2,FALSE))","v":""},null,{"$f":"IF(AJ4=\"\",\"\",VLOOKUP(AJ4,surface_binder[],2,FALSE))","v":""},null,null,{"$f":"IF(AM4=\"\",\"\",VLOOKUP(AM4,adhesion_agent[],2,FALSE))","v":""},null,null,{"$f":"IF(AP4=\"\",\"\",VLOOKUP(AP4,additive_type[],2,FALSE))","v":""},null,null,{"$f":"IF(AS4=\"\",\"\",VLOOKUP(AS4,polymer_type[],2,FALSE))","v":""},null,null,null,null,null,null,{"$f":"IF(AZ4=\"\",\"\",VLOOKUP(AZ4,organisation[],2,FALSE))","v":""},null,null,{"$f":"IF(BC4=\"\",\"\",VLOOKUP(BC4,activity[],2,FALSE))","v":""},null,null,null,null,null,null,{"$f":"IF(BJ4=\"\",\"\",VLOOKUP(BJ4,recycle_component[],2,FALSE))","v":""},null,null,null,null,null,null,null,null,null,{"$f":"IF(BT4=\"\",\"\",VLOOKUP(BT4,condition[],2,FALSE))","v":""}]
[{"$f":"_xlfn.FILTERXML(_xlfn.WEBSERVICE(\"https://nds-beta.mobileroad.org/xy_sh?rp=\"&C5&\"/\"&D5&\"&xml=true\"),\"/lrms/id_road\")","v":"null"},{"$f":"_xlfn.FILTERXML(_xlfn.WEBSERVICE(\"https://nds-beta.mobileroad.org/xy_sh?rp=\"&C5&\"/\"&E5&\"&xml=true\"),\"/lrms/id_road\")","v":"null"},null,null,null,null,null,{"$f":"IF(G5=\"\",\"\",VLOOKUP(G5,surface_material[],2,FALSE))","v":""},null,null,{"$f":"IF(J5=\"\",\"\",VLOOKUP(J5,surface_specification[],2,FALSE))","v":""},null,{"$f":"IF(L5=\"\",\"\",VLOOKUP(L5,surface_reason[],2,FALSE))","v":""},null,null,null,null,null,null,null,null,null,null,null,null,null,null,null,null,null,null,null,null,null,{"$f":"IF(AH5=\"\",\"\",VLOOKUP(AH5,asset_owner[],2,FALSE))","v":""},null,{"$f":"IF(AJ5=\"\",\"\",VLOOKUP(AJ5,surface_binder[],2,FALSE))","v":""},null,null,{"$f":"IF(AM5=\"\",\"\",VLOOKUP(AM5,adhesion_agent[],2,FALSE))","v":""},null,null,{"$f":"IF(AP5=\"\",\"\",VLOOKUP(AP5,additive_type[],2,FALSE))","v":""},null,null,{"$f":"IF(AS5=\"\",\"\",VLOOKUP(AS5,polymer_type[],2,FALSE))","v":""},null,null,null,null,null,null,{"$f":"IF(AZ5=\"\",\"\",VLOOKUP(AZ5,organisation[],2,FALSE))","v":""},null,null,{"$f":"IF(BC5=\"\",\"\",VLOOKUP(BC5,activity[],2,FALSE))","v":""},null,null,null,null,null,null,{"$f":"IF(BJ5=\"\",\"\",VLOOKUP(BJ5,recycle_component[],2,FALSE))","v":""},null,null,null,null,null,null,null,null,null,{"$f":"IF(BT5=\"\",\"\",VLOOKUP(BT5,condition[],2,FALSE))","v":""}]
["null","null",null,null,null,null,null,{"$f":"IF(G6=\"\",\"\",VLOOKUP(G6,surface_material[],2,FALSE))","v":""},null,null,{"$f":"IF(J6=\"\",\"\",VLOOKUP(J6,surface_specification[],2,FALSE))","v":""},null,{"$f":"IF(L6=\"\",\"\",VLOOKUP(L6,surface_reason[],2,FALSE))","v":""},null,null,null,null,null,null,null,null,null,null,null,null,null,null,null,null,null,null,null,null,null,{"$f":"IF(AH6=\"\",\"\",VLOOKUP(AH6,asset_owner[],2,FALSE))","v":""},null,{"$f":"IF(AJ6=\"\",\"\",VLOOKUP(AJ6,surface_binder[],2,FALSE))","v":""},null,null,{"$f":"IF(AM6=\"\",\"\",VLOOKUP(AM6,adhesion_agent[],2,FALSE))","v":""},null,null,{"$f":"IF(AP6=\"\",\"\",VLOOKUP(AP6,additive_type[],2,FALSE))","v":""},null,null,{"$f":"IF(AS6=\"\",\"\",VLOOKUP(AS6,polymer_type[],2,FALSE))","v":""},null,null,null,null,null,null,{"$f":"IF(AZ6=\"\",\"\",VLOOKUP(AZ6,organisation[],2,FALSE))","v":""},null,null,{"$f":"IF(BC6=\"\",\"\",VLOOKUP(BC6,activity[],2,FALSE))","v":""},null,null,null,null,null,null,{"$f":"IF(BJ6=\"\",\"\",VLOOKUP(BJ6,recycle_component[],2,FALSE))","v":""},null,null,null,null,null,null,null,null,null,{"$f":"IF(BT6=\"\",\"\",VLOOKUP(BT6,condition[],2,FALSE))","v":""}]
["null","null",null,null,null,null,null,{"$f":"IF(G7=\"\",\"\",VLOOKUP(G7,surface_material[],2,FALSE))","v":""},null,null,{"$f":"IF(J7=\"\",\"\",VLOOKUP(J7,surface_specification[],2,FALSE))","v":""},null,{"$f":"IF(L7=\"\",\"\",VLOOKUP(L7,surface_reason[],2,FALSE))","v":""},null,null,null,null,null,null,null,null,null,null,null,null,null,null,null,null,null,null,null,null,null,{"$f":"IF(AH7=\"\",\"\",VLOOKUP(AH7,asset_owner[],2,FALSE))","v":""},null,{"$f":"IF(AJ7=\"\",\"\",VLOOKUP(AJ7,surface_binder[],2,FALSE))","v":""},null,null,{"$f":"IF(AM7=\"\",\"\",VLOOKUP(AM7,adhesion_agent[],2,FALSE))","v":""},null,null,{"$f":"IF(AP7=\"\",\"\",VLOOKUP(AP7,additive_type[],2,FALSE))","v":""},null,null,{"$f":"IF(AS7=\"\",\"\",VLOOKUP(AS7,polymer_type[],2,FALSE))","v":""},null,null,null,null,null,null,{"$f":"IF(AZ7=\"\",\"\",VLOOKUP(AZ7,organisation[],2,FALSE))","v":""},null,null,{"$f":"IF(BC7=\"\",\"\",VLOOKUP(BC7,activity[],2,FALSE))","v":""},null,null,null,null,null,null,{"$f":"IF(BJ7=\"\",\"\",VLOOKUP(BJ7,recycle_component[],2,FALSE))","v":""},null,null,null,null,null,null,null,null,null,{"$f":"IF(BT7=\"\",\"\",VLOOKUP(BT7,condition[],2,FALSE))","v":""}]
["null","null",null,null,null,null,null,{"$f":"IF(G8=\"\",\"\",VLOOKUP(G8,surface_material[],2,FALSE))","v":""},null,null,{"$f":"IF(J8=\"\",\"\",VLOOKUP(J8,surface_specification[],2,FALSE))","v":""},null,{"$f":"IF(L8=\"\",\"\",VLOOKUP(L8,surface_reason[],2,FALSE))","v":""},null,null,null,null,null,null,null,null,null,null,null,null,null,null,null,null,null,null,null,null,null,{"$f":"IF(AH8=\"\",\"\",VLOOKUP(AH8,asset_owner[],2,FALSE))","v":""},null,{"$f":"IF(AJ8=\"\",\"\",VLOOKUP(AJ8,surface_binder[],2,FALSE))","v":""},null,null,{"$f":"IF(AM8=\"\",\"\",VLOOKUP(AM8,adhesion_agent[],2,FALSE))","v":""},null,null,{"$f":"IF(AP8=\"\",\"\",VLOOKUP(AP8,additive_type[],2,FALSE))","v":""},null,null,{"$f":"IF(AS8=\"\",\"\",VLOOKUP(AS8,polymer_type[],2,FALSE))","v":""},null,null,null,null,null,null,{"$f":"IF(AZ8=\"\",\"\",VLOOKUP(AZ8,organisation[],2,FALSE))","v":""},null,null,{"$f":"IF(BC8=\"\",\"\",VLOOKUP(BC8,activity[],2,FALSE))","v":""},null,null,null,null,null,null,{"$f":"IF(BJ8=\"\",\"\",VLOOKUP(BJ8,recycle_component[],2,FALSE))","v":""},null,null,null,null,null,null,null,null,null,{"$f":"IF(BT8=\"\",\"\",VLOOKUP(BT8,condition[],2,FALSE))","v":""}]
["null","null",null,null,null,null,null,{"$f":"IF(G9=\"\",\"\",VLOOKUP(G9,surface_material[],2,FALSE))","v":""},null,null,{"$f":"IF(J9=\"\",\"\",VLOOKUP(J9,surface_specification[],2,FALSE))","v":""},null,{"$f":"IF(L9=\"\",\"\",VLOOKUP(L9,surface_reason[],2,FALSE))","v":""},null,null,null,null,null,null,null,null,null,null,null,null,null,null,null,null,null,null,null,null,null,{"$f":"IF(AH9=\"\",\"\",VLOOKUP(AH9,asset_owner[],2,FALSE))","v":""},null,{"$f":"IF(AJ9=\"\",\"\",VLOOKUP(AJ9,surface_binder[],2,FALSE))","v":""},null,null,{"$f":"IF(AM9=\"\",\"\",VLOOKUP(AM9,adhesion_agent[],2,FALSE))","v":""},null,null,{"$f":"IF(AP9=\"\",\"\",VLOOKUP(AP9,additive_type[],2,FALSE))","v":""},null,null,{"$f":"IF(AS9=\"\",\"\",VLOOKUP(AS9,polymer_type[],2,FALSE))","v":""},null,null,null,null,null,null,{"$f":"IF(AZ9=\"\",\"\",VLOOKUP(AZ9,organisation[],2,FALSE))","v":""},null,null,{"$f":"IF(BC9=\"\",\"\",VLOOKUP(BC9,activity[],2,FALSE))","v":""},null,null,null,null,null,null,{"$f":"IF(BJ9=\"\",\"\",VLOOKUP(BJ9,recycle_component[],2,FALSE))","v":""},null,null,null,null,null,null,null,null,null,{"$f":"IF(BT9=\"\",\"\",VLOOKUP(BT9,condition[],2,FALSE))","v":""}]
["null","null",null,null,null,null,null,{"$f":"IF(G10=\"\",\"\",VLOOKUP(G10,surface_material[],2,FALSE))","v":""},null,null,{"$f":"IF(J10=\"\",\"\",VLOOKUP(J10,surface_specification[],2,FALSE))","v":""},null,{"$f":"IF(L10=\"\",\"\",VLOOKUP(L10,surface_reason[],2,FALSE))","v":""},null,null,null,null,null,null,null,null,null,null,null,null,null,null,null,null,null,null,null,null,null,{"$f":"IF(AH10=\"\",\"\",VLOOKUP(AH10,asset_owner[],2,FALSE))","v":""},null,{"$f":"IF(AJ10=\"\",\"\",VLOOKUP(AJ10,surface_binder[],2,FALSE))","v":""},null,null,{"$f":"IF(AM10=\"\",\"\",VLOOKUP(AM10,adhesion_agent[],2,FALSE))","v":""},null,null,{"$f":"IF(AP10=\"\",\"\",VLOOKUP(AP10,additive_type[],2,FALSE))","v":""},null,null,{"$f":"IF(AS10=\"\",\"\",VLOOKUP(AS10,polymer_type[],2,FALSE))","v":""},null,null,null,null,null,null,{"$f":"IF(AZ10=\"\",\"\",VLOOKUP(AZ10,organisation[],2,FALSE))","v":""},null,null,{"$f":"IF(BC10=\"\",\"\",VLOOKUP(BC10,activity[],2,FALSE))","v":""},null,null,null,null,null,null,{"$f":"IF(BJ10=\"\",\"\",VLOOKUP(BJ10,recycle_component[],2,FALSE))","v":""},null,null,null,null,null,null,null,null,null,{"$f":"IF(BT10=\"\",\"\",VLOOKUP(BT10,condition[],2,FALSE))","v":""}]
["null","null",null,null,null,null,null,{"$f":"IF(G11=\"\",\"\",VLOOKUP(G11,surface_material[],2,FALSE))","v":""},null,null,{"$f":"IF(J11=\"\",\"\",VLOOKUP(J11,surface_specification[],2,FALSE))","v":""},null,{"$f":"IF(L11=\"\",\"\",VLOOKUP(L11,surface_reason[],2,FALSE))","v":""},null,null,null,null,null,null,null,null,null,null,null,null,null,null,null,null,null,null,null,null,null,{"$f":"IF(AH11=\"\",\"\",VLOOKUP(AH11,asset_owner[],2,FALSE))","v":""},null,{"$f":"IF(AJ11=\"\",\"\",VLOOKUP(AJ11,surface_binder[],2,FALSE))","v":""},null,null,{"$f":"IF(AM11=\"\",\"\",VLOOKUP(AM11,adhesion_agent[],2,FALSE))","v":""},null,null,{"$f":"IF(AP11=\"\",\"\",VLOOKUP(AP11,additive_type[],2,FALSE))","v":""},null,null,{"$f":"IF(AS11=\"\",\"\",VLOOKUP(AS11,polymer_type[],2,FALSE))","v":""},null,null,null,null,null,null,{"$f":"IF(AZ11=\"\",\"\",VLOOKUP(AZ11,organisation[],2,FALSE))","v":""},null,null,{"$f":"IF(BC11=\"\",\"\",VLOOKUP(BC11,activity[],2,FALSE))","v":""},null,null,null,null,null,null,{"$f":"IF(BJ11=\"\",\"\",VLOOKUP(BJ11,recycle_component[],2,FALSE))","v":""},null,null,null,null,null,null,null,null,null,{"$f":"IF(BT11=\"\",\"\",VLOOKUP(BT11,condition[],2,FALSE))","v":""}]
["null","null",null,null,null,null,null,{"$f":"IF(G12=\"\",\"\",VLOOKUP(G12,surface_material[],2,FALSE))","v":""},null,null,{"$f":"IF(J12=\"\",\"\",VLOOKUP(J12,surface_specification[],2,FALSE))","v":""},null,{"$f":"IF(L12=\"\",\"\",VLOOKUP(L12,surface_reason[],2,FALSE))","v":""},null,null,null,null,null,null,null,null,null,null,null,null,null,null,null,null,null,null,null,null,null,{"$f":"IF(AH12=\"\",\"\",VLOOKUP(AH12,asset_owner[],2,FALSE))","v":""},null,{"$f":"IF(AJ12=\"\",\"\",VLOOKUP(AJ12,surface_binder[],2,FALSE))","v":""},null,null,{"$f":"IF(AM12=\"\",\"\",VLOOKUP(AM12,adhesion_agent[],2,FALSE))","v":""},null,null,{"$f":"IF(AP12=\"\",\"\",VLOOKUP(AP12,additive_type[],2,FALSE))","v":""},null,null,{"$f":"IF(AS12=\"\",\"\",VLOOKUP(AS12,polymer_type[],2,FALSE))","v":""},null,null,null,null,null,null,{"$f":"IF(AZ12=\"\",\"\",VLOOKUP(AZ12,organisation[],2,FALSE))","v":""},null,null,{"$f":"IF(BC12=\"\",\"\",VLOOKUP(BC12,activity[],2,FALSE))","v":""},null,null,null,null,null,null,{"$f":"IF(BJ12=\"\",\"\",VLOOKUP(BJ12,recycle_component[],2,FALSE))","v":""},null,null,null,null,null,null,null,null,null,{"$f":"IF(BT12=\"\",\"\",VLOOKUP(BT12,condition[],2,FALSE))","v":""}]
["null","null",null,null,null,null,null,{"$f":"IF(G13=\"\",\"\",VLOOKUP(G13,surface_material[],2,FALSE))","v":""},null,null,{"$f":"IF(J13=\"\",\"\",VLOOKUP(J13,surface_specification[],2,FALSE))","v":""},null,{"$f":"IF(L13=\"\",\"\",VLOOKUP(L13,surface_reason[],2,FALSE))","v":""},null,null,null,null,null,null,null,null,null,null,null,null,null,null,null,null,null,null,null,null,null,{"$f":"IF(AH13=\"\",\"\",VLOOKUP(AH13,asset_owner[],2,FALSE))","v":""},null,{"$f":"IF(AJ13=\"\",\"\",VLOOKUP(AJ13,surface_binder[],2,FALSE))","v":""},null,null,{"$f":"IF(AM13=\"\",\"\",VLOOKUP(AM13,adhesion_agent[],2,FALSE))","v":""},null,null,{"$f":"IF(AP13=\"\",\"\",VLOOKUP(AP13,additive_type[],2,FALSE))","v":""},null,null,{"$f":"IF(AS13=\"\",\"\",VLOOKUP(AS13,polymer_type[],2,FALSE))","v":""},null,null,null,null,null,null,{"$f":"IF(AZ13=\"\",\"\",VLOOKUP(AZ13,organisation[],2,FALSE))","v":""},null,null,{"$f":"IF(BC13=\"\",\"\",VLOOKUP(BC13,activity[],2,FALSE))","v":""},null,null,null,null,null,null,{"$f":"IF(BJ13=\"\",\"\",VLOOKUP(BJ13,recycle_component[],2,FALSE))","v":""},null,null,null,null,null,null,null,null,null,{"$f":"IF(BT13=\"\",\"\",VLOOKUP(BT13,condition[],2,FALSE))","v":""}]
["null","null",null,null,null,null,null,{"$f":"IF(G14=\"\",\"\",VLOOKUP(G14,surface_material[],2,FALSE))","v":""},null,null,{"$f":"IF(J14=\"\",\"\",VLOOKUP(J14,surface_specification[],2,FALSE))","v":""},null,{"$f":"IF(L14=\"\",\"\",VLOOKUP(L14,surface_reason[],2,FALSE))","v":""},null,null,null,null,null,null,null,null,null,null,null,null,null,null,null,null,null,null,null,null,null,{"$f":"IF(AH14=\"\",\"\",VLOOKUP(AH14,asset_owner[],2,FALSE))","v":""},null,{"$f":"IF(AJ14=\"\",\"\",VLOOKUP(AJ14,surface_binder[],2,FALSE))","v":""},null,null,{"$f":"IF(AM14=\"\",\"\",VLOOKUP(AM14,adhesion_agent[],2,FALSE))","v":""},null,null,{"$f":"IF(AP14=\"\",\"\",VLOOKUP(AP14,additive_type[],2,FALSE))","v":""},null,null,{"$f":"IF(AS14=\"\",\"\",VLOOKUP(AS14,polymer_type[],2,FALSE))","v":""},null,null,null,null,null,null,{"$f":"IF(AZ14=\"\",\"\",VLOOKUP(AZ14,organisation[],2,FALSE))","v":""},null,null,{"$f":"IF(BC14=\"\",\"\",VLOOKUP(BC14,activity[],2,FALSE))","v":""},null,null,null,null,null,null,{"$f":"IF(BJ14=\"\",\"\",VLOOKUP(BJ14,recycle_component[],2,FALSE))","v":""},null,null,null,null,null,null,null,null,null,{"$f":"IF(BT14=\"\",\"\",VLOOKUP(BT14,condition[],2,FALSE))","v":""}]
["null","null",null,null,null,null,null,{"$f":"IF(G15=\"\",\"\",VLOOKUP(G15,surface_material[],2,FALSE))","v":""},null,null,{"$f":"IF(J15=\"\",\"\",VLOOKUP(J15,surface_specification[],2,FALSE))","v":""},null,{"$f":"IF(L15=\"\",\"\",VLOOKUP(L15,surface_reason[],2,FALSE))","v":""},null,null,null,null,null,null,null,null,null,null,null,null,null,null,null,null,null,null,null,null,null,{"$f":"IF(AH15=\"\",\"\",VLOOKUP(AH15,asset_owner[],2,FALSE))","v":""},null,{"$f":"IF(AJ15=\"\",\"\",VLOOKUP(AJ15,surface_binder[],2,FALSE))","v":""},null,null,{"$f":"IF(AM15=\"\",\"\",VLOOKUP(AM15,adhesion_agent[],2,FALSE))","v":""},null,null,{"$f":"IF(AP15=\"\",\"\",VLOOKUP(AP15,additive_type[],2,FALSE))","v":""},null,null,{"$f":"IF(AS15=\"\",\"\",VLOOKUP(AS15,polymer_type[],2,FALSE))","v":""},null,null,null,null,null,null,{"$f":"IF(AZ15=\"\",\"\",VLOOKUP(AZ15,organisation[],2,FALSE))","v":""},null,null,{"$f":"IF(BC15=\"\",\"\",VLOOKUP(BC15,activity[],2,FALSE))","v":""},null,null,null,null,null,null,{"$f":"IF(BJ15=\"\",\"\",VLOOKUP(BJ15,recycle_component[],2,FALSE))","v":""},null,null,null,null,null,null,null,null,null,{"$f":"IF(BT15=\"\",\"\",VLOOKUP(BT15,condition[],2,FALSE))","v":""}]
["null","null",null,null,null,null,null,{"$f":"IF(G16=\"\",\"\",VLOOKUP(G16,surface_material[],2,FALSE))","v":""},null,null,{"$f":"IF(J16=\"\",\"\",VLOOKUP(J16,surface_specification[],2,FALSE))","v":""},null,{"$f":"IF(L16=\"\",\"\",VLOOKUP(L16,surface_reason[],2,FALSE))","v":""},null,null,null,null,null,null,null,null,null,null,null,null,null,null,null,null,null,null,null,null,null,{"$f":"IF(AH16=\"\",\"\",VLOOKUP(AH16,asset_owner[],2,FALSE))","v":""},null,{"$f":"IF(AJ16=\"\",\"\",VLOOKUP(AJ16,surface_binder[],2,FALSE))","v":""},null,null,{"$f":"IF(AM16=\"\",\"\",VLOOKUP(AM16,adhesion_agent[],2,FALSE))","v":""},null,null,{"$f":"IF(AP16=\"\",\"\",VLOOKUP(AP16,additive_type[],2,FALSE))","v":""},null,null,{"$f":"IF(AS16=\"\",\"\",VLOOKUP(AS16,polymer_type[],2,FALSE))","v":""},null,null,null,null,null,null,{"$f":"IF(AZ16=\"\",\"\",VLOOKUP(AZ16,organisation[],2,FALSE))","v":""},null,null,{"$f":"IF(BC16=\"\",\"\",VLOOKUP(BC16,activity[],2,FALSE))","v":""},null,null,null,null,null,null,{"$f":"IF(BJ16=\"\",\"\",VLOOKUP(BJ16,recycle_component[],2,FALSE))","v":""},null,null,null,null,null,null,null,null,null,{"$f":"IF(BT16=\"\",\"\",VLOOKUP(BT16,condition[],2,FALSE))","v":""}]
["null","null",null,null,null,null,null,{"$f":"IF(G17=\"\",\"\",VLOOKUP(G17,surface_material[],2,FALSE))","v":""},null,null,{"$f":"IF(J17=\"\",\"\",VLOOKUP(J17,surface_specification[],2,FALSE))","v":""},null,{"$f":"IF(L17=\"\",\"\",VLOOKUP(L17,surface_reason[],2,FALSE))","v":""},null,null,null,null,null,null,null,null,null,null,null,null,null,null,null,null,null,null,null,null,null,{"$f":"IF(AH17=\"\",\"\",VLOOKUP(AH17,asset_owner[],2,FALSE))","v":""},null,{"$f":"IF(AJ17=\"\",\"\",VLOOKUP(AJ17,surface_binder[],2,FALSE))","v":""},null,null,{"$f":"IF(AM17=\"\",\"\",VLOOKUP(AM17,adhesion_agent[],2,FALSE))","v":""},null,null,{"$f":"IF(AP17=\"\",\"\",VLOOKUP(AP17,additive_type[],2,FALSE))","v":""},null,null,{"$f":"IF(AS17=\"\",\"\",VLOOKUP(AS17,polymer_type[],2,FALSE))","v":""},null,null,null,null,null,null,{"$f":"IF(AZ17=\"\",\"\",VLOOKUP(AZ17,organisation[],2,FALSE))","v":""},null,null,{"$f":"IF(BC17=\"\",\"\",VLOOKUP(BC17,activity[],2,FALSE))","v":""},null,null,null,null,null,null,{"$f":"IF(BJ17=\"\",\"\",VLOOKUP(BJ17,recycle_component[],2,FALSE))","v":""},null,null,null,null,null,null,null,null,null,{"$f":"IF(BT17=\"\",\"\",VLOOKUP(BT17,condition[],2,FALSE))","v":""}]
["null","null",null,null,null,null,null,{"$f":"IF(G18=\"\",\"\",VLOOKUP(G18,surface_material[],2,FALSE))","v":""},null,null,{"$f":"IF(J18=\"\",\"\",VLOOKUP(J18,surface_specification[],2,FALSE))","v":""},null,{"$f":"IF(L18=\"\",\"\",VLOOKUP(L18,surface_reason[],2,FALSE))","v":""},null,null,null,null,null,null,null,null,null,null,null,null,null,null,null,null,null,null,null,null,null,{"$f":"IF(AH18=\"\",\"\",VLOOKUP(AH18,asset_owner[],2,FALSE))","v":""},null,{"$f":"IF(AJ18=\"\",\"\",VLOOKUP(AJ18,surface_binder[],2,FALSE))","v":""},null,null,{"$f":"IF(AM18=\"\",\"\",VLOOKUP(AM18,adhesion_agent[],2,FALSE))","v":""},null,null,{"$f":"IF(AP18=\"\",\"\",VLOOKUP(AP18,additive_type[],2,FALSE))","v":""},null,null,{"$f":"IF(AS18=\"\",\"\",VLOOKUP(AS18,polymer_type[],2,FALSE))","v":""},null,null,null,null,null,null,{"$f":"IF(AZ18=\"\",\"\",VLOOKUP(AZ18,organisation[],2,FALSE))","v":""},null,null,{"$f":"IF(BC18=\"\",\"\",VLOOKUP(BC18,activity[],2,FALSE))","v":""},null,null,null,null,null,null,{"$f":"IF(BJ18=\"\",\"\",VLOOKUP(BJ18,recycle_component[],2,FALSE))","v":""},null,null,null,null,null,null,null,null,null,{"$f":"IF(BT18=\"\",\"\",VLOOKUP(BT18,condition[],2,FALSE))","v":""}]
["null","null",null,null,null,null,null,{"$f":"IF(G19=\"\",\"\",VLOOKUP(G19,surface_material[],2,FALSE))","v":""},null,null,{"$f":"IF(J19=\"\",\"\",VLOOKUP(J19,surface_specification[],2,FALSE))","v":""},null,{"$f":"IF(L19=\"\",\"\",VLOOKUP(L19,surface_reason[],2,FALSE))","v":""},null,null,null,null,null,null,null,null,null,null,null,null,null,null,null,null,null,null,null,null,null,{"$f":"IF(AH19=\"\",\"\",VLOOKUP(AH19,asset_owner[],2,FALSE))","v":""},null,{"$f":"IF(AJ19=\"\",\"\",VLOOKUP(AJ19,surface_binder[],2,FALSE))","v":""},null,null,{"$f":"IF(AM19=\"\",\"\",VLOOKUP(AM19,adhesion_agent[],2,FALSE))","v":""},null,null,{"$f":"IF(AP19=\"\",\"\",VLOOKUP(AP19,additive_type[],2,FALSE))","v":""},null,null,{"$f":"IF(AS19=\"\",\"\",VLOOKUP(AS19,polymer_type[],2,FALSE))","v":""},null,null,null,null,null,null,{"$f":"IF(AZ19=\"\",\"\",VLOOKUP(AZ19,organisation[],2,FALSE))","v":""},null,null,{"$f":"IF(BC19=\"\",\"\",VLOOKUP(BC19,activity[],2,FALSE))","v":""},null,null,null,null,null,null,{"$f":"IF(BJ19=\"\",\"\",VLOOKUP(BJ19,recycle_component[],2,FALSE))","v":""},null,null,null,null,null,null,null,null,null,{"$f":"IF(BT19=\"\",\"\",VLOOKUP(BT19,condition[],2,FALSE))","v":""}]
["null","null",null,null,null,null,null,{"$f":"IF(G20=\"\",\"\",VLOOKUP(G20,surface_material[],2,FALSE))","v":""},null,null,{"$f":"IF(J20=\"\",\"\",VLOOKUP(J20,surface_specification[],2,FALSE))","v":""},null,{"$f":"IF(L20=\"\",\"\",VLOOKUP(L20,surface_reason[],2,FALSE))","v":""},null,null,null,null,null,null,null,null,null,null,null,null,null,null,null,null,null,null,null,null,null,{"$f":"IF(AH20=\"\",\"\",VLOOKUP(AH20,asset_owner[],2,FALSE))","v":""},null,{"$f":"IF(AJ20=\"\",\"\",VLOOKUP(AJ20,surface_binder[],2,FALSE))","v":""},null,null,{"$f":"IF(AM20=\"\",\"\",VLOOKUP(AM20,adhesion_agent[],2,FALSE))","v":""},null,null,{"$f":"IF(AP20=\"\",\"\",VLOOKUP(AP20,additive_type[],2,FALSE))","v":""},null,null,{"$f":"IF(AS20=\"\",\"\",VLOOKUP(AS20,polymer_type[],2,FALSE))","v":""},null,null,null,null,null,null,{"$f":"IF(AZ20=\"\",\"\",VLOOKUP(AZ20,organisation[],2,FALSE))","v":""},null,null,{"$f":"IF(BC20=\"\",\"\",VLOOKUP(BC20,activity[],2,FALSE))","v":""},null,null,null,null,null,null,{"$f":"IF(BJ20=\"\",\"\",VLOOKUP(BJ20,recycle_component[],2,FALSE))","v":""},null,null,null,null,null,null,null,null,null,{"$f":"IF(BT20=\"\",\"\",VLOOKUP(BT20,condition[],2,FALSE))","v":""}]
["null","null",null,null,null,null,null,{"$f":"IF(G21=\"\",\"\",VLOOKUP(G21,surface_material[],2,FALSE))","v":""},null,null,{"$f":"IF(J21=\"\",\"\",VLOOKUP(J21,surface_specification[],2,FALSE))","v":""},null,{"$f":"IF(L21=\"\",\"\",VLOOKUP(L21,surface_reason[],2,FALSE))","v":""},null,null,null,null,null,null,null,null,null,null,null,null,null,null,null,null,null,null,null,null,null,{"$f":"IF(AH21=\"\",\"\",VLOOKUP(AH21,asset_owner[],2,FALSE))","v":""},null,{"$f":"IF(AJ21=\"\",\"\",VLOOKUP(AJ21,surface_binder[],2,FALSE))","v":""},null,null,{"$f":"IF(AM21=\"\",\"\",VLOOKUP(AM21,adhesion_agent[],2,FALSE))","v":""},null,null,{"$f":"IF(AP21=\"\",\"\",VLOOKUP(AP21,additive_type[],2,FALSE))","v":""},null,null,{"$f":"IF(AS21=\"\",\"\",VLOOKUP(AS21,polymer_type[],2,FALSE))","v":""},null,null,null,null,null,null,{"$f":"IF(AZ21=\"\",\"\",VLOOKUP(AZ21,organisation[],2,FALSE))","v":""},null,null,{"$f":"IF(BC21=\"\",\"\",VLOOKUP(BC21,activity[],2,FALSE))","v":""},null,null,null,null,null,null,{"$f":"IF(BJ21=\"\",\"\",VLOOKUP(BJ21,recycle_component[],2,FALSE))","v":""},null,null,null,null,null,null,null,null,null,{"$f":"IF(BT21=\"\",\"\",VLOOKUP(BT21,condition[],2,FALSE))","v":""}]
["null","null",null,null,null,null,null,{"$f":"IF(G22=\"\",\"\",VLOOKUP(G22,surface_material[],2,FALSE))","v":""},null,null,{"$f":"IF(J22=\"\",\"\",VLOOKUP(J22,surface_specification[],2,FALSE))","v":""},null,{"$f":"IF(L22=\"\",\"\",VLOOKUP(L22,surface_reason[],2,FALSE))","v":""},null,null,null,null,null,null,null,null,null,null,null,null,null,null,null,null,null,null,null,null,null,{"$f":"IF(AH22=\"\",\"\",VLOOKUP(AH22,asset_owner[],2,FALSE))","v":""},null,{"$f":"IF(AJ22=\"\",\"\",VLOOKUP(AJ22,surface_binder[],2,FALSE))","v":""},null,null,{"$f":"IF(AM22=\"\",\"\",VLOOKUP(AM22,adhesion_agent[],2,FALSE))","v":""},null,null,{"$f":"IF(AP22=\"\",\"\",VLOOKUP(AP22,additive_type[],2,FALSE))","v":""},null,null,{"$f":"IF(AS22=\"\",\"\",VLOOKUP(AS22,polymer_type[],2,FALSE))","v":""},null,null,null,null,null,null,{"$f":"IF(AZ22=\"\",\"\",VLOOKUP(AZ22,organisation[],2,FALSE))","v":""},null,null,{"$f":"IF(BC22=\"\",\"\",VLOOKUP(BC22,activity[],2,FALSE))","v":""},null,null,null,null,null,null,{"$f":"IF(BJ22=\"\",\"\",VLOOKUP(BJ22,recycle_component[],2,FALSE))","v":""},null,null,null,null,null,null,null,null,null,{"$f":"IF(BT22=\"\",\"\",VLOOKUP(BT22,condition[],2,FALSE))","v":""}]
["null","null",null,null,null,null,null,{"$f":"IF(G23=\"\",\"\",VLOOKUP(G23,surface_material[],2,FALSE))","v":""},null,null,{"$f":"IF(J23=\"\",\"\",VLOOKUP(J23,surface_specification[],2,FALSE))","v":""},null,{"$f":"IF(L23=\"\",\"\",VLOOKUP(L23,surface_reason[],2,FALSE))","v":""},null,null,null,null,null,null,null,null,null,null,null,null,null,null,null,null,null,null,null,null,null,{"$f":"IF(AH23=\"\",\"\",VLOOKUP(AH23,asset_owner[],2,FALSE))","v":""},null,{"$f":"IF(AJ23=\"\",\"\",VLOOKUP(AJ23,surface_binder[],2,FALSE))","v":""},null,null,{"$f":"IF(AM23=\"\",\"\",VLOOKUP(AM23,adhesion_agent[],2,FALSE))","v":""},null,null,{"$f":"IF(AP23=\"\",\"\",VLOOKUP(AP23,additive_type[],2,FALSE))","v":""},null,null,{"$f":"IF(AS23=\"\",\"\",VLOOKUP(AS23,polymer_type[],2,FALSE))","v":""},null,null,null,null,null,null,{"$f":"IF(AZ23=\"\",\"\",VLOOKUP(AZ23,organisation[],2,FALSE))","v":""},null,null,{"$f":"IF(BC23=\"\",\"\",VLOOKUP(BC23,activity[],2,FALSE))","v":""},null,null,null,null,null,null,{"$f":"IF(BJ23=\"\",\"\",VLOOKUP(BJ23,recycle_component[],2,FALSE))","v":""},null,null,null,null,null,null,null,null,null,{"$f":"IF(BT23=\"\",\"\",VLOOKUP(BT23,condition[],2,FALSE))","v":""}]
["null","null",null,null,null,null,null,{"$f":"IF(G24=\"\",\"\",VLOOKUP(G24,surface_material[],2,FALSE))","v":""},null,null,{"$f":"IF(J24=\"\",\"\",VLOOKUP(J24,surface_specification[],2,FALSE))","v":""},null,{"$f":"IF(L24=\"\",\"\",VLOOKUP(L24,surface_reason[],2,FALSE))","v":""},null,null,null,null,null,null,null,null,null,null,null,null,null,null,null,null,null,null,null,null,null,{"$f":"IF(AH24=\"\",\"\",VLOOKUP(AH24,asset_owner[],2,FALSE))","v":""},null,{"$f":"IF(AJ24=\"\",\"\",VLOOKUP(AJ24,surface_binder[],2,FALSE))","v":""},null,null,{"$f":"IF(AM24=\"\",\"\",VLOOKUP(AM24,adhesion_agent[],2,FALSE))","v":""},null,null,{"$f":"IF(AP24=\"\",\"\",VLOOKUP(AP24,additive_type[],2,FALSE))","v":""},null,null,{"$f":"IF(AS24=\"\",\"\",VLOOKUP(AS24,polymer_type[],2,FALSE))","v":""},null,null,null,null,null,null,{"$f":"IF(AZ24=\"\",\"\",VLOOKUP(AZ24,organisation[],2,FALSE))","v":""},null,null,{"$f":"IF(BC24=\"\",\"\",VLOOKUP(BC24,activity[],2,FALSE))","v":""},null,null,null,null,null,null,{"$f":"IF(BJ24=\"\",\"\",VLOOKUP(BJ24,recycle_component[],2,FALSE))","v":""},null,null,null,null,null,null,null,null,null,{"$f":"IF(BT24=\"\",\"\",VLOOKUP(BT24,condition[],2,FALSE))","v":""}]
["null","null",null,null,null,null,null,{"$f":"IF(G25=\"\",\"\",VLOOKUP(G25,surface_material[],2,FALSE))","v":""},null,null,{"$f":"IF(J25=\"\",\"\",VLOOKUP(J25,surface_specification[],2,FALSE))","v":""},null,{"$f":"IF(L25=\"\",\"\",VLOOKUP(L25,surface_reason[],2,FALSE))","v":""},null,null,null,null,null,null,null,null,null,null,null,null,null,null,null,null,null,null,null,null,null,{"$f":"IF(AH25=\"\",\"\",VLOOKUP(AH25,asset_owner[],2,FALSE))","v":""},null,{"$f":"IF(AJ25=\"\",\"\",VLOOKUP(AJ25,surface_binder[],2,FALSE))","v":""},null,null,{"$f":"IF(AM25=\"\",\"\",VLOOKUP(AM25,adhesion_agent[],2,FALSE))","v":""},null,null,{"$f":"IF(AP25=\"\",\"\",VLOOKUP(AP25,additive_type[],2,FALSE))","v":""},null,null,{"$f":"IF(AS25=\"\",\"\",VLOOKUP(AS25,polymer_type[],2,FALSE))","v":""},null,null,null,null,null,null,{"$f":"IF(AZ25=\"\",\"\",VLOOKUP(AZ25,organisation[],2,FALSE))","v":""},null,null,{"$f":"IF(BC25=\"\",\"\",VLOOKUP(BC25,activity[],2,FALSE))","v":""},null,null,null,null,null,null,{"$f":"IF(BJ25=\"\",\"\",VLOOKUP(BJ25,recycle_component[],2,FALSE))","v":""},null,null,null,null,null,null,null,null,null,{"$f":"IF(BT25=\"\",\"\",VLOOKUP(BT25,condition[],2,FALSE))","v":""}]
["null","null",null,null,null,null,null,{"$f":"IF(G26=\"\",\"\",VLOOKUP(G26,surface_material[],2,FALSE))","v":""},null,null,{"$f":"IF(J26=\"\",\"\",VLOOKUP(J26,surface_specification[],2,FALSE))","v":""},null,{"$f":"IF(L26=\"\",\"\",VLOOKUP(L26,surface_reason[],2,FALSE))","v":""},null,null,null,null,null,null,null,null,null,null,null,null,null,null,null,null,null,null,null,null,null,{"$f":"IF(AH26=\"\",\"\",VLOOKUP(AH26,asset_owner[],2,FALSE))","v":""},null,{"$f":"IF(AJ26=\"\",\"\",VLOOKUP(AJ26,surface_binder[],2,FALSE))","v":""},null,null,{"$f":"IF(AM26=\"\",\"\",VLOOKUP(AM26,adhesion_agent[],2,FALSE))","v":""},null,null,{"$f":"IF(AP26=\"\",\"\",VLOOKUP(AP26,additive_type[],2,FALSE))","v":""},null,null,{"$f":"IF(AS26=\"\",\"\",VLOOKUP(AS26,polymer_type[],2,FALSE))","v":""},null,null,null,null,null,null,{"$f":"IF(AZ26=\"\",\"\",VLOOKUP(AZ26,organisation[],2,FALSE))","v":""},null,null,{"$f":"IF(BC26=\"\",\"\",VLOOKUP(BC26,activity[],2,FALSE))","v":""},null,null,null,null,null,null,{"$f":"IF(BJ26=\"\",\"\",VLOOKUP(BJ26,recycle_component[],2,FALSE))","v":""},null,null,null,null,null,null,null,null,null,{"$f":"IF(BT26=\"\",\"\",VLOOKUP(BT26,condition[],2,FALSE))","v":""}]
["null","null",null,null,null,null,null,{"$f":"IF(G27=\"\",\"\",VLOOKUP(G27,surface_material[],2,FALSE))","v":""},null,null,{"$f":"IF(J27=\"\",\"\",VLOOKUP(J27,surface_specification[],2,FALSE))","v":""},null,{"$f":"IF(L27=\"\",\"\",VLOOKUP(L27,surface_reason[],2,FALSE))","v":""},null,null,null,null,null,null,null,null,null,null,null,null,null,null,null,null,null,null,null,null,null,{"$f":"IF(AH27=\"\",\"\",VLOOKUP(AH27,asset_owner[],2,FALSE))","v":""},null,{"$f":"IF(AJ27=\"\",\"\",VLOOKUP(AJ27,surface_binder[],2,FALSE))","v":""},null,null,{"$f":"IF(AM27=\"\",\"\",VLOOKUP(AM27,adhesion_agent[],2,FALSE))","v":""},null,null,{"$f":"IF(AP27=\"\",\"\",VLOOKUP(AP27,additive_type[],2,FALSE))","v":""},null,null,{"$f":"IF(AS27=\"\",\"\",VLOOKUP(AS27,polymer_type[],2,FALSE))","v":""},null,null,null,null,null,null,{"$f":"IF(AZ27=\"\",\"\",VLOOKUP(AZ27,organisation[],2,FALSE))","v":""},null,null,{"$f":"IF(BC27=\"\",\"\",VLOOKUP(BC27,activity[],2,FALSE))","v":""},null,null,null,null,null,null,{"$f":"IF(BJ27=\"\",\"\",VLOOKUP(BJ27,recycle_component[],2,FALSE))","v":""},null,null,null,null,null,null,null,null,null,{"$f":"IF(BT27=\"\",\"\",VLOOKUP(BT27,condition[],2,FALSE))","v":""}]
["null","null",null,null,null,null,null,{"$f":"IF(G28=\"\",\"\",VLOOKUP(G28,surface_material[],2,FALSE))","v":""},null,null,{"$f":"IF(J28=\"\",\"\",VLOOKUP(J28,surface_specification[],2,FALSE))","v":""},null,{"$f":"IF(L28=\"\",\"\",VLOOKUP(L28,surface_reason[],2,FALSE))","v":""},null,null,null,null,null,null,null,null,null,null,null,null,null,null,null,null,null,null,null,null,null,{"$f":"IF(AH28=\"\",\"\",VLOOKUP(AH28,asset_owner[],2,FALSE))","v":""},null,{"$f":"IF(AJ28=\"\",\"\",VLOOKUP(AJ28,surface_binder[],2,FALSE))","v":""},null,null,{"$f":"IF(AM28=\"\",\"\",VLOOKUP(AM28,adhesion_agent[],2,FALSE))","v":""},null,null,{"$f":"IF(AP28=\"\",\"\",VLOOKUP(AP28,additive_type[],2,FALSE))","v":""},null,null,{"$f":"IF(AS28=\"\",\"\",VLOOKUP(AS28,polymer_type[],2,FALSE))","v":""},null,null,null,null,null,null,{"$f":"IF(AZ28=\"\",\"\",VLOOKUP(AZ28,organisation[],2,FALSE))","v":""},null,null,{"$f":"IF(BC28=\"\",\"\",VLOOKUP(BC28,activity[],2,FALSE))","v":""},null,null,null,null,null,null,{"$f":"IF(BJ28=\"\",\"\",VLOOKUP(BJ28,recycle_component[],2,FALSE))","v":""},null,null,null,null,null,null,null,null,null,{"$f":"IF(BT28=\"\",\"\",VLOOKUP(BT28,condition[],2,FALSE))","v":""}]
["null","null",null,null,null,null,null,{"$f":"IF(G29=\"\",\"\",VLOOKUP(G29,surface_material[],2,FALSE))","v":""},null,null,{"$f":"IF(J29=\"\",\"\",VLOOKUP(J29,surface_specification[],2,FALSE))","v":""},null,{"$f":"IF(L29=\"\",\"\",VLOOKUP(L29,surface_reason[],2,FALSE))","v":""},null,null,null,null,null,null,null,null,null,null,null,null,null,null,null,null,null,null,null,null,null,{"$f":"IF(AH29=\"\",\"\",VLOOKUP(AH29,asset_owner[],2,FALSE))","v":""},null,{"$f":"IF(AJ29=\"\",\"\",VLOOKUP(AJ29,surface_binder[],2,FALSE))","v":""},null,null,{"$f":"IF(AM29=\"\",\"\",VLOOKUP(AM29,adhesion_agent[],2,FALSE))","v":""},null,null,{"$f":"IF(AP29=\"\",\"\",VLOOKUP(AP29,additive_type[],2,FALSE))","v":""},null,null,{"$f":"IF(AS29=\"\",\"\",VLOOKUP(AS29,polymer_type[],2,FALSE))","v":""},null,null,null,null,null,null,{"$f":"IF(AZ29=\"\",\"\",VLOOKUP(AZ29,organisation[],2,FALSE))","v":""},null,null,{"$f":"IF(BC29=\"\",\"\",VLOOKUP(BC29,activity[],2,FALSE))","v":""},null,null,null,null,null,null,{"$f":"IF(BJ29=\"\",\"\",VLOOKUP(BJ29,recycle_component[],2,FALSE))","v":""},null,null,null,null,null,null,null,null,null,{"$f":"IF(BT29=\"\",\"\",VLOOKUP(BT29,condition[],2,FALSE))","v":""}]
["null","null",null,null,null,null,null,{"$f":"IF(G30=\"\",\"\",VLOOKUP(G30,surface_material[],2,FALSE))","v":""},null,null,{"$f":"IF(J30=\"\",\"\",VLOOKUP(J30,surface_specification[],2,FALSE))","v":""},null,{"$f":"IF(L30=\"\",\"\",VLOOKUP(L30,surface_reason[],2,FALSE))","v":""},null,null,null,null,null,null,null,null,null,null,null,null,null,null,null,null,null,null,null,null,null,{"$f":"IF(AH30=\"\",\"\",VLOOKUP(AH30,asset_owner[],2,FALSE))","v":""},null,{"$f":"IF(AJ30=\"\",\"\",VLOOKUP(AJ30,surface_binder[],2,FALSE))","v":""},null,null,{"$f":"IF(AM30=\"\",\"\",VLOOKUP(AM30,adhesion_agent[],2,FALSE))","v":""},null,null,{"$f":"IF(AP30=\"\",\"\",VLOOKUP(AP30,additive_type[],2,FALSE))","v":""},null,null,{"$f":"IF(AS30=\"\",\"\",VLOOKUP(AS30,polymer_type[],2,FALSE))","v":""},null,null,null,null,null,null,{"$f":"IF(AZ30=\"\",\"\",VLOOKUP(AZ30,organisation[],2,FALSE))","v":""},null,null,{"$f":"IF(BC30=\"\",\"\",VLOOKUP(BC30,activity[],2,FALSE))","v":""},null,null,null,null,null,null,{"$f":"IF(BJ30=\"\",\"\",VLOOKUP(BJ30,recycle_component[],2,FALSE))","v":""},null,null,null,null,null,null,null,null,null,{"$f":"IF(BT30=\"\",\"\",VLOOKUP(BT30,condition[],2,FALSE))","v":""}]
["null","null",null,null,null,null,null,{"$f":"IF(G31=\"\",\"\",VLOOKUP(G31,surface_material[],2,FALSE))","v":""},null,null,{"$f":"IF(J31=\"\",\"\",VLOOKUP(J31,surface_specification[],2,FALSE))","v":""},null,{"$f":"IF(L31=\"\",\"\",VLOOKUP(L31,surface_reason[],2,FALSE))","v":""},null,null,null,null,null,null,null,null,null,null,null,null,null,null,null,null,null,null,null,null,null,{"$f":"IF(AH31=\"\",\"\",VLOOKUP(AH31,asset_owner[],2,FALSE))","v":""},null,{"$f":"IF(AJ31=\"\",\"\",VLOOKUP(AJ31,surface_binder[],2,FALSE))","v":""},null,null,{"$f":"IF(AM31=\"\",\"\",VLOOKUP(AM31,adhesion_agent[],2,FALSE))","v":""},null,null,{"$f":"IF(AP31=\"\",\"\",VLOOKUP(AP31,additive_type[],2,FALSE))","v":""},null,null,{"$f":"IF(AS31=\"\",\"\",VLOOKUP(AS31,polymer_type[],2,FALSE))","v":""},null,null,null,null,null,null,{"$f":"IF(AZ31=\"\",\"\",VLOOKUP(AZ31,organisation[],2,FALSE))","v":""},null,null,{"$f":"IF(BC31=\"\",\"\",VLOOKUP(BC31,activity[],2,FALSE))","v":""},null,null,null,null,null,null,{"$f":"IF(BJ31=\"\",\"\",VLOOKUP(BJ31,recycle_component[],2,FALSE))","v":""},null,null,null,null,null,null,null,null,null,{"$f":"IF(BT31=\"\",\"\",VLOOKUP(BT31,condition[],2,FALSE))","v":""}]
["null","null",null,null,null,null,null,{"$f":"IF(G32=\"\",\"\",VLOOKUP(G32,surface_material[],2,FALSE))","v":""},null,null,{"$f":"IF(J32=\"\",\"\",VLOOKUP(J32,surface_specification[],2,FALSE))","v":""},null,{"$f":"IF(L32=\"\",\"\",VLOOKUP(L32,surface_reason[],2,FALSE))","v":""},null,null,null,null,null,null,null,null,null,null,null,null,null,null,null,null,null,null,null,null,null,{"$f":"IF(AH32=\"\",\"\",VLOOKUP(AH32,asset_owner[],2,FALSE))","v":""},null,{"$f":"IF(AJ32=\"\",\"\",VLOOKUP(AJ32,surface_binder[],2,FALSE))","v":""},null,null,{"$f":"IF(AM32=\"\",\"\",VLOOKUP(AM32,adhesion_agent[],2,FALSE))","v":""},null,null,{"$f":"IF(AP32=\"\",\"\",VLOOKUP(AP32,additive_type[],2,FALSE))","v":""},null,null,{"$f":"IF(AS32=\"\",\"\",VLOOKUP(AS32,polymer_type[],2,FALSE))","v":""},null,null,null,null,null,null,{"$f":"IF(AZ32=\"\",\"\",VLOOKUP(AZ32,organisation[],2,FALSE))","v":""},null,null,{"$f":"IF(BC32=\"\",\"\",VLOOKUP(BC32,activity[],2,FALSE))","v":""},null,null,null,null,null,null,{"$f":"IF(BJ32=\"\",\"\",VLOOKUP(BJ32,recycle_component[],2,FALSE))","v":""},null,null,null,null,null,null,null,null,null,{"$f":"IF(BT32=\"\",\"\",VLOOKUP(BT32,condition[],2,FALSE))","v":""}]
["null","null",null,null,null,null,null,{"$f":"IF(G33=\"\",\"\",VLOOKUP(G33,surface_material[],2,FALSE))","v":""},null,null,{"$f":"IF(J33=\"\",\"\",VLOOKUP(J33,surface_specification[],2,FALSE))","v":""},null,{"$f":"IF(L33=\"\",\"\",VLOOKUP(L33,surface_reason[],2,FALSE))","v":""},null,null,null,null,null,null,null,null,null,null,null,null,null,null,null,null,null,null,null,null,null,{"$f":"IF(AH33=\"\",\"\",VLOOKUP(AH33,asset_owner[],2,FALSE))","v":""},null,{"$f":"IF(AJ33=\"\",\"\",VLOOKUP(AJ33,surface_binder[],2,FALSE))","v":""},null,null,{"$f":"IF(AM33=\"\",\"\",VLOOKUP(AM33,adhesion_agent[],2,FALSE))","v":""},null,null,{"$f":"IF(AP33=\"\",\"\",VLOOKUP(AP33,additive_type[],2,FALSE))","v":""},null,null,{"$f":"IF(AS33=\"\",\"\",VLOOKUP(AS33,polymer_type[],2,FALSE))","v":""},null,null,null,null,null,null,{"$f":"IF(AZ33=\"\",\"\",VLOOKUP(AZ33,organisation[],2,FALSE))","v":""},null,null,{"$f":"IF(BC33=\"\",\"\",VLOOKUP(BC33,activity[],2,FALSE))","v":""},null,null,null,null,null,null,{"$f":"IF(BJ33=\"\",\"\",VLOOKUP(BJ33,recycle_component[],2,FALSE))","v":""},null,null,null,null,null,null,null,null,null,{"$f":"IF(BT33=\"\",\"\",VLOOKUP(BT33,condition[],2,FALSE))","v":""}]
["null","null",null,null,null,null,null,{"$f":"IF(G34=\"\",\"\",VLOOKUP(G34,surface_material[],2,FALSE))","v":""},null,null,{"$f":"IF(J34=\"\",\"\",VLOOKUP(J34,surface_specification[],2,FALSE))","v":""},null,{"$f":"IF(L34=\"\",\"\",VLOOKUP(L34,surface_reason[],2,FALSE))","v":""},null,null,null,null,null,null,null,null,null,null,null,null,null,null,null,null,null,null,null,null,null,{"$f":"IF(AH34=\"\",\"\",VLOOKUP(AH34,asset_owner[],2,FALSE))","v":""},null,{"$f":"IF(AJ34=\"\",\"\",VLOOKUP(AJ34,surface_binder[],2,FALSE))","v":""},null,null,{"$f":"IF(AM34=\"\",\"\",VLOOKUP(AM34,adhesion_agent[],2,FALSE))","v":""},null,null,{"$f":"IF(AP34=\"\",\"\",VLOOKUP(AP34,additive_type[],2,FALSE))","v":""},null,null,{"$f":"IF(AS34=\"\",\"\",VLOOKUP(AS34,polymer_type[],2,FALSE))","v":""},null,null,null,null,null,null,{"$f":"IF(AZ34=\"\",\"\",VLOOKUP(AZ34,organisation[],2,FALSE))","v":""},null,null,{"$f":"IF(BC34=\"\",\"\",VLOOKUP(BC34,activity[],2,FALSE))","v":""},null,null,null,null,null,null,{"$f":"IF(BJ34=\"\",\"\",VLOOKUP(BJ34,recycle_component[],2,FALSE))","v":""},null,null,null,null,null,null,null,null,null,{"$f":"IF(BT34=\"\",\"\",VLOOKUP(BT34,condition[],2,FALSE))","v":""}]
["null","null",null,null,null,null,null,{"$f":"IF(G35=\"\",\"\",VLOOKUP(G35,surface_material[],2,FALSE))","v":""},null,null,{"$f":"IF(J35=\"\",\"\",VLOOKUP(J35,surface_specification[],2,FALSE))","v":""},null,{"$f":"IF(L35=\"\",\"\",VLOOKUP(L35,surface_reason[],2,FALSE))","v":""},null,null,null,null,null,null,null,null,null,null,null,null,null,null,null,null,null,null,null,null,null,{"$f":"IF(AH35=\"\",\"\",VLOOKUP(AH35,asset_owner[],2,FALSE))","v":""},null,{"$f":"IF(AJ35=\"\",\"\",VLOOKUP(AJ35,surface_binder[],2,FALSE))","v":""},null,null,{"$f":"IF(AM35=\"\",\"\",VLOOKUP(AM35,adhesion_agent[],2,FALSE))","v":""},null,null,{"$f":"IF(AP35=\"\",\"\",VLOOKUP(AP35,additive_type[],2,FALSE))","v":""},null,null,{"$f":"IF(AS35=\"\",\"\",VLOOKUP(AS35,polymer_type[],2,FALSE))","v":""},null,null,null,null,null,null,{"$f":"IF(AZ35=\"\",\"\",VLOOKUP(AZ35,organisation[],2,FALSE))","v":""},null,null,{"$f":"IF(BC35=\"\",\"\",VLOOKUP(BC35,activity[],2,FALSE))","v":""},null,null,null,null,null,null,{"$f":"IF(BJ35=\"\",\"\",VLOOKUP(BJ35,recycle_component[],2,FALSE))","v":""},null,null,null,null,null,null,null,null,null,{"$f":"IF(BT35=\"\",\"\",VLOOKUP(BT35,condition[],2,FALSE))","v":""}]
["null","null",null,null,null,null,null,{"$f":"IF(G36=\"\",\"\",VLOOKUP(G36,surface_material[],2,FALSE))","v":""},null,null,{"$f":"IF(J36=\"\",\"\",VLOOKUP(J36,surface_specification[],2,FALSE))","v":""},null,{"$f":"IF(L36=\"\",\"\",VLOOKUP(L36,surface_reason[],2,FALSE))","v":""},null,null,null,null,null,null,null,null,null,null,null,null,null,null,null,null,null,null,null,null,null,{"$f":"IF(AH36=\"\",\"\",VLOOKUP(AH36,asset_owner[],2,FALSE))","v":""},null,{"$f":"IF(AJ36=\"\",\"\",VLOOKUP(AJ36,surface_binder[],2,FALSE))","v":""},null,null,{"$f":"IF(AM36=\"\",\"\",VLOOKUP(AM36,adhesion_agent[],2,FALSE))","v":""},null,null,{"$f":"IF(AP36=\"\",\"\",VLOOKUP(AP36,additive_type[],2,FALSE))","v":""},null,null,{"$f":"IF(AS36=\"\",\"\",VLOOKUP(AS36,polymer_type[],2,FALSE))","v":""},null,null,null,null,null,null,{"$f":"IF(AZ36=\"\",\"\",VLOOKUP(AZ36,organisation[],2,FALSE))","v":""},null,null,{"$f":"IF(BC36=\"\",\"\",VLOOKUP(BC36,activity[],2,FALSE))","v":""},null,null,null,null,null,null,{"$f":"IF(BJ36=\"\",\"\",VLOOKUP(BJ36,recycle_component[],2,FALSE))","v":""},null,null,null,null,null,null,null,null,null,{"$f":"IF(BT36=\"\",\"\",VLOOKUP(BT36,condition[],2,FALSE))","v":""}]
["null","null",null,null,null,null,null,{"$f":"IF(G37=\"\",\"\",VLOOKUP(G37,surface_material[],2,FALSE))","v":""},null,null,{"$f":"IF(J37=\"\",\"\",VLOOKUP(J37,surface_specification[],2,FALSE))","v":""},null,{"$f":"IF(L37=\"\",\"\",VLOOKUP(L37,surface_reason[],2,FALSE))","v":""},null,null,null,null,null,null,null,null,null,null,null,null,null,null,null,null,null,null,null,null,null,{"$f":"IF(AH37=\"\",\"\",VLOOKUP(AH37,asset_owner[],2,FALSE))","v":""},null,{"$f":"IF(AJ37=\"\",\"\",VLOOKUP(AJ37,surface_binder[],2,FALSE))","v":""},null,null,{"$f":"IF(AM37=\"\",\"\",VLOOKUP(AM37,adhesion_agent[],2,FALSE))","v":""},null,null,{"$f":"IF(AP37=\"\",\"\",VLOOKUP(AP37,additive_type[],2,FALSE))","v":""},null,null,{"$f":"IF(AS37=\"\",\"\",VLOOKUP(AS37,polymer_type[],2,FALSE))","v":""},null,null,null,null,null,null,{"$f":"IF(AZ37=\"\",\"\",VLOOKUP(AZ37,organisation[],2,FALSE))","v":""},null,null,{"$f":"IF(BC37=\"\",\"\",VLOOKUP(BC37,activity[],2,FALSE))","v":""},null,null,null,null,null,null,{"$f":"IF(BJ37=\"\",\"\",VLOOKUP(BJ37,recycle_component[],2,FALSE))","v":""},null,null,null,null,null,null,null,null,null,{"$f":"IF(BT37=\"\",\"\",VLOOKUP(BT37,condition[],2,FALSE))","v":""}]
["null","null",null,null,null,null,null,{"$f":"IF(G38=\"\",\"\",VLOOKUP(G38,surface_material[],2,FALSE))","v":""},null,null,{"$f":"IF(J38=\"\",\"\",VLOOKUP(J38,surface_specification[],2,FALSE))","v":""},null,{"$f":"IF(L38=\"\",\"\",VLOOKUP(L38,surface_reason[],2,FALSE))","v":""},null,null,null,null,null,null,null,null,null,null,null,null,null,null,null,null,null,null,null,null,null,{"$f":"IF(AH38=\"\",\"\",VLOOKUP(AH38,asset_owner[],2,FALSE))","v":""},null,{"$f":"IF(AJ38=\"\",\"\",VLOOKUP(AJ38,surface_binder[],2,FALSE))","v":""},null,null,{"$f":"IF(AM38=\"\",\"\",VLOOKUP(AM38,adhesion_agent[],2,FALSE))","v":""},null,null,{"$f":"IF(AP38=\"\",\"\",VLOOKUP(AP38,additive_type[],2,FALSE))","v":""},null,null,{"$f":"IF(AS38=\"\",\"\",VLOOKUP(AS38,polymer_type[],2,FALSE))","v":""},null,null,null,null,null,null,{"$f":"IF(AZ38=\"\",\"\",VLOOKUP(AZ38,organisation[],2,FALSE))","v":""},null,null,{"$f":"IF(BC38=\"\",\"\",VLOOKUP(BC38,activity[],2,FALSE))","v":""},null,null,null,null,null,null,{"$f":"IF(BJ38=\"\",\"\",VLOOKUP(BJ38,recycle_component[],2,FALSE))","v":""},null,null,null,null,null,null,null,null,null,{"$f":"IF(BT38=\"\",\"\",VLOOKUP(BT38,condition[],2,FALSE))","v":""}]
["null","null",null,null,null,null,null,{"$f":"IF(G39=\"\",\"\",VLOOKUP(G39,surface_material[],2,FALSE))","v":""},null,null,{"$f":"IF(J39=\"\",\"\",VLOOKUP(J39,surface_specification[],2,FALSE))","v":""},null,{"$f":"IF(L39=\"\",\"\",VLOOKUP(L39,surface_reason[],2,FALSE))","v":""},null,null,null,null,null,null,null,null,null,null,null,null,null,null,null,null,null,null,null,null,null,{"$f":"IF(AH39=\"\",\"\",VLOOKUP(AH39,asset_owner[],2,FALSE))","v":""},null,{"$f":"IF(AJ39=\"\",\"\",VLOOKUP(AJ39,surface_binder[],2,FALSE))","v":""},null,null,{"$f":"IF(AM39=\"\",\"\",VLOOKUP(AM39,adhesion_agent[],2,FALSE))","v":""},null,null,{"$f":"IF(AP39=\"\",\"\",VLOOKUP(AP39,additive_type[],2,FALSE))","v":""},null,null,{"$f":"IF(AS39=\"\",\"\",VLOOKUP(AS39,polymer_type[],2,FALSE))","v":""},null,null,null,null,null,null,{"$f":"IF(AZ39=\"\",\"\",VLOOKUP(AZ39,organisation[],2,FALSE))","v":""},null,null,{"$f":"IF(BC39=\"\",\"\",VLOOKUP(BC39,activity[],2,FALSE))","v":""},null,null,null,null,null,null,{"$f":"IF(BJ39=\"\",\"\",VLOOKUP(BJ39,recycle_component[],2,FALSE))","v":""},null,null,null,null,null,null,null,null,null,{"$f":"IF(BT39=\"\",\"\",VLOOKUP(BT39,condition[],2,FALSE))","v":""}]
["null","null",null,null,null,null,null,{"$f":"IF(G40=\"\",\"\",VLOOKUP(G40,surface_material[],2,FALSE))","v":""},null,null,{"$f":"IF(J40=\"\",\"\",VLOOKUP(J40,surface_specification[],2,FALSE))","v":""},null,{"$f":"IF(L40=\"\",\"\",VLOOKUP(L40,surface_reason[],2,FALSE))","v":""},null,null,null,null,null,null,null,null,null,null,null,null,null,null,null,null,null,null,null,null,null,{"$f":"IF(AH40=\"\",\"\",VLOOKUP(AH40,asset_owner[],2,FALSE))","v":""},null,{"$f":"IF(AJ40=\"\",\"\",VLOOKUP(AJ40,surface_binder[],2,FALSE))","v":""},null,null,{"$f":"IF(AM40=\"\",\"\",VLOOKUP(AM40,adhesion_agent[],2,FALSE))","v":""},null,null,{"$f":"IF(AP40=\"\",\"\",VLOOKUP(AP40,additive_type[],2,FALSE))","v":""},null,null,{"$f":"IF(AS40=\"\",\"\",VLOOKUP(AS40,polymer_type[],2,FALSE))","v":""},null,null,null,null,null,null,{"$f":"IF(AZ40=\"\",\"\",VLOOKUP(AZ40,organisation[],2,FALSE))","v":""},null,null,{"$f":"IF(BC40=\"\",\"\",VLOOKUP(BC40,activity[],2,FALSE))","v":""},null,null,null,null,null,null,{"$f":"IF(BJ40=\"\",\"\",VLOOKUP(BJ40,recycle_component[],2,FALSE))","v":""},null,null,null,null,null,null,null,null,null,{"$f":"IF(BT40=\"\",\"\",VLOOKUP(BT40,condition[],2,FALSE))","v":""}]
["null","null",null,null,null,null,null,{"$f":"IF(G41=\"\",\"\",VLOOKUP(G41,surface_material[],2,FALSE))","v":""},null,null,{"$f":"IF(J41=\"\",\"\",VLOOKUP(J41,surface_specification[],2,FALSE))","v":""},null,{"$f":"IF(L41=\"\",\"\",VLOOKUP(L41,surface_reason[],2,FALSE))","v":""},null,null,null,null,null,null,null,null,null,null,null,null,null,null,null,null,null,null,null,null,null,{"$f":"IF(AH41=\"\",\"\",VLOOKUP(AH41,asset_owner[],2,FALSE))","v":""},null,{"$f":"IF(AJ41=\"\",\"\",VLOOKUP(AJ41,surface_binder[],2,FALSE))","v":""},null,null,{"$f":"IF(AM41=\"\",\"\",VLOOKUP(AM41,adhesion_agent[],2,FALSE))","v":""},null,null,{"$f":"IF(AP41=\"\",\"\",VLOOKUP(AP41,additive_type[],2,FALSE))","v":""},null,null,{"$f":"IF(AS41=\"\",\"\",VLOOKUP(AS41,polymer_type[],2,FALSE))","v":""},null,null,null,null,null,null,{"$f":"IF(AZ41=\"\",\"\",VLOOKUP(AZ41,organisation[],2,FALSE))","v":""},null,null,{"$f":"IF(BC41=\"\",\"\",VLOOKUP(BC41,activity[],2,FALSE))","v":""},null,null,null,null,null,null,{"$f":"IF(BJ41=\"\",\"\",VLOOKUP(BJ41,recycle_component[],2,FALSE))","v":""},null,null,null,null,null,null,null,null,null,{"$f":"IF(BT41=\"\",\"\",VLOOKUP(BT41,condition[],2,FALSE))","v":""}]
["null","null",null,null,null,null,null,{"$f":"IF(G42=\"\",\"\",VLOOKUP(G42,surface_material[],2,FALSE))","v":""},null,null,{"$f":"IF(J42=\"\",\"\",VLOOKUP(J42,surface_specification[],2,FALSE))","v":""},null,{"$f":"IF(L42=\"\",\"\",VLOOKUP(L42,surface_reason[],2,FALSE))","v":""},null,null,null,null,null,null,null,null,null,null,null,null,null,null,null,null,null,null,null,null,null,{"$f":"IF(AH42=\"\",\"\",VLOOKUP(AH42,asset_owner[],2,FALSE))","v":""},null,{"$f":"IF(AJ42=\"\",\"\",VLOOKUP(AJ42,surface_binder[],2,FALSE))","v":""},null,null,{"$f":"IF(AM42=\"\",\"\",VLOOKUP(AM42,adhesion_agent[],2,FALSE))","v":""},null,null,{"$f":"IF(AP42=\"\",\"\",VLOOKUP(AP42,additive_type[],2,FALSE))","v":""},null,null,{"$f":"IF(AS42=\"\",\"\",VLOOKUP(AS42,polymer_type[],2,FALSE))","v":""},null,null,null,null,null,null,{"$f":"IF(AZ42=\"\",\"\",VLOOKUP(AZ42,organisation[],2,FALSE))","v":""},null,null,{"$f":"IF(BC42=\"\",\"\",VLOOKUP(BC42,activity[],2,FALSE))","v":""},null,null,null,null,null,null,{"$f":"IF(BJ42=\"\",\"\",VLOOKUP(BJ42,recycle_component[],2,FALSE))","v":""},null,null,null,null,null,null,null,null,null,{"$f":"IF(BT42=\"\",\"\",VLOOKUP(BT42,condition[],2,FALSE))","v":""}]
["null","null",null,null,null,null,null,{"$f":"IF(G43=\"\",\"\",VLOOKUP(G43,surface_material[],2,FALSE))","v":""},null,null,{"$f":"IF(J43=\"\",\"\",VLOOKUP(J43,surface_specification[],2,FALSE))","v":""},null,{"$f":"IF(L43=\"\",\"\",VLOOKUP(L43,surface_reason[],2,FALSE))","v":""},null,null,null,null,null,null,null,null,null,null,null,null,null,null,null,null,null,null,null,null,null,{"$f":"IF(AH43=\"\",\"\",VLOOKUP(AH43,asset_owner[],2,FALSE))","v":""},null,{"$f":"IF(AJ43=\"\",\"\",VLOOKUP(AJ43,surface_binder[],2,FALSE))","v":""},null,null,{"$f":"IF(AM43=\"\",\"\",VLOOKUP(AM43,adhesion_agent[],2,FALSE))","v":""},null,null,{"$f":"IF(AP43=\"\",\"\",VLOOKUP(AP43,additive_type[],2,FALSE))","v":""},null,null,{"$f":"IF(AS43=\"\",\"\",VLOOKUP(AS43,polymer_type[],2,FALSE))","v":""},null,null,null,null,null,null,{"$f":"IF(AZ43=\"\",\"\",VLOOKUP(AZ43,organisation[],2,FALSE))","v":""},null,null,{"$f":"IF(BC43=\"\",\"\",VLOOKUP(BC43,activity[],2,FALSE))","v":""},null,null,null,null,null,null,{"$f":"IF(BJ43=\"\",\"\",VLOOKUP(BJ43,recycle_component[],2,FALSE))","v":""},null,null,null,null,null,null,null,null,null,{"$f":"IF(BT43=\"\",\"\",VLOOKUP(BT43,condition[],2,FALSE))","v":""}]
["null","null",null,null,null,null,null,{"$f":"IF(G44=\"\",\"\",VLOOKUP(G44,surface_material[],2,FALSE))","v":""},null,null,{"$f":"IF(J44=\"\",\"\",VLOOKUP(J44,surface_specification[],2,FALSE))","v":""},null,{"$f":"IF(L44=\"\",\"\",VLOOKUP(L44,surface_reason[],2,FALSE))","v":""},null,null,null,null,null,null,null,null,null,null,null,null,null,null,null,null,null,null,null,null,null,{"$f":"IF(AH44=\"\",\"\",VLOOKUP(AH44,asset_owner[],2,FALSE))","v":""},null,{"$f":"IF(AJ44=\"\",\"\",VLOOKUP(AJ44,surface_binder[],2,FALSE))","v":""},null,null,{"$f":"IF(AM44=\"\",\"\",VLOOKUP(AM44,adhesion_agent[],2,FALSE))","v":""},null,null,{"$f":"IF(AP44=\"\",\"\",VLOOKUP(AP44,additive_type[],2,FALSE))","v":""},null,null,{"$f":"IF(AS44=\"\",\"\",VLOOKUP(AS44,polymer_type[],2,FALSE))","v":""},null,null,null,null,null,null,{"$f":"IF(AZ44=\"\",\"\",VLOOKUP(AZ44,organisation[],2,FALSE))","v":""},null,null,{"$f":"IF(BC44=\"\",\"\",VLOOKUP(BC44,activity[],2,FALSE))","v":""},null,null,null,null,null,null,{"$f":"IF(BJ44=\"\",\"\",VLOOKUP(BJ44,recycle_component[],2,FALSE))","v":""},null,null,null,null,null,null,null,null,null,{"$f":"IF(BT44=\"\",\"\",VLOOKUP(BT44,condition[],2,FALSE))","v":""}]
["null","null",null,null,null,null,null,{"$f":"IF(G45=\"\",\"\",VLOOKUP(G45,surface_material[],2,FALSE))","v":""},null,null,{"$f":"IF(J45=\"\",\"\",VLOOKUP(J45,surface_specification[],2,FALSE))","v":""},null,{"$f":"IF(L45=\"\",\"\",VLOOKUP(L45,surface_reason[],2,FALSE))","v":""},null,null,null,null,null,null,null,null,null,null,null,null,null,null,null,null,null,null,null,null,null,{"$f":"IF(AH45=\"\",\"\",VLOOKUP(AH45,asset_owner[],2,FALSE))","v":""},null,{"$f":"IF(AJ45=\"\",\"\",VLOOKUP(AJ45,surface_binder[],2,FALSE))","v":""},null,null,{"$f":"IF(AM45=\"\",\"\",VLOOKUP(AM45,adhesion_agent[],2,FALSE))","v":""},null,null,{"$f":"IF(AP45=\"\",\"\",VLOOKUP(AP45,additive_type[],2,FALSE))","v":""},null,null,{"$f":"IF(AS45=\"\",\"\",VLOOKUP(AS45,polymer_type[],2,FALSE))","v":""},null,null,null,null,null,null,{"$f":"IF(AZ45=\"\",\"\",VLOOKUP(AZ45,organisation[],2,FALSE))","v":""},null,null,{"$f":"IF(BC45=\"\",\"\",VLOOKUP(BC45,activity[],2,FALSE))","v":""},null,null,null,null,null,null,{"$f":"IF(BJ45=\"\",\"\",VLOOKUP(BJ45,recycle_component[],2,FALSE))","v":""},null,null,null,null,null,null,null,null,null,{"$f":"IF(BT45=\"\",\"\",VLOOKUP(BT45,condition[],2,FALSE))","v":""}]
["null","null",null,null,null,null,null,{"$f":"IF(G46=\"\",\"\",VLOOKUP(G46,surface_material[],2,FALSE))","v":""},null,null,{"$f":"IF(J46=\"\",\"\",VLOOKUP(J46,surface_specification[],2,FALSE))","v":""},null,{"$f":"IF(L46=\"\",\"\",VLOOKUP(L46,surface_reason[],2,FALSE))","v":""},null,null,null,null,null,null,null,null,null,null,null,null,null,null,null,null,null,null,null,null,null,{"$f":"IF(AH46=\"\",\"\",VLOOKUP(AH46,asset_owner[],2,FALSE))","v":""},null,{"$f":"IF(AJ46=\"\",\"\",VLOOKUP(AJ46,surface_binder[],2,FALSE))","v":""},null,null,{"$f":"IF(AM46=\"\",\"\",VLOOKUP(AM46,adhesion_agent[],2,FALSE))","v":""},null,null,{"$f":"IF(AP46=\"\",\"\",VLOOKUP(AP46,additive_type[],2,FALSE))","v":""},null,null,{"$f":"IF(AS46=\"\",\"\",VLOOKUP(AS46,polymer_type[],2,FALSE))","v":""},null,null,null,null,null,null,{"$f":"IF(AZ46=\"\",\"\",VLOOKUP(AZ46,organisation[],2,FALSE))","v":""},null,null,{"$f":"IF(BC46=\"\",\"\",VLOOKUP(BC46,activity[],2,FALSE))","v":""},null,null,null,null,null,null,{"$f":"IF(BJ46=\"\",\"\",VLOOKUP(BJ46,recycle_component[],2,FALSE))","v":""},null,null,null,null,null,null,null,null,null,{"$f":"IF(BT46=\"\",\"\",VLOOKUP(BT46,condition[],2,FALSE))","v":""}]
["null","null",null,null,null,null,null,{"$f":"IF(G47=\"\",\"\",VLOOKUP(G47,surface_material[],2,FALSE))","v":""},null,null,{"$f":"IF(J47=\"\",\"\",VLOOKUP(J47,surface_specification[],2,FALSE))","v":""},null,{"$f":"IF(L47=\"\",\"\",VLOOKUP(L47,surface_reason[],2,FALSE))","v":""},null,null,null,null,null,null,null,null,null,null,null,null,null,null,null,null,null,null,null,null,null,{"$f":"IF(AH47=\"\",\"\",VLOOKUP(AH47,asset_owner[],2,FALSE))","v":""},null,{"$f":"IF(AJ47=\"\",\"\",VLOOKUP(AJ47,surface_binder[],2,FALSE))","v":""},null,null,{"$f":"IF(AM47=\"\",\"\",VLOOKUP(AM47,adhesion_agent[],2,FALSE))","v":""},null,null,{"$f":"IF(AP47=\"\",\"\",VLOOKUP(AP47,additive_type[],2,FALSE))","v":""},null,null,{"$f":"IF(AS47=\"\",\"\",VLOOKUP(AS47,polymer_type[],2,FALSE))","v":""},null,null,null,null,null,null,{"$f":"IF(AZ47=\"\",\"\",VLOOKUP(AZ47,organisation[],2,FALSE))","v":""},null,null,{"$f":"IF(BC47=\"\",\"\",VLOOKUP(BC47,activity[],2,FALSE))","v":""},null,null,null,null,null,null,{"$f":"IF(BJ47=\"\",\"\",VLOOKUP(BJ47,recycle_component[],2,FALSE))","v":""},null,null,null,null,null,null,null,null,null,{"$f":"IF(BT47=\"\",\"\",VLOOKUP(BT47,condition[],2,FALSE))","v":""}]
["null","null",null,null,null,null,null,{"$f":"IF(G48=\"\",\"\",VLOOKUP(G48,surface_material[],2,FALSE))","v":""},null,null,{"$f":"IF(J48=\"\",\"\",VLOOKUP(J48,surface_specification[],2,FALSE))","v":""},null,{"$f":"IF(L48=\"\",\"\",VLOOKUP(L48,surface_reason[],2,FALSE))","v":""},null,null,null,null,null,null,null,null,null,null,null,null,null,null,null,null,null,null,null,null,null,{"$f":"IF(AH48=\"\",\"\",VLOOKUP(AH48,asset_owner[],2,FALSE))","v":""},null,{"$f":"IF(AJ48=\"\",\"\",VLOOKUP(AJ48,surface_binder[],2,FALSE))","v":""},null,null,{"$f":"IF(AM48=\"\",\"\",VLOOKUP(AM48,adhesion_agent[],2,FALSE))","v":""},null,null,{"$f":"IF(AP48=\"\",\"\",VLOOKUP(AP48,additive_type[],2,FALSE))","v":""},null,null,{"$f":"IF(AS48=\"\",\"\",VLOOKUP(AS48,polymer_type[],2,FALSE))","v":""},null,null,null,null,null,null,{"$f":"IF(AZ48=\"\",\"\",VLOOKUP(AZ48,organisation[],2,FALSE))","v":""},null,null,{"$f":"IF(BC48=\"\",\"\",VLOOKUP(BC48,activity[],2,FALSE))","v":""},null,null,null,null,null,null,{"$f":"IF(BJ48=\"\",\"\",VLOOKUP(BJ48,recycle_component[],2,FALSE))","v":""},null,null,null,null,null,null,null,null,null,{"$f":"IF(BT48=\"\",\"\",VLOOKUP(BT48,condition[],2,FALSE))","v":""}]
["null","null",null,null,null,null,null,{"$f":"IF(G49=\"\",\"\",VLOOKUP(G49,surface_material[],2,FALSE))","v":""},null,null,{"$f":"IF(J49=\"\",\"\",VLOOKUP(J49,surface_specification[],2,FALSE))","v":""},null,{"$f":"IF(L49=\"\",\"\",VLOOKUP(L49,surface_reason[],2,FALSE))","v":""},null,null,null,null,null,null,null,null,null,null,null,null,null,null,null,null,null,null,null,null,null,{"$f":"IF(AH49=\"\",\"\",VLOOKUP(AH49,asset_owner[],2,FALSE))","v":""},null,{"$f":"IF(AJ49=\"\",\"\",VLOOKUP(AJ49,surface_binder[],2,FALSE))","v":""},null,null,{"$f":"IF(AM49=\"\",\"\",VLOOKUP(AM49,adhesion_agent[],2,FALSE))","v":""},null,null,{"$f":"IF(AP49=\"\",\"\",VLOOKUP(AP49,additive_type[],2,FALSE))","v":""},null,null,{"$f":"IF(AS49=\"\",\"\",VLOOKUP(AS49,polymer_type[],2,FALSE))","v":""},null,null,null,null,null,null,{"$f":"IF(AZ49=\"\",\"\",VLOOKUP(AZ49,organisation[],2,FALSE))","v":""},null,null,{"$f":"IF(BC49=\"\",\"\",VLOOKUP(BC49,activity[],2,FALSE))","v":""},null,null,null,null,null,null,{"$f":"IF(BJ49=\"\",\"\",VLOOKUP(BJ49,recycle_component[],2,FALSE))","v":""},null,null,null,null,null,null,null,null,null,{"$f":"IF(BT49=\"\",\"\",VLOOKUP(BT49,condition[],2,FALSE))","v":""}]
["null","null",null,null,null,null,null,{"$f":"IF(G50=\"\",\"\",VLOOKUP(G50,surface_material[],2,FALSE))","v":""},null,null,{"$f":"IF(J50=\"\",\"\",VLOOKUP(J50,surface_specification[],2,FALSE))","v":""},null,{"$f":"IF(L50=\"\",\"\",VLOOKUP(L50,surface_reason[],2,FALSE))","v":""},null,null,null,null,null,null,null,null,null,null,null,null,null,null,null,null,null,null,null,null,null,{"$f":"IF(AH50=\"\",\"\",VLOOKUP(AH50,asset_owner[],2,FALSE))","v":""},null,{"$f":"IF(AJ50=\"\",\"\",VLOOKUP(AJ50,surface_binder[],2,FALSE))","v":""},null,null,{"$f":"IF(AM50=\"\",\"\",VLOOKUP(AM50,adhesion_agent[],2,FALSE))","v":""},null,null,{"$f":"IF(AP50=\"\",\"\",VLOOKUP(AP50,additive_type[],2,FALSE))","v":""},null,null,{"$f":"IF(AS50=\"\",\"\",VLOOKUP(AS50,polymer_type[],2,FALSE))","v":""},null,null,null,null,null,null,{"$f":"IF(AZ50=\"\",\"\",VLOOKUP(AZ50,organisation[],2,FALSE))","v":""},null,null,{"$f":"IF(BC50=\"\",\"\",VLOOKUP(BC50,activity[],2,FALSE))","v":""},null,null,null,null,null,null,{"$f":"IF(BJ50=\"\",\"\",VLOOKUP(BJ50,recycle_component[],2,FALSE))","v":""},null,null,null,null,null,null,null,null,null,{"$f":"IF(BT50=\"\",\"\",VLOOKUP(BT50,condition[],2,FALSE))","v":""}]
["null","null",null,null,null,null,null,{"$f":"IF(G51=\"\",\"\",VLOOKUP(G51,surface_material[],2,FALSE))","v":""},null,null,{"$f":"IF(J51=\"\",\"\",VLOOKUP(J51,surface_specification[],2,FALSE))","v":""},null,{"$f":"IF(L51=\"\",\"\",VLOOKUP(L51,surface_reason[],2,FALSE))","v":""},null,null,null,null,null,null,null,null,null,null,null,null,null,null,null,null,null,null,null,null,null,{"$f":"IF(AH51=\"\",\"\",VLOOKUP(AH51,asset_owner[],2,FALSE))","v":""},null,{"$f":"IF(AJ51=\"\",\"\",VLOOKUP(AJ51,surface_binder[],2,FALSE))","v":""},null,null,{"$f":"IF(AM51=\"\",\"\",VLOOKUP(AM51,adhesion_agent[],2,FALSE))","v":""},null,null,{"$f":"IF(AP51=\"\",\"\",VLOOKUP(AP51,additive_type[],2,FALSE))","v":""},null,null,{"$f":"IF(AS51=\"\",\"\",VLOOKUP(AS51,polymer_type[],2,FALSE))","v":""},null,null,null,null,null,null,{"$f":"IF(AZ51=\"\",\"\",VLOOKUP(AZ51,organisation[],2,FALSE))","v":""},null,null,{"$f":"IF(BC51=\"\",\"\",VLOOKUP(BC51,activity[],2,FALSE))","v":""},null,null,null,null,null,null,{"$f":"IF(BJ51=\"\",\"\",VLOOKUP(BJ51,recycle_component[],2,FALSE))","v":""},null,null,null,null,null,null,null,null,null,{"$f":"IF(BT51=\"\",\"\",VLOOKUP(BT51,condition[],2,FALSE))","v":""}]
["null","null",null,null,null,null,null,{"$f":"IF(G52=\"\",\"\",VLOOKUP(G52,surface_material[],2,FALSE))","v":""},null,null,{"$f":"IF(J52=\"\",\"\",VLOOKUP(J52,surface_specification[],2,FALSE))","v":""},null,{"$f":"IF(L52=\"\",\"\",VLOOKUP(L52,surface_reason[],2,FALSE))","v":""},null,null,null,null,null,null,null,null,null,null,null,null,null,null,null,null,null,null,null,null,null,{"$f":"IF(AH52=\"\",\"\",VLOOKUP(AH52,asset_owner[],2,FALSE))","v":""},null,{"$f":"IF(AJ52=\"\",\"\",VLOOKUP(AJ52,surface_binder[],2,FALSE))","v":""},null,null,{"$f":"IF(AM52=\"\",\"\",VLOOKUP(AM52,adhesion_agent[],2,FALSE))","v":""},null,null,{"$f":"IF(AP52=\"\",\"\",VLOOKUP(AP52,additive_type[],2,FALSE))","v":""},null,null,{"$f":"IF(AS52=\"\",\"\",VLOOKUP(AS52,polymer_type[],2,FALSE))","v":""},null,null,null,null,null,null,{"$f":"IF(AZ52=\"\",\"\",VLOOKUP(AZ52,organisation[],2,FALSE))","v":""},null,null,{"$f":"IF(BC52=\"\",\"\",VLOOKUP(BC52,activity[],2,FALSE))","v":""},null,null,null,null,null,null,{"$f":"IF(BJ52=\"\",\"\",VLOOKUP(BJ52,recycle_component[],2,FALSE))","v":""},null,null,null,null,null,null,null,null,null,{"$f":"IF(BT52=\"\",\"\",VLOOKUP(BT52,condition[],2,FALSE))","v":""}]
["null","null",null,null,null,null,null,{"$f":"IF(G53=\"\",\"\",VLOOKUP(G53,surface_material[],2,FALSE))","v":""},null,null,{"$f":"IF(J53=\"\",\"\",VLOOKUP(J53,surface_specification[],2,FALSE))","v":""},null,{"$f":"IF(L53=\"\",\"\",VLOOKUP(L53,surface_reason[],2,FALSE))","v":""},null,null,null,null,null,null,null,null,null,null,null,null,null,null,null,null,null,null,null,null,null,{"$f":"IF(AH53=\"\",\"\",VLOOKUP(AH53,asset_owner[],2,FALSE))","v":""},null,{"$f":"IF(AJ53=\"\",\"\",VLOOKUP(AJ53,surface_binder[],2,FALSE))","v":""},null,null,{"$f":"IF(AM53=\"\",\"\",VLOOKUP(AM53,adhesion_agent[],2,FALSE))","v":""},null,null,{"$f":"IF(AP53=\"\",\"\",VLOOKUP(AP53,additive_type[],2,FALSE))","v":""},null,null,{"$f":"IF(AS53=\"\",\"\",VLOOKUP(AS53,polymer_type[],2,FALSE))","v":""},null,null,null,null,null,null,{"$f":"IF(AZ53=\"\",\"\",VLOOKUP(AZ53,organisation[],2,FALSE))","v":""},null,null,{"$f":"IF(BC53=\"\",\"\",VLOOKUP(BC53,activity[],2,FALSE))","v":""},null,null,null,null,null,null,{"$f":"IF(BJ53=\"\",\"\",VLOOKUP(BJ53,recycle_component[],2,FALSE))","v":""},null,null,null,null,null,null,null,null,null,{"$f":"IF(BT53=\"\",\"\",VLOOKUP(BT53,condition[],2,FALSE))","v":""}]
["null","null",null,null,null,null,null,{"$f":"IF(G54=\"\",\"\",VLOOKUP(G54,surface_material[],2,FALSE))","v":""},null,null,{"$f":"IF(J54=\"\",\"\",VLOOKUP(J54,surface_specification[],2,FALSE))","v":""},null,{"$f":"IF(L54=\"\",\"\",VLOOKUP(L54,surface_reason[],2,FALSE))","v":""},null,null,null,null,null,null,null,null,null,null,null,null,null,null,null,null,null,null,null,null,null,{"$f":"IF(AH54=\"\",\"\",VLOOKUP(AH54,asset_owner[],2,FALSE))","v":""},null,{"$f":"IF(AJ54=\"\",\"\",VLOOKUP(AJ54,surface_binder[],2,FALSE))","v":""},null,null,{"$f":"IF(AM54=\"\",\"\",VLOOKUP(AM54,adhesion_agent[],2,FALSE))","v":""},null,null,{"$f":"IF(AP54=\"\",\"\",VLOOKUP(AP54,additive_type[],2,FALSE))","v":""},null,null,{"$f":"IF(AS54=\"\",\"\",VLOOKUP(AS54,polymer_type[],2,FALSE))","v":""},null,null,null,null,null,null,{"$f":"IF(AZ54=\"\",\"\",VLOOKUP(AZ54,organisation[],2,FALSE))","v":""},null,null,{"$f":"IF(BC54=\"\",\"\",VLOOKUP(BC54,activity[],2,FALSE))","v":""},null,null,null,null,null,null,{"$f":"IF(BJ54=\"\",\"\",VLOOKUP(BJ54,recycle_component[],2,FALSE))","v":""},null,null,null,null,null,null,null,null,null,{"$f":"IF(BT54=\"\",\"\",VLOOKUP(BT54,condition[],2,FALSE))","v":""}]
["null","null",null,null,null,null,null,{"$f":"IF(G55=\"\",\"\",VLOOKUP(G55,surface_material[],2,FALSE))","v":""},null,null,{"$f":"IF(J55=\"\",\"\",VLOOKUP(J55,surface_specification[],2,FALSE))","v":""},null,{"$f":"IF(L55=\"\",\"\",VLOOKUP(L55,surface_reason[],2,FALSE))","v":""},null,null,null,null,null,null,null,null,null,null,null,null,null,null,null,null,null,null,null,null,null,{"$f":"IF(AH55=\"\",\"\",VLOOKUP(AH55,asset_owner[],2,FALSE))","v":""},null,{"$f":"IF(AJ55=\"\",\"\",VLOOKUP(AJ55,surface_binder[],2,FALSE))","v":""},null,null,{"$f":"IF(AM55=\"\",\"\",VLOOKUP(AM55,adhesion_agent[],2,FALSE))","v":""},null,null,{"$f":"IF(AP55=\"\",\"\",VLOOKUP(AP55,additive_type[],2,FALSE))","v":""},null,null,{"$f":"IF(AS55=\"\",\"\",VLOOKUP(AS55,polymer_type[],2,FALSE))","v":""},null,null,null,null,null,null,{"$f":"IF(AZ55=\"\",\"\",VLOOKUP(AZ55,organisation[],2,FALSE))","v":""},null,null,{"$f":"IF(BC55=\"\",\"\",VLOOKUP(BC55,activity[],2,FALSE))","v":""},null,null,null,null,null,null,{"$f":"IF(BJ55=\"\",\"\",VLOOKUP(BJ55,recycle_component[],2,FALSE))","v":""},null,null,null,null,null,null,null,null,null,{"$f":"IF(BT55=\"\",\"\",VLOOKUP(BT55,condition[],2,FALSE))","v":""}]
["null","null",null,null,null,null,null,{"$f":"IF(G56=\"\",\"\",VLOOKUP(G56,surface_material[],2,FALSE))","v":""},null,null,{"$f":"IF(J56=\"\",\"\",VLOOKUP(J56,surface_specification[],2,FALSE))","v":""},null,{"$f":"IF(L56=\"\",\"\",VLOOKUP(L56,surface_reason[],2,FALSE))","v":""},null,null,null,null,null,null,null,null,null,null,null,null,null,null,null,null,null,null,null,null,null,{"$f":"IF(AH56=\"\",\"\",VLOOKUP(AH56,asset_owner[],2,FALSE))","v":""},null,{"$f":"IF(AJ56=\"\",\"\",VLOOKUP(AJ56,surface_binder[],2,FALSE))","v":""},null,null,{"$f":"IF(AM56=\"\",\"\",VLOOKUP(AM56,adhesion_agent[],2,FALSE))","v":""},null,null,{"$f":"IF(AP56=\"\",\"\",VLOOKUP(AP56,additive_type[],2,FALSE))","v":""},null,null,{"$f":"IF(AS56=\"\",\"\",VLOOKUP(AS56,polymer_type[],2,FALSE))","v":""},null,null,null,null,null,null,{"$f":"IF(AZ56=\"\",\"\",VLOOKUP(AZ56,organisation[],2,FALSE))","v":""},null,null,{"$f":"IF(BC56=\"\",\"\",VLOOKUP(BC56,activity[],2,FALSE))","v":""},null,null,null,null,null,null,{"$f":"IF(BJ56=\"\",\"\",VLOOKUP(BJ56,recycle_component[],2,FALSE))","v":""},null,null,null,null,null,null,null,null,null,{"$f":"IF(BT56=\"\",\"\",VLOOKUP(BT56,condition[],2,FALSE))","v":""}]
["null","null",null,null,null,null,null,{"$f":"IF(G57=\"\",\"\",VLOOKUP(G57,surface_material[],2,FALSE))","v":""},null,null,{"$f":"IF(J57=\"\",\"\",VLOOKUP(J57,surface_specification[],2,FALSE))","v":""},null,{"$f":"IF(L57=\"\",\"\",VLOOKUP(L57,surface_reason[],2,FALSE))","v":""},null,null,null,null,null,null,null,null,null,null,null,null,null,null,null,null,null,null,null,null,null,{"$f":"IF(AH57=\"\",\"\",VLOOKUP(AH57,asset_owner[],2,FALSE))","v":""},null,{"$f":"IF(AJ57=\"\",\"\",VLOOKUP(AJ57,surface_binder[],2,FALSE))","v":""},null,null,{"$f":"IF(AM57=\"\",\"\",VLOOKUP(AM57,adhesion_agent[],2,FALSE))","v":""},null,null,{"$f":"IF(AP57=\"\",\"\",VLOOKUP(AP57,additive_type[],2,FALSE))","v":""},null,null,{"$f":"IF(AS57=\"\",\"\",VLOOKUP(AS57,polymer_type[],2,FALSE))","v":""},null,null,null,null,null,null,{"$f":"IF(AZ57=\"\",\"\",VLOOKUP(AZ57,organisation[],2,FALSE))","v":""},null,null,{"$f":"IF(BC57=\"\",\"\",VLOOKUP(BC57,activity[],2,FALSE))","v":""},null,null,null,null,null,null,{"$f":"IF(BJ57=\"\",\"\",VLOOKUP(BJ57,recycle_component[],2,FALSE))","v":""},null,null,null,null,null,null,null,null,null,{"$f":"IF(BT57=\"\",\"\",VLOOKUP(BT57,condition[],2,FALSE))","v":""}]
["null","null",null,null,null,null,null,{"$f":"IF(G58=\"\",\"\",VLOOKUP(G58,surface_material[],2,FALSE))","v":""},null,null,{"$f":"IF(J58=\"\",\"\",VLOOKUP(J58,surface_specification[],2,FALSE))","v":""},null,{"$f":"IF(L58=\"\",\"\",VLOOKUP(L58,surface_reason[],2,FALSE))","v":""},null,null,null,null,null,null,null,null,null,null,null,null,null,null,null,null,null,null,null,null,null,{"$f":"IF(AH58=\"\",\"\",VLOOKUP(AH58,asset_owner[],2,FALSE))","v":""},null,{"$f":"IF(AJ58=\"\",\"\",VLOOKUP(AJ58,surface_binder[],2,FALSE))","v":""},null,null,{"$f":"IF(AM58=\"\",\"\",VLOOKUP(AM58,adhesion_agent[],2,FALSE))","v":""},null,null,{"$f":"IF(AP58=\"\",\"\",VLOOKUP(AP58,additive_type[],2,FALSE))","v":""},null,null,{"$f":"IF(AS58=\"\",\"\",VLOOKUP(AS58,polymer_type[],2,FALSE))","v":""},null,null,null,null,null,null,{"$f":"IF(AZ58=\"\",\"\",VLOOKUP(AZ58,organisation[],2,FALSE))","v":""},null,null,{"$f":"IF(BC58=\"\",\"\",VLOOKUP(BC58,activity[],2,FALSE))","v":""},null,null,null,null,null,null,{"$f":"IF(BJ58=\"\",\"\",VLOOKUP(BJ58,recycle_component[],2,FALSE))","v":""},null,null,null,null,null,null,null,null,null,{"$f":"IF(BT58=\"\",\"\",VLOOKUP(BT58,condition[],2,FALSE))","v":""}]
["null","null",null,null,null,null,null,{"$f":"IF(G59=\"\",\"\",VLOOKUP(G59,surface_material[],2,FALSE))","v":""},null,null,{"$f":"IF(J59=\"\",\"\",VLOOKUP(J59,surface_specification[],2,FALSE))","v":""},null,{"$f":"IF(L59=\"\",\"\",VLOOKUP(L59,surface_reason[],2,FALSE))","v":""},null,null,null,null,null,null,null,null,null,null,null,null,null,null,null,null,null,null,null,null,null,{"$f":"IF(AH59=\"\",\"\",VLOOKUP(AH59,asset_owner[],2,FALSE))","v":""},null,{"$f":"IF(AJ59=\"\",\"\",VLOOKUP(AJ59,surface_binder[],2,FALSE))","v":""},null,null,{"$f":"IF(AM59=\"\",\"\",VLOOKUP(AM59,adhesion_agent[],2,FALSE))","v":""},null,null,{"$f":"IF(AP59=\"\",\"\",VLOOKUP(AP59,additive_type[],2,FALSE))","v":""},null,null,{"$f":"IF(AS59=\"\",\"\",VLOOKUP(AS59,polymer_type[],2,FALSE))","v":""},null,null,null,null,null,null,{"$f":"IF(AZ59=\"\",\"\",VLOOKUP(AZ59,organisation[],2,FALSE))","v":""},null,null,{"$f":"IF(BC59=\"\",\"\",VLOOKUP(BC59,activity[],2,FALSE))","v":""},null,null,null,null,null,null,{"$f":"IF(BJ59=\"\",\"\",VLOOKUP(BJ59,recycle_component[],2,FALSE))","v":""},null,null,null,null,null,null,null,null,null,{"$f":"IF(BT59=\"\",\"\",VLOOKUP(BT59,condition[],2,FALSE))","v":""}]
["null","null",null,null,null,null,null,{"$f":"IF(G60=\"\",\"\",VLOOKUP(G60,surface_material[],2,FALSE))","v":""},null,null,{"$f":"IF(J60=\"\",\"\",VLOOKUP(J60,surface_specification[],2,FALSE))","v":""},null,{"$f":"IF(L60=\"\",\"\",VLOOKUP(L60,surface_reason[],2,FALSE))","v":""},null,null,null,null,null,null,null,null,null,null,null,null,null,null,null,null,null,null,null,null,null,{"$f":"IF(AH60=\"\",\"\",VLOOKUP(AH60,asset_owner[],2,FALSE))","v":""},null,{"$f":"IF(AJ60=\"\",\"\",VLOOKUP(AJ60,surface_binder[],2,FALSE))","v":""},null,null,{"$f":"IF(AM60=\"\",\"\",VLOOKUP(AM60,adhesion_agent[],2,FALSE))","v":""},null,null,{"$f":"IF(AP60=\"\",\"\",VLOOKUP(AP60,additive_type[],2,FALSE))","v":""},null,null,{"$f":"IF(AS60=\"\",\"\",VLOOKUP(AS60,polymer_type[],2,FALSE))","v":""},null,null,null,null,null,null,{"$f":"IF(AZ60=\"\",\"\",VLOOKUP(AZ60,organisation[],2,FALSE))","v":""},null,null,{"$f":"IF(BC60=\"\",\"\",VLOOKUP(BC60,activity[],2,FALSE))","v":""},null,null,null,null,null,null,{"$f":"IF(BJ60=\"\",\"\",VLOOKUP(BJ60,recycle_component[],2,FALSE))","v":""},null,null,null,null,null,null,null,null,null,{"$f":"IF(BT60=\"\",\"\",VLOOKUP(BT60,condition[],2,FALSE))","v":""}]
["null","null",null,null,null,null,null,{"$f":"IF(G61=\"\",\"\",VLOOKUP(G61,surface_material[],2,FALSE))","v":""},null,null,{"$f":"IF(J61=\"\",\"\",VLOOKUP(J61,surface_specification[],2,FALSE))","v":""},null,{"$f":"IF(L61=\"\",\"\",VLOOKUP(L61,surface_reason[],2,FALSE))","v":""},null,null,null,null,null,null,null,null,null,null,null,null,null,null,null,null,null,null,null,null,null,{"$f":"IF(AH61=\"\",\"\",VLOOKUP(AH61,asset_owner[],2,FALSE))","v":""},null,{"$f":"IF(AJ61=\"\",\"\",VLOOKUP(AJ61,surface_binder[],2,FALSE))","v":""},null,null,{"$f":"IF(AM61=\"\",\"\",VLOOKUP(AM61,adhesion_agent[],2,FALSE))","v":""},null,null,{"$f":"IF(AP61=\"\",\"\",VLOOKUP(AP61,additive_type[],2,FALSE))","v":""},null,null,{"$f":"IF(AS61=\"\",\"\",VLOOKUP(AS61,polymer_type[],2,FALSE))","v":""},null,null,null,null,null,null,{"$f":"IF(AZ61=\"\",\"\",VLOOKUP(AZ61,organisation[],2,FALSE))","v":""},null,null,{"$f":"IF(BC61=\"\",\"\",VLOOKUP(BC61,activity[],2,FALSE))","v":""},null,null,null,null,null,null,{"$f":"IF(BJ61=\"\",\"\",VLOOKUP(BJ61,recycle_component[],2,FALSE))","v":""},null,null,null,null,null,null,null,null,null,{"$f":"IF(BT61=\"\",\"\",VLOOKUP(BT61,condition[],2,FALSE))","v":""}]
["null","null",null,null,null,null,null,{"$f":"IF(G62=\"\",\"\",VLOOKUP(G62,surface_material[],2,FALSE))","v":""},null,null,{"$f":"IF(J62=\"\",\"\",VLOOKUP(J62,surface_specification[],2,FALSE))","v":""},null,{"$f":"IF(L62=\"\",\"\",VLOOKUP(L62,surface_reason[],2,FALSE))","v":""},null,null,null,null,null,null,null,null,null,null,null,null,null,null,null,null,null,null,null,null,null,{"$f":"IF(AH62=\"\",\"\",VLOOKUP(AH62,asset_owner[],2,FALSE))","v":""},null,{"$f":"IF(AJ62=\"\",\"\",VLOOKUP(AJ62,surface_binder[],2,FALSE))","v":""},null,null,{"$f":"IF(AM62=\"\",\"\",VLOOKUP(AM62,adhesion_agent[],2,FALSE))","v":""},null,null,{"$f":"IF(AP62=\"\",\"\",VLOOKUP(AP62,additive_type[],2,FALSE))","v":""},null,null,{"$f":"IF(AS62=\"\",\"\",VLOOKUP(AS62,polymer_type[],2,FALSE))","v":""},null,null,null,null,null,null,{"$f":"IF(AZ62=\"\",\"\",VLOOKUP(AZ62,organisation[],2,FALSE))","v":""},null,null,{"$f":"IF(BC62=\"\",\"\",VLOOKUP(BC62,activity[],2,FALSE))","v":""},null,null,null,null,null,null,{"$f":"IF(BJ62=\"\",\"\",VLOOKUP(BJ62,recycle_component[],2,FALSE))","v":""},null,null,null,null,null,null,null,null,null,{"$f":"IF(BT62=\"\",\"\",VLOOKUP(BT62,condition[],2,FALSE))","v":""}]
["null","null",null,null,null,null,null,{"$f":"IF(G63=\"\",\"\",VLOOKUP(G63,surface_material[],2,FALSE))","v":""},null,null,{"$f":"IF(J63=\"\",\"\",VLOOKUP(J63,surface_specification[],2,FALSE))","v":""},null,{"$f":"IF(L63=\"\",\"\",VLOOKUP(L63,surface_reason[],2,FALSE))","v":""},null,null,null,null,null,null,null,null,null,null,null,null,null,null,null,null,null,null,null,null,null,{"$f":"IF(AH63=\"\",\"\",VLOOKUP(AH63,asset_owner[],2,FALSE))","v":""},null,{"$f":"IF(AJ63=\"\",\"\",VLOOKUP(AJ63,surface_binder[],2,FALSE))","v":""},null,null,{"$f":"IF(AM63=\"\",\"\",VLOOKUP(AM63,adhesion_agent[],2,FALSE))","v":""},null,null,{"$f":"IF(AP63=\"\",\"\",VLOOKUP(AP63,additive_type[],2,FALSE))","v":""},null,null,{"$f":"IF(AS63=\"\",\"\",VLOOKUP(AS63,polymer_type[],2,FALSE))","v":""},null,null,null,null,null,null,{"$f":"IF(AZ63=\"\",\"\",VLOOKUP(AZ63,organisation[],2,FALSE))","v":""},null,null,{"$f":"IF(BC63=\"\",\"\",VLOOKUP(BC63,activity[],2,FALSE))","v":""},null,null,null,null,null,null,{"$f":"IF(BJ63=\"\",\"\",VLOOKUP(BJ63,recycle_component[],2,FALSE))","v":""},null,null,null,null,null,null,null,null,null,{"$f":"IF(BT63=\"\",\"\",VLOOKUP(BT63,condition[],2,FALSE))","v":""}]
["null","null",null,null,null,null,null,{"$f":"IF(G64=\"\",\"\",VLOOKUP(G64,surface_material[],2,FALSE))","v":""},null,null,{"$f":"IF(J64=\"\",\"\",VLOOKUP(J64,surface_specification[],2,FALSE))","v":""},null,{"$f":"IF(L64=\"\",\"\",VLOOKUP(L64,surface_reason[],2,FALSE))","v":""},null,null,null,null,null,null,null,null,null,null,null,null,null,null,null,null,null,null,null,null,null,{"$f":"IF(AH64=\"\",\"\",VLOOKUP(AH64,asset_owner[],2,FALSE))","v":""},null,{"$f":"IF(AJ64=\"\",\"\",VLOOKUP(AJ64,surface_binder[],2,FALSE))","v":""},null,null,{"$f":"IF(AM64=\"\",\"\",VLOOKUP(AM64,adhesion_agent[],2,FALSE))","v":""},null,null,{"$f":"IF(AP64=\"\",\"\",VLOOKUP(AP64,additive_type[],2,FALSE))","v":""},null,null,{"$f":"IF(AS64=\"\",\"\",VLOOKUP(AS64,polymer_type[],2,FALSE))","v":""},null,null,null,null,null,null,{"$f":"IF(AZ64=\"\",\"\",VLOOKUP(AZ64,organisation[],2,FALSE))","v":""},null,null,{"$f":"IF(BC64=\"\",\"\",VLOOKUP(BC64,activity[],2,FALSE))","v":""},null,null,null,null,null,null,{"$f":"IF(BJ64=\"\",\"\",VLOOKUP(BJ64,recycle_component[],2,FALSE))","v":""},null,null,null,null,null,null,null,null,null,{"$f":"IF(BT64=\"\",\"\",VLOOKUP(BT64,condition[],2,FALSE))","v":""}]
["null","null",null,null,null,null,null,{"$f":"IF(G65=\"\",\"\",VLOOKUP(G65,surface_material[],2,FALSE))","v":""},null,null,{"$f":"IF(J65=\"\",\"\",VLOOKUP(J65,surface_specification[],2,FALSE))","v":""},null,{"$f":"IF(L65=\"\",\"\",VLOOKUP(L65,surface_reason[],2,FALSE))","v":""},null,null,null,null,null,null,null,null,null,null,null,null,null,null,null,null,null,null,null,null,null,{"$f":"IF(AH65=\"\",\"\",VLOOKUP(AH65,asset_owner[],2,FALSE))","v":""},null,{"$f":"IF(AJ65=\"\",\"\",VLOOKUP(AJ65,surface_binder[],2,FALSE))","v":""},null,null,{"$f":"IF(AM65=\"\",\"\",VLOOKUP(AM65,adhesion_agent[],2,FALSE))","v":""},null,null,{"$f":"IF(AP65=\"\",\"\",VLOOKUP(AP65,additive_type[],2,FALSE))","v":""},null,null,{"$f":"IF(AS65=\"\",\"\",VLOOKUP(AS65,polymer_type[],2,FALSE))","v":""},null,null,null,null,null,null,{"$f":"IF(AZ65=\"\",\"\",VLOOKUP(AZ65,organisation[],2,FALSE))","v":""},null,null,{"$f":"IF(BC65=\"\",\"\",VLOOKUP(BC65,activity[],2,FALSE))","v":""},null,null,null,null,null,null,{"$f":"IF(BJ65=\"\",\"\",VLOOKUP(BJ65,recycle_component[],2,FALSE))","v":""},null,null,null,null,null,null,null,null,null,{"$f":"IF(BT65=\"\",\"\",VLOOKUP(BT65,condition[],2,FALSE))","v":""}]
["null","null",null,null,null,null,null,{"$f":"IF(G66=\"\",\"\",VLOOKUP(G66,surface_material[],2,FALSE))","v":""},null,null,{"$f":"IF(J66=\"\",\"\",VLOOKUP(J66,surface_specification[],2,FALSE))","v":""},null,{"$f":"IF(L66=\"\",\"\",VLOOKUP(L66,surface_reason[],2,FALSE))","v":""},null,null,null,null,null,null,null,null,null,null,null,null,null,null,null,null,null,null,null,null,null,{"$f":"IF(AH66=\"\",\"\",VLOOKUP(AH66,asset_owner[],2,FALSE))","v":""},null,{"$f":"IF(AJ66=\"\",\"\",VLOOKUP(AJ66,surface_binder[],2,FALSE))","v":""},null,null,{"$f":"IF(AM66=\"\",\"\",VLOOKUP(AM66,adhesion_agent[],2,FALSE))","v":""},null,null,{"$f":"IF(AP66=\"\",\"\",VLOOKUP(AP66,additive_type[],2,FALSE))","v":""},null,null,{"$f":"IF(AS66=\"\",\"\",VLOOKUP(AS66,polymer_type[],2,FALSE))","v":""},null,null,null,null,null,null,{"$f":"IF(AZ66=\"\",\"\",VLOOKUP(AZ66,organisation[],2,FALSE))","v":""},null,null,{"$f":"IF(BC66=\"\",\"\",VLOOKUP(BC66,activity[],2,FALSE))","v":""},null,null,null,null,null,null,{"$f":"IF(BJ66=\"\",\"\",VLOOKUP(BJ66,recycle_component[],2,FALSE))","v":""},null,null,null,null,null,null,null,null,null,{"$f":"IF(BT66=\"\",\"\",VLOOKUP(BT66,condition[],2,FALSE))","v":""}]
["null","null",null,null,null,null,null,{"$f":"IF(G67=\"\",\"\",VLOOKUP(G67,surface_material[],2,FALSE))","v":""},null,null,{"$f":"IF(J67=\"\",\"\",VLOOKUP(J67,surface_specification[],2,FALSE))","v":""},null,{"$f":"IF(L67=\"\",\"\",VLOOKUP(L67,surface_reason[],2,FALSE))","v":""},null,null,null,null,null,null,null,null,null,null,null,null,null,null,null,null,null,null,null,null,null,{"$f":"IF(AH67=\"\",\"\",VLOOKUP(AH67,asset_owner[],2,FALSE))","v":""},null,{"$f":"IF(AJ67=\"\",\"\",VLOOKUP(AJ67,surface_binder[],2,FALSE))","v":""},null,null,{"$f":"IF(AM67=\"\",\"\",VLOOKUP(AM67,adhesion_agent[],2,FALSE))","v":""},null,null,{"$f":"IF(AP67=\"\",\"\",VLOOKUP(AP67,additive_type[],2,FALSE))","v":""},null,null,{"$f":"IF(AS67=\"\",\"\",VLOOKUP(AS67,polymer_type[],2,FALSE))","v":""},null,null,null,null,null,null,{"$f":"IF(AZ67=\"\",\"\",VLOOKUP(AZ67,organisation[],2,FALSE))","v":""},null,null,{"$f":"IF(BC67=\"\",\"\",VLOOKUP(BC67,activity[],2,FALSE))","v":""},null,null,null,null,null,null,{"$f":"IF(BJ67=\"\",\"\",VLOOKUP(BJ67,recycle_component[],2,FALSE))","v":""},null,null,null,null,null,null,null,null,null,{"$f":"IF(BT67=\"\",\"\",VLOOKUP(BT67,condition[],2,FALSE))","v":""}]
["null","null",null,null,null,null,null,{"$f":"IF(G68=\"\",\"\",VLOOKUP(G68,surface_material[],2,FALSE))","v":""},null,null,{"$f":"IF(J68=\"\",\"\",VLOOKUP(J68,surface_specification[],2,FALSE))","v":""},null,{"$f":"IF(L68=\"\",\"\",VLOOKUP(L68,surface_reason[],2,FALSE))","v":""},null,null,null,null,null,null,null,null,null,null,null,null,null,null,null,null,null,null,null,null,null,{"$f":"IF(AH68=\"\",\"\",VLOOKUP(AH68,asset_owner[],2,FALSE))","v":""},null,{"$f":"IF(AJ68=\"\",\"\",VLOOKUP(AJ68,surface_binder[],2,FALSE))","v":""},null,null,{"$f":"IF(AM68=\"\",\"\",VLOOKUP(AM68,adhesion_agent[],2,FALSE))","v":""},null,null,{"$f":"IF(AP68=\"\",\"\",VLOOKUP(AP68,additive_type[],2,FALSE))","v":""},null,null,{"$f":"IF(AS68=\"\",\"\",VLOOKUP(AS68,polymer_type[],2,FALSE))","v":""},null,null,null,null,null,null,{"$f":"IF(AZ68=\"\",\"\",VLOOKUP(AZ68,organisation[],2,FALSE))","v":""},null,null,{"$f":"IF(BC68=\"\",\"\",VLOOKUP(BC68,activity[],2,FALSE))","v":""},null,null,null,null,null,null,{"$f":"IF(BJ68=\"\",\"\",VLOOKUP(BJ68,recycle_component[],2,FALSE))","v":""},null,null,null,null,null,null,null,null,null,{"$f":"IF(BT68=\"\",\"\",VLOOKUP(BT68,condition[],2,FALSE))","v":""}]
[{"$f":"_xlfn.FILTERXML(_xlfn.WEBSERVICE(\"https://nds-beta.mobileroad.org/xy_sh?rp=\"&C69&\"/\"&D69&\"&xml=true\"),\"/lrms/id_road\")","v":"null"},{"$f":"_xlfn.FILTERXML(_xlfn.WEBSERVICE(\"https://nds-beta.mobileroad.org/xy_sh?rp=\"&C69&\"/\"&E69&\"&xml=true\"),\"/lrms/id_road\")","v":"null"},null,null,null,null,null,{"$f":"IF(G69=\"\",\"\",VLOOKUP(G69,surface_material[],2,FALSE))","v":""},null,null,{"$f":"IF(J69=\"\",\"\",VLOOKUP(J69,surface_specification[],2,FALSE))","v":""},null,{"$f":"IF(L69=\"\",\"\",VLOOKUP(L69,surface_reason[],2,FALSE))","v":""},null,null,null,null,null,null,null,null,null,null,null,null,null,null,null,null,null,null,null,null,null,{"$f":"IF(AH69=\"\",\"\",VLOOKUP(AH69,asset_owner[],2,FALSE))","v":""},null,{"$f":"IF(AJ69=\"\",\"\",VLOOKUP(AJ69,surface_binder[],2,FALSE))","v":""},null,null,{"$f":"IF(AM69=\"\",\"\",VLOOKUP(AM69,adhesion_agent[],2,FALSE))","v":""},null,null,{"$f":"IF(AP69=\"\",\"\",VLOOKUP(AP69,additive_type[],2,FALSE))","v":""},null,null,{"$f":"IF(AS69=\"\",\"\",VLOOKUP(AS69,polymer_type[],2,FALSE))","v":""},null,null,null,null,null,null,{"$f":"IF(AZ69=\"\",\"\",VLOOKUP(AZ69,organisation[],2,FALSE))","v":""},null,null,{"$f":"IF(BC69=\"\",\"\",VLOOKUP(BC69,activity[],2,FALSE))","v":""},null,null,null,null,null,null,{"$f":"IF(BJ69=\"\",\"\",VLOOKUP(BJ69,recycle_component[],2,FALSE))","v":""},null,null,null,null,null,null,null,null,null,{"$f":"IF(BT69=\"\",\"\",VLOOKUP(BT69,condition[],2,FALSE))","v":""}]
["null","null",null,null,null,null,null,{"$f":"IF(G70=\"\",\"\",VLOOKUP(G70,surface_material[],2,FALSE))","v":""},null,null,{"$f":"IF(J70=\"\",\"\",VLOOKUP(J70,surface_specification[],2,FALSE))","v":""},null,{"$f":"IF(L70=\"\",\"\",VLOOKUP(L70,surface_reason[],2,FALSE))","v":""},null,null,null,null,null,null,null,null,null,null,null,null,null,null,null,null,null,null,null,null,null,{"$f":"IF(AH70=\"\",\"\",VLOOKUP(AH70,asset_owner[],2,FALSE))","v":""},null,{"$f":"IF(AJ70=\"\",\"\",VLOOKUP(AJ70,surface_binder[],2,FALSE))","v":""},null,null,{"$f":"IF(AM70=\"\",\"\",VLOOKUP(AM70,adhesion_agent[],2,FALSE))","v":""},null,null,{"$f":"IF(AP70=\"\",\"\",VLOOKUP(AP70,additive_type[],2,FALSE))","v":""},null,null,{"$f":"IF(AS70=\"\",\"\",VLOOKUP(AS70,polymer_type[],2,FALSE))","v":""},null,null,null,null,null,null,{"$f":"IF(AZ70=\"\",\"\",VLOOKUP(AZ70,organisation[],2,FALSE))","v":""},null,null,{"$f":"IF(BC70=\"\",\"\",VLOOKUP(BC70,activity[],2,FALSE))","v":""},null,null,null,null,null,null,{"$f":"IF(BJ70=\"\",\"\",VLOOKUP(BJ70,recycle_component[],2,FALSE))","v":""},null,null,null,null,null,null,null,null,null,{"$f":"IF(BT70=\"\",\"\",VLOOKUP(BT70,condition[],2,FALSE))","v":""}]
["null","null",null,null,null,null,null,{"$f":"IF(G71=\"\",\"\",VLOOKUP(G71,surface_material[],2,FALSE))","v":""},null,null,{"$f":"IF(J71=\"\",\"\",VLOOKUP(J71,surface_specification[],2,FALSE))","v":""},null,{"$f":"IF(L71=\"\",\"\",VLOOKUP(L71,surface_reason[],2,FALSE))","v":""},null,null,null,null,null,null,null,null,null,null,null,null,null,null,null,null,null,null,null,null,null,{"$f":"IF(AH71=\"\",\"\",VLOOKUP(AH71,asset_owner[],2,FALSE))","v":""},null,{"$f":"IF(AJ71=\"\",\"\",VLOOKUP(AJ71,surface_binder[],2,FALSE))","v":""},null,null,{"$f":"IF(AM71=\"\",\"\",VLOOKUP(AM71,adhesion_agent[],2,FALSE))","v":""},null,null,{"$f":"IF(AP71=\"\",\"\",VLOOKUP(AP71,additive_type[],2,FALSE))","v":""},null,null,{"$f":"IF(AS71=\"\",\"\",VLOOKUP(AS71,polymer_type[],2,FALSE))","v":""},null,null,null,null,null,null,{"$f":"IF(AZ71=\"\",\"\",VLOOKUP(AZ71,organisation[],2,FALSE))","v":""},null,null,{"$f":"IF(BC71=\"\",\"\",VLOOKUP(BC71,activity[],2,FALSE))","v":""},null,null,null,null,null,null,{"$f":"IF(BJ71=\"\",\"\",VLOOKUP(BJ71,recycle_component[],2,FALSE))","v":""},null,null,null,null,null,null,null,null,null,{"$f":"IF(BT71=\"\",\"\",VLOOKUP(BT71,condition[],2,FALSE))","v":""}]
["null","null",null,null,null,null,null,{"$f":"IF(G72=\"\",\"\",VLOOKUP(G72,surface_material[],2,FALSE))","v":""},null,null,{"$f":"IF(J72=\"\",\"\",VLOOKUP(J72,surface_specification[],2,FALSE))","v":""},null,{"$f":"IF(L72=\"\",\"\",VLOOKUP(L72,surface_reason[],2,FALSE))","v":""},null,null,null,null,null,null,null,null,null,null,null,null,null,null,null,null,null,null,null,null,null,{"$f":"IF(AH72=\"\",\"\",VLOOKUP(AH72,asset_owner[],2,FALSE))","v":""},null,{"$f":"IF(AJ72=\"\",\"\",VLOOKUP(AJ72,surface_binder[],2,FALSE))","v":""},null,null,{"$f":"IF(AM72=\"\",\"\",VLOOKUP(AM72,adhesion_agent[],2,FALSE))","v":""},null,null,{"$f":"IF(AP72=\"\",\"\",VLOOKUP(AP72,additive_type[],2,FALSE))","v":""},null,null,{"$f":"IF(AS72=\"\",\"\",VLOOKUP(AS72,polymer_type[],2,FALSE))","v":""},null,null,null,null,null,null,{"$f":"IF(AZ72=\"\",\"\",VLOOKUP(AZ72,organisation[],2,FALSE))","v":""},null,null,{"$f":"IF(BC72=\"\",\"\",VLOOKUP(BC72,activity[],2,FALSE))","v":""},null,null,null,null,null,null,{"$f":"IF(BJ72=\"\",\"\",VLOOKUP(BJ72,recycle_component[],2,FALSE))","v":""},null,null,null,null,null,null,null,null,null,{"$f":"IF(BT72=\"\",\"\",VLOOKUP(BT72,condition[],2,FALSE))","v":""}]
["null","null",null,null,null,null,null,{"$f":"IF(G73=\"\",\"\",VLOOKUP(G73,surface_material[],2,FALSE))","v":""},null,null,{"$f":"IF(J73=\"\",\"\",VLOOKUP(J73,surface_specification[],2,FALSE))","v":""},null,{"$f":"IF(L73=\"\",\"\",VLOOKUP(L73,surface_reason[],2,FALSE))","v":""},null,null,null,null,null,null,null,null,null,null,null,null,null,null,null,null,null,null,null,null,null,{"$f":"IF(AH73=\"\",\"\",VLOOKUP(AH73,asset_owner[],2,FALSE))","v":""},null,{"$f":"IF(AJ73=\"\",\"\",VLOOKUP(AJ73,surface_binder[],2,FALSE))","v":""},null,null,{"$f":"IF(AM73=\"\",\"\",VLOOKUP(AM73,adhesion_agent[],2,FALSE))","v":""},null,null,{"$f":"IF(AP73=\"\",\"\",VLOOKUP(AP73,additive_type[],2,FALSE))","v":""},null,null,{"$f":"IF(AS73=\"\",\"\",VLOOKUP(AS73,polymer_type[],2,FALSE))","v":""},null,null,null,null,null,null,{"$f":"IF(AZ73=\"\",\"\",VLOOKUP(AZ73,organisation[],2,FALSE))","v":""},null,null,{"$f":"IF(BC73=\"\",\"\",VLOOKUP(BC73,activity[],2,FALSE))","v":""},null,null,null,null,null,null,{"$f":"IF(BJ73=\"\",\"\",VLOOKUP(BJ73,recycle_component[],2,FALSE))","v":""},null,null,null,null,null,null,null,null,null,{"$f":"IF(BT73=\"\",\"\",VLOOKUP(BT73,condition[],2,FALSE))","v":""}]
["null","null",null,null,null,null,null,{"$f":"IF(G74=\"\",\"\",VLOOKUP(G74,surface_material[],2,FALSE))","v":""},null,null,{"$f":"IF(J74=\"\",\"\",VLOOKUP(J74,surface_specification[],2,FALSE))","v":""},null,{"$f":"IF(L74=\"\",\"\",VLOOKUP(L74,surface_reason[],2,FALSE))","v":""},null,null,null,null,null,null,null,null,null,null,null,null,null,null,null,null,null,null,null,null,null,{"$f":"IF(AH74=\"\",\"\",VLOOKUP(AH74,asset_owner[],2,FALSE))","v":""},null,{"$f":"IF(AJ74=\"\",\"\",VLOOKUP(AJ74,surface_binder[],2,FALSE))","v":""},null,null,{"$f":"IF(AM74=\"\",\"\",VLOOKUP(AM74,adhesion_agent[],2,FALSE))","v":""},null,null,{"$f":"IF(AP74=\"\",\"\",VLOOKUP(AP74,additive_type[],2,FALSE))","v":""},null,null,{"$f":"IF(AS74=\"\",\"\",VLOOKUP(AS74,polymer_type[],2,FALSE))","v":""},null,null,null,null,null,null,{"$f":"IF(AZ74=\"\",\"\",VLOOKUP(AZ74,organisation[],2,FALSE))","v":""},null,null,{"$f":"IF(BC74=\"\",\"\",VLOOKUP(BC74,activity[],2,FALSE))","v":""},null,null,null,null,null,null,{"$f":"IF(BJ74=\"\",\"\",VLOOKUP(BJ74,recycle_component[],2,FALSE))","v":""},null,null,null,null,null,null,null,null,null,{"$f":"IF(BT74=\"\",\"\",VLOOKUP(BT74,condition[],2,FALSE))","v":""}]
["null","null",null,null,null,null,null,{"$f":"IF(G75=\"\",\"\",VLOOKUP(G75,surface_material[],2,FALSE))","v":""},null,null,{"$f":"IF(J75=\"\",\"\",VLOOKUP(J75,surface_specification[],2,FALSE))","v":""},null,{"$f":"IF(L75=\"\",\"\",VLOOKUP(L75,surface_reason[],2,FALSE))","v":""},null,null,null,null,null,null,null,null,null,null,null,null,null,null,null,null,null,null,null,null,null,{"$f":"IF(AH75=\"\",\"\",VLOOKUP(AH75,asset_owner[],2,FALSE))","v":""},null,{"$f":"IF(AJ75=\"\",\"\",VLOOKUP(AJ75,surface_binder[],2,FALSE))","v":""},null,null,{"$f":"IF(AM75=\"\",\"\",VLOOKUP(AM75,adhesion_agent[],2,FALSE))","v":""},null,null,{"$f":"IF(AP75=\"\",\"\",VLOOKUP(AP75,additive_type[],2,FALSE))","v":""},null,null,{"$f":"IF(AS75=\"\",\"\",VLOOKUP(AS75,polymer_type[],2,FALSE))","v":""},null,null,null,null,null,null,{"$f":"IF(AZ75=\"\",\"\",VLOOKUP(AZ75,organisation[],2,FALSE))","v":""},null,null,{"$f":"IF(BC75=\"\",\"\",VLOOKUP(BC75,activity[],2,FALSE))","v":""},null,null,null,null,null,null,{"$f":"IF(BJ75=\"\",\"\",VLOOKUP(BJ75,recycle_component[],2,FALSE))","v":""},null,null,null,null,null,null,null,null,null,{"$f":"IF(BT75=\"\",\"\",VLOOKUP(BT75,condition[],2,FALSE))","v":""}]
["null","null",null,null,null,null,null,{"$f":"IF(G76=\"\",\"\",VLOOKUP(G76,surface_material[],2,FALSE))","v":""},null,null,{"$f":"IF(J76=\"\",\"\",VLOOKUP(J76,surface_specification[],2,FALSE))","v":""},null,{"$f":"IF(L76=\"\",\"\",VLOOKUP(L76,surface_reason[],2,FALSE))","v":""},null,null,null,null,null,null,null,null,null,null,null,null,null,null,null,null,null,null,null,null,null,{"$f":"IF(AH76=\"\",\"\",VLOOKUP(AH76,asset_owner[],2,FALSE))","v":""},null,{"$f":"IF(AJ76=\"\",\"\",VLOOKUP(AJ76,surface_binder[],2,FALSE))","v":""},null,null,{"$f":"IF(AM76=\"\",\"\",VLOOKUP(AM76,adhesion_agent[],2,FALSE))","v":""},null,null,{"$f":"IF(AP76=\"\",\"\",VLOOKUP(AP76,additive_type[],2,FALSE))","v":""},null,null,{"$f":"IF(AS76=\"\",\"\",VLOOKUP(AS76,polymer_type[],2,FALSE))","v":""},null,null,null,null,null,null,{"$f":"IF(AZ76=\"\",\"\",VLOOKUP(AZ76,organisation[],2,FALSE))","v":""},null,null,{"$f":"IF(BC76=\"\",\"\",VLOOKUP(BC76,activity[],2,FALSE))","v":""},null,null,null,null,null,null,{"$f":"IF(BJ76=\"\",\"\",VLOOKUP(BJ76,recycle_component[],2,FALSE))","v":""},null,null,null,null,null,null,null,null,null,{"$f":"IF(BT76=\"\",\"\",VLOOKUP(BT76,condition[],2,FALSE))","v":""}]
["null","null",null,null,null,null,null,{"$f":"IF(G77=\"\",\"\",VLOOKUP(G77,surface_material[],2,FALSE))","v":""},null,null,{"$f":"IF(J77=\"\",\"\",VLOOKUP(J77,surface_specification[],2,FALSE))","v":""},null,{"$f":"IF(L77=\"\",\"\",VLOOKUP(L77,surface_reason[],2,FALSE))","v":""},null,null,null,null,null,null,null,null,null,null,null,null,null,null,null,null,null,null,null,null,null,{"$f":"IF(AH77=\"\",\"\",VLOOKUP(AH77,asset_owner[],2,FALSE))","v":""},null,{"$f":"IF(AJ77=\"\",\"\",VLOOKUP(AJ77,surface_binder[],2,FALSE))","v":""},null,null,{"$f":"IF(AM77=\"\",\"\",VLOOKUP(AM77,adhesion_agent[],2,FALSE))","v":""},null,null,{"$f":"IF(AP77=\"\",\"\",VLOOKUP(AP77,additive_type[],2,FALSE))","v":""},null,null,{"$f":"IF(AS77=\"\",\"\",VLOOKUP(AS77,polymer_type[],2,FALSE))","v":""},null,null,null,null,null,null,{"$f":"IF(AZ77=\"\",\"\",VLOOKUP(AZ77,organisation[],2,FALSE))","v":""},null,null,{"$f":"IF(BC77=\"\",\"\",VLOOKUP(BC77,activity[],2,FALSE))","v":""},null,null,null,null,null,null,{"$f":"IF(BJ77=\"\",\"\",VLOOKUP(BJ77,recycle_component[],2,FALSE))","v":""},null,null,null,null,null,null,null,null,null,{"$f":"IF(BT77=\"\",\"\",VLOOKUP(BT77,condition[],2,FALSE))","v":""}]
["null","null",null,null,null,null,null,{"$f":"IF(G78=\"\",\"\",VLOOKUP(G78,surface_material[],2,FALSE))","v":""},null,null,{"$f":"IF(J78=\"\",\"\",VLOOKUP(J78,surface_specification[],2,FALSE))","v":""},null,{"$f":"IF(L78=\"\",\"\",VLOOKUP(L78,surface_reason[],2,FALSE))","v":""},null,null,null,null,null,null,null,null,null,null,null,null,null,null,null,null,null,null,null,null,null,{"$f":"IF(AH78=\"\",\"\",VLOOKUP(AH78,asset_owner[],2,FALSE))","v":""},null,{"$f":"IF(AJ78=\"\",\"\",VLOOKUP(AJ78,surface_binder[],2,FALSE))","v":""},null,null,{"$f":"IF(AM78=\"\",\"\",VLOOKUP(AM78,adhesion_agent[],2,FALSE))","v":""},null,null,{"$f":"IF(AP78=\"\",\"\",VLOOKUP(AP78,additive_type[],2,FALSE))","v":""},null,null,{"$f":"IF(AS78=\"\",\"\",VLOOKUP(AS78,polymer_type[],2,FALSE))","v":""},null,null,null,null,null,null,{"$f":"IF(AZ78=\"\",\"\",VLOOKUP(AZ78,organisation[],2,FALSE))","v":""},null,null,{"$f":"IF(BC78=\"\",\"\",VLOOKUP(BC78,activity[],2,FALSE))","v":""},null,null,null,null,null,null,{"$f":"IF(BJ78=\"\",\"\",VLOOKUP(BJ78,recycle_component[],2,FALSE))","v":""},null,null,null,null,null,null,null,null,null,{"$f":"IF(BT78=\"\",\"\",VLOOKUP(BT78,condition[],2,FALSE))","v":""}]
["null","null",null,null,null,null,null,{"$f":"IF(G79=\"\",\"\",VLOOKUP(G79,surface_material[],2,FALSE))","v":""},null,null,{"$f":"IF(J79=\"\",\"\",VLOOKUP(J79,surface_specification[],2,FALSE))","v":""},null,{"$f":"IF(L79=\"\",\"\",VLOOKUP(L79,surface_reason[],2,FALSE))","v":""},null,null,null,null,null,null,null,null,null,null,null,null,null,null,null,null,null,null,null,null,null,{"$f":"IF(AH79=\"\",\"\",VLOOKUP(AH79,asset_owner[],2,FALSE))","v":""},null,{"$f":"IF(AJ79=\"\",\"\",VLOOKUP(AJ79,surface_binder[],2,FALSE))","v":""},null,null,{"$f":"IF(AM79=\"\",\"\",VLOOKUP(AM79,adhesion_agent[],2,FALSE))","v":""},null,null,{"$f":"IF(AP79=\"\",\"\",VLOOKUP(AP79,additive_type[],2,FALSE))","v":""},null,null,{"$f":"IF(AS79=\"\",\"\",VLOOKUP(AS79,polymer_type[],2,FALSE))","v":""},null,null,null,null,null,null,{"$f":"IF(AZ79=\"\",\"\",VLOOKUP(AZ79,organisation[],2,FALSE))","v":""},null,null,{"$f":"IF(BC79=\"\",\"\",VLOOKUP(BC79,activity[],2,FALSE))","v":""},null,null,null,null,null,null,{"$f":"IF(BJ79=\"\",\"\",VLOOKUP(BJ79,recycle_component[],2,FALSE))","v":""},null,null,null,null,null,null,null,null,null,{"$f":"IF(BT79=\"\",\"\",VLOOKUP(BT79,condition[],2,FALSE))","v":""}]
["null","null",null,null,null,null,null,{"$f":"IF(G80=\"\",\"\",VLOOKUP(G80,surface_material[],2,FALSE))","v":""},null,null,{"$f":"IF(J80=\"\",\"\",VLOOKUP(J80,surface_specification[],2,FALSE))","v":""},null,{"$f":"IF(L80=\"\",\"\",VLOOKUP(L80,surface_reason[],2,FALSE))","v":""},null,null,null,null,null,null,null,null,null,null,null,null,null,null,null,null,null,null,null,null,null,{"$f":"IF(AH80=\"\",\"\",VLOOKUP(AH80,asset_owner[],2,FALSE))","v":""},null,{"$f":"IF(AJ80=\"\",\"\",VLOOKUP(AJ80,surface_binder[],2,FALSE))","v":""},null,null,{"$f":"IF(AM80=\"\",\"\",VLOOKUP(AM80,adhesion_agent[],2,FALSE))","v":""},null,null,{"$f":"IF(AP80=\"\",\"\",VLOOKUP(AP80,additive_type[],2,FALSE))","v":""},null,null,{"$f":"IF(AS80=\"\",\"\",VLOOKUP(AS80,polymer_type[],2,FALSE))","v":""},null,null,null,null,null,null,{"$f":"IF(AZ80=\"\",\"\",VLOOKUP(AZ80,organisation[],2,FALSE))","v":""},null,null,{"$f":"IF(BC80=\"\",\"\",VLOOKUP(BC80,activity[],2,FALSE))","v":""},null,null,null,null,null,null,{"$f":"IF(BJ80=\"\",\"\",VLOOKUP(BJ80,recycle_component[],2,FALSE))","v":""},null,null,null,null,null,null,null,null,null,{"$f":"IF(BT80=\"\",\"\",VLOOKUP(BT80,condition[],2,FALSE))","v":""}]
["null","null",null,null,null,null,null,{"$f":"IF(G81=\"\",\"\",VLOOKUP(G81,surface_material[],2,FALSE))","v":""},null,null,{"$f":"IF(J81=\"\",\"\",VLOOKUP(J81,surface_specification[],2,FALSE))","v":""},null,{"$f":"IF(L81=\"\",\"\",VLOOKUP(L81,surface_reason[],2,FALSE))","v":""},null,null,null,null,null,null,null,null,null,null,null,null,null,null,null,null,null,null,null,null,null,{"$f":"IF(AH81=\"\",\"\",VLOOKUP(AH81,asset_owner[],2,FALSE))","v":""},null,{"$f":"IF(AJ81=\"\",\"\",VLOOKUP(AJ81,surface_binder[],2,FALSE))","v":""},null,null,{"$f":"IF(AM81=\"\",\"\",VLOOKUP(AM81,adhesion_agent[],2,FALSE))","v":""},null,null,{"$f":"IF(AP81=\"\",\"\",VLOOKUP(AP81,additive_type[],2,FALSE))","v":""},null,null,{"$f":"IF(AS81=\"\",\"\",VLOOKUP(AS81,polymer_type[],2,FALSE))","v":""},null,null,null,null,null,null,{"$f":"IF(AZ81=\"\",\"\",VLOOKUP(AZ81,organisation[],2,FALSE))","v":""},null,null,{"$f":"IF(BC81=\"\",\"\",VLOOKUP(BC81,activity[],2,FALSE))","v":""},null,null,null,null,null,null,{"$f":"IF(BJ81=\"\",\"\",VLOOKUP(BJ81,recycle_component[],2,FALSE))","v":""},null,null,null,null,null,null,null,null,null,{"$f":"IF(BT81=\"\",\"\",VLOOKUP(BT81,condition[],2,FALSE))","v":""}]
["null","null",null,null,null,null,null,{"$f":"IF(G82=\"\",\"\",VLOOKUP(G82,surface_material[],2,FALSE))","v":""},null,null,{"$f":"IF(J82=\"\",\"\",VLOOKUP(J82,surface_specification[],2,FALSE))","v":""},null,{"$f":"IF(L82=\"\",\"\",VLOOKUP(L82,surface_reason[],2,FALSE))","v":""},null,null,null,null,null,null,null,null,null,null,null,null,null,null,null,null,null,null,null,null,null,{"$f":"IF(AH82=\"\",\"\",VLOOKUP(AH82,asset_owner[],2,FALSE))","v":""},null,{"$f":"IF(AJ82=\"\",\"\",VLOOKUP(AJ82,surface_binder[],2,FALSE))","v":""},null,null,{"$f":"IF(AM82=\"\",\"\",VLOOKUP(AM82,adhesion_agent[],2,FALSE))","v":""},null,null,{"$f":"IF(AP82=\"\",\"\",VLOOKUP(AP82,additive_type[],2,FALSE))","v":""},null,null,{"$f":"IF(AS82=\"\",\"\",VLOOKUP(AS82,polymer_type[],2,FALSE))","v":""},null,null,null,null,null,null,{"$f":"IF(AZ82=\"\",\"\",VLOOKUP(AZ82,organisation[],2,FALSE))","v":""},null,null,{"$f":"IF(BC82=\"\",\"\",VLOOKUP(BC82,activity[],2,FALSE))","v":""},null,null,null,null,null,null,{"$f":"IF(BJ82=\"\",\"\",VLOOKUP(BJ82,recycle_component[],2,FALSE))","v":""},null,null,null,null,null,null,null,null,null,{"$f":"IF(BT82=\"\",\"\",VLOOKUP(BT82,condition[],2,FALSE))","v":""}]
["null","null",null,null,null,null,null,{"$f":"IF(G83=\"\",\"\",VLOOKUP(G83,surface_material[],2,FALSE))","v":""},null,null,{"$f":"IF(J83=\"\",\"\",VLOOKUP(J83,surface_specification[],2,FALSE))","v":""},null,{"$f":"IF(L83=\"\",\"\",VLOOKUP(L83,surface_reason[],2,FALSE))","v":""},null,null,null,null,null,null,null,null,null,null,null,null,null,null,null,null,null,null,null,null,null,{"$f":"IF(AH83=\"\",\"\",VLOOKUP(AH83,asset_owner[],2,FALSE))","v":""},null,{"$f":"IF(AJ83=\"\",\"\",VLOOKUP(AJ83,surface_binder[],2,FALSE))","v":""},null,null,{"$f":"IF(AM83=\"\",\"\",VLOOKUP(AM83,adhesion_agent[],2,FALSE))","v":""},null,null,{"$f":"IF(AP83=\"\",\"\",VLOOKUP(AP83,additive_type[],2,FALSE))","v":""},null,null,{"$f":"IF(AS83=\"\",\"\",VLOOKUP(AS83,polymer_type[],2,FALSE))","v":""},null,null,null,null,null,null,{"$f":"IF(AZ83=\"\",\"\",VLOOKUP(AZ83,organisation[],2,FALSE))","v":""},null,null,{"$f":"IF(BC83=\"\",\"\",VLOOKUP(BC83,activity[],2,FALSE))","v":""},null,null,null,null,null,null,{"$f":"IF(BJ83=\"\",\"\",VLOOKUP(BJ83,recycle_component[],2,FALSE))","v":""},null,null,null,null,null,null,null,null,null,{"$f":"IF(BT83=\"\",\"\",VLOOKUP(BT83,condition[],2,FALSE))","v":""}]
["null","null",null,null,null,null,null,{"$f":"IF(G84=\"\",\"\",VLOOKUP(G84,surface_material[],2,FALSE))","v":""},null,null,{"$f":"IF(J84=\"\",\"\",VLOOKUP(J84,surface_specification[],2,FALSE))","v":""},null,{"$f":"IF(L84=\"\",\"\",VLOOKUP(L84,surface_reason[],2,FALSE))","v":""},null,null,null,null,null,null,null,null,null,null,null,null,null,null,null,null,null,null,null,null,null,{"$f":"IF(AH84=\"\",\"\",VLOOKUP(AH84,asset_owner[],2,FALSE))","v":""},null,{"$f":"IF(AJ84=\"\",\"\",VLOOKUP(AJ84,surface_binder[],2,FALSE))","v":""},null,null,{"$f":"IF(AM84=\"\",\"\",VLOOKUP(AM84,adhesion_agent[],2,FALSE))","v":""},null,null,{"$f":"IF(AP84=\"\",\"\",VLOOKUP(AP84,additive_type[],2,FALSE))","v":""},null,null,{"$f":"IF(AS84=\"\",\"\",VLOOKUP(AS84,polymer_type[],2,FALSE))","v":""},null,null,null,null,null,null,{"$f":"IF(AZ84=\"\",\"\",VLOOKUP(AZ84,organisation[],2,FALSE))","v":""},null,null,{"$f":"IF(BC84=\"\",\"\",VLOOKUP(BC84,activity[],2,FALSE))","v":""},null,null,null,null,null,null,{"$f":"IF(BJ84=\"\",\"\",VLOOKUP(BJ84,recycle_component[],2,FALSE))","v":""},null,null,null,null,null,null,null,null,null,{"$f":"IF(BT84=\"\",\"\",VLOOKUP(BT84,condition[],2,FALSE))","v":""}]
["null","null",null,null,null,null,null,{"$f":"IF(G85=\"\",\"\",VLOOKUP(G85,surface_material[],2,FALSE))","v":""},null,null,{"$f":"IF(J85=\"\",\"\",VLOOKUP(J85,surface_specification[],2,FALSE))","v":""},null,{"$f":"IF(L85=\"\",\"\",VLOOKUP(L85,surface_reason[],2,FALSE))","v":""},null,null,null,null,null,null,null,null,null,null,null,null,null,null,null,null,null,null,null,null,null,{"$f":"IF(AH85=\"\",\"\",VLOOKUP(AH85,asset_owner[],2,FALSE))","v":""},null,{"$f":"IF(AJ85=\"\",\"\",VLOOKUP(AJ85,surface_binder[],2,FALSE))","v":""},null,null,{"$f":"IF(AM85=\"\",\"\",VLOOKUP(AM85,adhesion_agent[],2,FALSE))","v":""},null,null,{"$f":"IF(AP85=\"\",\"\",VLOOKUP(AP85,additive_type[],2,FALSE))","v":""},null,null,{"$f":"IF(AS85=\"\",\"\",VLOOKUP(AS85,polymer_type[],2,FALSE))","v":""},null,null,null,null,null,null,{"$f":"IF(AZ85=\"\",\"\",VLOOKUP(AZ85,organisation[],2,FALSE))","v":""},null,null,{"$f":"IF(BC85=\"\",\"\",VLOOKUP(BC85,activity[],2,FALSE))","v":""},null,null,null,null,null,null,{"$f":"IF(BJ85=\"\",\"\",VLOOKUP(BJ85,recycle_component[],2,FALSE))","v":""},null,null,null,null,null,null,null,null,null,{"$f":"IF(BT85=\"\",\"\",VLOOKUP(BT85,condition[],2,FALSE))","v":""}]
["null","null",null,null,null,null,null,{"$f":"IF(G86=\"\",\"\",VLOOKUP(G86,surface_material[],2,FALSE))","v":""},null,null,{"$f":"IF(J86=\"\",\"\",VLOOKUP(J86,surface_specification[],2,FALSE))","v":""},null,{"$f":"IF(L86=\"\",\"\",VLOOKUP(L86,surface_reason[],2,FALSE))","v":""},null,null,null,null,null,null,null,null,null,null,null,null,null,null,null,null,null,null,null,null,null,{"$f":"IF(AH86=\"\",\"\",VLOOKUP(AH86,asset_owner[],2,FALSE))","v":""},null,{"$f":"IF(AJ86=\"\",\"\",VLOOKUP(AJ86,surface_binder[],2,FALSE))","v":""},null,null,{"$f":"IF(AM86=\"\",\"\",VLOOKUP(AM86,adhesion_agent[],2,FALSE))","v":""},null,null,{"$f":"IF(AP86=\"\",\"\",VLOOKUP(AP86,additive_type[],2,FALSE))","v":""},null,null,{"$f":"IF(AS86=\"\",\"\",VLOOKUP(AS86,polymer_type[],2,FALSE))","v":""},null,null,null,null,null,null,{"$f":"IF(AZ86=\"\",\"\",VLOOKUP(AZ86,organisation[],2,FALSE))","v":""},null,null,{"$f":"IF(BC86=\"\",\"\",VLOOKUP(BC86,activity[],2,FALSE))","v":""},null,null,null,null,null,null,{"$f":"IF(BJ86=\"\",\"\",VLOOKUP(BJ86,recycle_component[],2,FALSE))","v":""},null,null,null,null,null,null,null,null,null,{"$f":"IF(BT86=\"\",\"\",VLOOKUP(BT86,condition[],2,FALSE))","v":""}]
["null","null",null,null,null,null,null,{"$f":"IF(G87=\"\",\"\",VLOOKUP(G87,surface_material[],2,FALSE))","v":""},null,null,{"$f":"IF(J87=\"\",\"\",VLOOKUP(J87,surface_specification[],2,FALSE))","v":""},null,{"$f":"IF(L87=\"\",\"\",VLOOKUP(L87,surface_reason[],2,FALSE))","v":""},null,null,null,null,null,null,null,null,null,null,null,null,null,null,null,null,null,null,null,null,null,{"$f":"IF(AH87=\"\",\"\",VLOOKUP(AH87,asset_owner[],2,FALSE))","v":""},null,{"$f":"IF(AJ87=\"\",\"\",VLOOKUP(AJ87,surface_binder[],2,FALSE))","v":""},null,null,{"$f":"IF(AM87=\"\",\"\",VLOOKUP(AM87,adhesion_agent[],2,FALSE))","v":""},null,null,{"$f":"IF(AP87=\"\",\"\",VLOOKUP(AP87,additive_type[],2,FALSE))","v":""},null,null,{"$f":"IF(AS87=\"\",\"\",VLOOKUP(AS87,polymer_type[],2,FALSE))","v":""},null,null,null,null,null,null,{"$f":"IF(AZ87=\"\",\"\",VLOOKUP(AZ87,organisation[],2,FALSE))","v":""},null,null,{"$f":"IF(BC87=\"\",\"\",VLOOKUP(BC87,activity[],2,FALSE))","v":""},null,null,null,null,null,null,{"$f":"IF(BJ87=\"\",\"\",VLOOKUP(BJ87,recycle_component[],2,FALSE))","v":""},null,null,null,null,null,null,null,null,null,{"$f":"IF(BT87=\"\",\"\",VLOOKUP(BT87,condition[],2,FALSE))","v":""}]
["null","null",null,null,null,null,null,{"$f":"IF(G88=\"\",\"\",VLOOKUP(G88,surface_material[],2,FALSE))","v":""},null,null,{"$f":"IF(J88=\"\",\"\",VLOOKUP(J88,surface_specification[],2,FALSE))","v":""},null,{"$f":"IF(L88=\"\",\"\",VLOOKUP(L88,surface_reason[],2,FALSE))","v":""},null,null,null,null,null,null,null,null,null,null,null,null,null,null,null,null,null,null,null,null,null,{"$f":"IF(AH88=\"\",\"\",VLOOKUP(AH88,asset_owner[],2,FALSE))","v":""},null,{"$f":"IF(AJ88=\"\",\"\",VLOOKUP(AJ88,surface_binder[],2,FALSE))","v":""},null,null,{"$f":"IF(AM88=\"\",\"\",VLOOKUP(AM88,adhesion_agent[],2,FALSE))","v":""},null,null,{"$f":"IF(AP88=\"\",\"\",VLOOKUP(AP88,additive_type[],2,FALSE))","v":""},null,null,{"$f":"IF(AS88=\"\",\"\",VLOOKUP(AS88,polymer_type[],2,FALSE))","v":""},null,null,null,null,null,null,{"$f":"IF(AZ88=\"\",\"\",VLOOKUP(AZ88,organisation[],2,FALSE))","v":""},null,null,{"$f":"IF(BC88=\"\",\"\",VLOOKUP(BC88,activity[],2,FALSE))","v":""},null,null,null,null,null,null,{"$f":"IF(BJ88=\"\",\"\",VLOOKUP(BJ88,recycle_component[],2,FALSE))","v":""},null,null,null,null,null,null,null,null,null,{"$f":"IF(BT88=\"\",\"\",VLOOKUP(BT88,condition[],2,FALSE))","v":""}]
["null","null",null,null,null,null,null,{"$f":"IF(G89=\"\",\"\",VLOOKUP(G89,surface_material[],2,FALSE))","v":""},null,null,{"$f":"IF(J89=\"\",\"\",VLOOKUP(J89,surface_specification[],2,FALSE))","v":""},null,{"$f":"IF(L89=\"\",\"\",VLOOKUP(L89,surface_reason[],2,FALSE))","v":""},null,null,null,null,null,null,null,null,null,null,null,null,null,null,null,null,null,null,null,null,null,{"$f":"IF(AH89=\"\",\"\",VLOOKUP(AH89,asset_owner[],2,FALSE))","v":""},null,{"$f":"IF(AJ89=\"\",\"\",VLOOKUP(AJ89,surface_binder[],2,FALSE))","v":""},null,null,{"$f":"IF(AM89=\"\",\"\",VLOOKUP(AM89,adhesion_agent[],2,FALSE))","v":""},null,null,{"$f":"IF(AP89=\"\",\"\",VLOOKUP(AP89,additive_type[],2,FALSE))","v":""},null,null,{"$f":"IF(AS89=\"\",\"\",VLOOKUP(AS89,polymer_type[],2,FALSE))","v":""},null,null,null,null,null,null,{"$f":"IF(AZ89=\"\",\"\",VLOOKUP(AZ89,organisation[],2,FALSE))","v":""},null,null,{"$f":"IF(BC89=\"\",\"\",VLOOKUP(BC89,activity[],2,FALSE))","v":""},null,null,null,null,null,null,{"$f":"IF(BJ89=\"\",\"\",VLOOKUP(BJ89,recycle_component[],2,FALSE))","v":""},null,null,null,null,null,null,null,null,null,{"$f":"IF(BT89=\"\",\"\",VLOOKUP(BT89,condition[],2,FALSE))","v":""}]
["null","null",null,null,null,null,null,{"$f":"IF(G90=\"\",\"\",VLOOKUP(G90,surface_material[],2,FALSE))","v":""},null,null,{"$f":"IF(J90=\"\",\"\",VLOOKUP(J90,surface_specification[],2,FALSE))","v":""},null,{"$f":"IF(L90=\"\",\"\",VLOOKUP(L90,surface_reason[],2,FALSE))","v":""},null,null,null,null,null,null,null,null,null,null,null,null,null,null,null,null,null,null,null,null,null,{"$f":"IF(AH90=\"\",\"\",VLOOKUP(AH90,asset_owner[],2,FALSE))","v":""},null,{"$f":"IF(AJ90=\"\",\"\",VLOOKUP(AJ90,surface_binder[],2,FALSE))","v":""},null,null,{"$f":"IF(AM90=\"\",\"\",VLOOKUP(AM90,adhesion_agent[],2,FALSE))","v":""},null,null,{"$f":"IF(AP90=\"\",\"\",VLOOKUP(AP90,additive_type[],2,FALSE))","v":""},null,null,{"$f":"IF(AS90=\"\",\"\",VLOOKUP(AS90,polymer_type[],2,FALSE))","v":""},null,null,null,null,null,null,{"$f":"IF(AZ90=\"\",\"\",VLOOKUP(AZ90,organisation[],2,FALSE))","v":""},null,null,{"$f":"IF(BC90=\"\",\"\",VLOOKUP(BC90,activity[],2,FALSE))","v":""},null,null,null,null,null,null,{"$f":"IF(BJ90=\"\",\"\",VLOOKUP(BJ90,recycle_component[],2,FALSE))","v":""},null,null,null,null,null,null,null,null,null,{"$f":"IF(BT90=\"\",\"\",VLOOKUP(BT90,condition[],2,FALSE))","v":""}]
["null","null",null,null,null,null,null,{"$f":"IF(G91=\"\",\"\",VLOOKUP(G91,surface_material[],2,FALSE))","v":""},null,null,{"$f":"IF(J91=\"\",\"\",VLOOKUP(J91,surface_specification[],2,FALSE))","v":""},null,{"$f":"IF(L91=\"\",\"\",VLOOKUP(L91,surface_reason[],2,FALSE))","v":""},null,null,null,null,null,null,null,null,null,null,null,null,null,null,null,null,null,null,null,null,null,{"$f":"IF(AH91=\"\",\"\",VLOOKUP(AH91,asset_owner[],2,FALSE))","v":""},null,{"$f":"IF(AJ91=\"\",\"\",VLOOKUP(AJ91,surface_binder[],2,FALSE))","v":""},null,null,{"$f":"IF(AM91=\"\",\"\",VLOOKUP(AM91,adhesion_agent[],2,FALSE))","v":""},null,null,{"$f":"IF(AP91=\"\",\"\",VLOOKUP(AP91,additive_type[],2,FALSE))","v":""},null,null,{"$f":"IF(AS91=\"\",\"\",VLOOKUP(AS91,polymer_type[],2,FALSE))","v":""},null,null,null,null,null,null,{"$f":"IF(AZ91=\"\",\"\",VLOOKUP(AZ91,organisation[],2,FALSE))","v":""},null,null,{"$f":"IF(BC91=\"\",\"\",VLOOKUP(BC91,activity[],2,FALSE))","v":""},null,null,null,null,null,null,{"$f":"IF(BJ91=\"\",\"\",VLOOKUP(BJ91,recycle_component[],2,FALSE))","v":""},null,null,null,null,null,null,null,null,null,{"$f":"IF(BT91=\"\",\"\",VLOOKUP(BT91,condition[],2,FALSE))","v":""}]
["null","null",null,null,null,null,null,{"$f":"IF(G92=\"\",\"\",VLOOKUP(G92,surface_material[],2,FALSE))","v":""},null,null,{"$f":"IF(J92=\"\",\"\",VLOOKUP(J92,surface_specification[],2,FALSE))","v":""},null,{"$f":"IF(L92=\"\",\"\",VLOOKUP(L92,surface_reason[],2,FALSE))","v":""},null,null,null,null,null,null,null,null,null,null,null,null,null,null,null,null,null,null,null,null,null,{"$f":"IF(AH92=\"\",\"\",VLOOKUP(AH92,asset_owner[],2,FALSE))","v":""},null,{"$f":"IF(AJ92=\"\",\"\",VLOOKUP(AJ92,surface_binder[],2,FALSE))","v":""},null,null,{"$f":"IF(AM92=\"\",\"\",VLOOKUP(AM92,adhesion_agent[],2,FALSE))","v":""},null,null,{"$f":"IF(AP92=\"\",\"\",VLOOKUP(AP92,additive_type[],2,FALSE))","v":""},null,null,{"$f":"IF(AS92=\"\",\"\",VLOOKUP(AS92,polymer_type[],2,FALSE))","v":""},null,null,null,null,null,null,{"$f":"IF(AZ92=\"\",\"\",VLOOKUP(AZ92,organisation[],2,FALSE))","v":""},null,null,{"$f":"IF(BC92=\"\",\"\",VLOOKUP(BC92,activity[],2,FALSE))","v":""},null,null,null,null,null,null,{"$f":"IF(BJ92=\"\",\"\",VLOOKUP(BJ92,recycle_component[],2,FALSE))","v":""},null,null,null,null,null,null,null,null,null,{"$f":"IF(BT92=\"\",\"\",VLOOKUP(BT92,condition[],2,FALSE))","v":""}]
["null","null",null,null,null,null,null,{"$f":"IF(G93=\"\",\"\",VLOOKUP(G93,surface_material[],2,FALSE))","v":""},null,null,{"$f":"IF(J93=\"\",\"\",VLOOKUP(J93,surface_specification[],2,FALSE))","v":""},null,{"$f":"IF(L93=\"\",\"\",VLOOKUP(L93,surface_reason[],2,FALSE))","v":""},null,null,null,null,null,null,null,null,null,null,null,null,null,null,null,null,null,null,null,null,null,{"$f":"IF(AH93=\"\",\"\",VLOOKUP(AH93,asset_owner[],2,FALSE))","v":""},null,{"$f":"IF(AJ93=\"\",\"\",VLOOKUP(AJ93,surface_binder[],2,FALSE))","v":""},null,null,{"$f":"IF(AM93=\"\",\"\",VLOOKUP(AM93,adhesion_agent[],2,FALSE))","v":""},null,null,{"$f":"IF(AP93=\"\",\"\",VLOOKUP(AP93,additive_type[],2,FALSE))","v":""},null,null,{"$f":"IF(AS93=\"\",\"\",VLOOKUP(AS93,polymer_type[],2,FALSE))","v":""},null,null,null,null,null,null,{"$f":"IF(AZ93=\"\",\"\",VLOOKUP(AZ93,organisation[],2,FALSE))","v":""},null,null,{"$f":"IF(BC93=\"\",\"\",VLOOKUP(BC93,activity[],2,FALSE))","v":""},null,null,null,null,null,null,{"$f":"IF(BJ93=\"\",\"\",VLOOKUP(BJ93,recycle_component[],2,FALSE))","v":""},null,null,null,null,null,null,null,null,null,{"$f":"IF(BT93=\"\",\"\",VLOOKUP(BT93,condition[],2,FALSE))","v":""}]
["null","null",null,null,null,null,null,{"$f":"IF(G94=\"\",\"\",VLOOKUP(G94,surface_material[],2,FALSE))","v":""},null,null,{"$f":"IF(J94=\"\",\"\",VLOOKUP(J94,surface_specification[],2,FALSE))","v":""},null,{"$f":"IF(L94=\"\",\"\",VLOOKUP(L94,surface_reason[],2,FALSE))","v":""},null,null,null,null,null,null,null,null,null,null,null,null,null,null,null,null,null,null,null,null,null,{"$f":"IF(AH94=\"\",\"\",VLOOKUP(AH94,asset_owner[],2,FALSE))","v":""},null,{"$f":"IF(AJ94=\"\",\"\",VLOOKUP(AJ94,surface_binder[],2,FALSE))","v":""},null,null,{"$f":"IF(AM94=\"\",\"\",VLOOKUP(AM94,adhesion_agent[],2,FALSE))","v":""},null,null,{"$f":"IF(AP94=\"\",\"\",VLOOKUP(AP94,additive_type[],2,FALSE))","v":""},null,null,{"$f":"IF(AS94=\"\",\"\",VLOOKUP(AS94,polymer_type[],2,FALSE))","v":""},null,null,null,null,null,null,{"$f":"IF(AZ94=\"\",\"\",VLOOKUP(AZ94,organisation[],2,FALSE))","v":""},null,null,{"$f":"IF(BC94=\"\",\"\",VLOOKUP(BC94,activity[],2,FALSE))","v":""},null,null,null,null,null,null,{"$f":"IF(BJ94=\"\",\"\",VLOOKUP(BJ94,recycle_component[],2,FALSE))","v":""},null,null,null,null,null,null,null,null,null,{"$f":"IF(BT94=\"\",\"\",VLOOKUP(BT94,condition[],2,FALSE))","v":""}]
["null","null",null,null,null,null,null,{"$f":"IF(G95=\"\",\"\",VLOOKUP(G95,surface_material[],2,FALSE))","v":""},null,null,{"$f":"IF(J95=\"\",\"\",VLOOKUP(J95,surface_specification[],2,FALSE))","v":""},null,{"$f":"IF(L95=\"\",\"\",VLOOKUP(L95,surface_reason[],2,FALSE))","v":""},null,null,null,null,null,null,null,null,null,null,null,null,null,null,null,null,null,null,null,null,null,{"$f":"IF(AH95=\"\",\"\",VLOOKUP(AH95,asset_owner[],2,FALSE))","v":""},null,{"$f":"IF(AJ95=\"\",\"\",VLOOKUP(AJ95,surface_binder[],2,FALSE))","v":""},null,null,{"$f":"IF(AM95=\"\",\"\",VLOOKUP(AM95,adhesion_agent[],2,FALSE))","v":""},null,null,{"$f":"IF(AP95=\"\",\"\",VLOOKUP(AP95,additive_type[],2,FALSE))","v":""},null,null,{"$f":"IF(AS95=\"\",\"\",VLOOKUP(AS95,polymer_type[],2,FALSE))","v":""},null,null,null,null,null,null,{"$f":"IF(AZ95=\"\",\"\",VLOOKUP(AZ95,organisation[],2,FALSE))","v":""},null,null,{"$f":"IF(BC95=\"\",\"\",VLOOKUP(BC95,activity[],2,FALSE))","v":""},null,null,null,null,null,null,{"$f":"IF(BJ95=\"\",\"\",VLOOKUP(BJ95,recycle_component[],2,FALSE))","v":""},null,null,null,null,null,null,null,null,null,{"$f":"IF(BT95=\"\",\"\",VLOOKUP(BT95,condition[],2,FALSE))","v":""}]
["null","null",null,null,null,null,null,{"$f":"IF(G96=\"\",\"\",VLOOKUP(G96,surface_material[],2,FALSE))","v":""},null,null,{"$f":"IF(J96=\"\",\"\",VLOOKUP(J96,surface_specification[],2,FALSE))","v":""},null,{"$f":"IF(L96=\"\",\"\",VLOOKUP(L96,surface_reason[],2,FALSE))","v":""},null,null,null,null,null,null,null,null,null,null,null,null,null,null,null,null,null,null,null,null,null,{"$f":"IF(AH96=\"\",\"\",VLOOKUP(AH96,asset_owner[],2,FALSE))","v":""},null,{"$f":"IF(AJ96=\"\",\"\",VLOOKUP(AJ96,surface_binder[],2,FALSE))","v":""},null,null,{"$f":"IF(AM96=\"\",\"\",VLOOKUP(AM96,adhesion_agent[],2,FALSE))","v":""},null,null,{"$f":"IF(AP96=\"\",\"\",VLOOKUP(AP96,additive_type[],2,FALSE))","v":""},null,null,{"$f":"IF(AS96=\"\",\"\",VLOOKUP(AS96,polymer_type[],2,FALSE))","v":""},null,null,null,null,null,null,{"$f":"IF(AZ96=\"\",\"\",VLOOKUP(AZ96,organisation[],2,FALSE))","v":""},null,null,{"$f":"IF(BC96=\"\",\"\",VLOOKUP(BC96,activity[],2,FALSE))","v":""},null,null,null,null,null,null,{"$f":"IF(BJ96=\"\",\"\",VLOOKUP(BJ96,recycle_component[],2,FALSE))","v":""},null,null,null,null,null,null,null,null,null,{"$f":"IF(BT96=\"\",\"\",VLOOKUP(BT96,condition[],2,FALSE))","v":""}]
["null","null",null,null,null,null,null,{"$f":"IF(G97=\"\",\"\",VLOOKUP(G97,surface_material[],2,FALSE))","v":""},null,null,{"$f":"IF(J97=\"\",\"\",VLOOKUP(J97,surface_specification[],2,FALSE))","v":""},null,{"$f":"IF(L97=\"\",\"\",VLOOKUP(L97,surface_reason[],2,FALSE))","v":""},null,null,null,null,null,null,null,null,null,null,null,null,null,null,null,null,null,null,null,null,null,{"$f":"IF(AH97=\"\",\"\",VLOOKUP(AH97,asset_owner[],2,FALSE))","v":""},null,{"$f":"IF(AJ97=\"\",\"\",VLOOKUP(AJ97,surface_binder[],2,FALSE))","v":""},null,null,{"$f":"IF(AM97=\"\",\"\",VLOOKUP(AM97,adhesion_agent[],2,FALSE))","v":""},null,null,{"$f":"IF(AP97=\"\",\"\",VLOOKUP(AP97,additive_type[],2,FALSE))","v":""},null,null,{"$f":"IF(AS97=\"\",\"\",VLOOKUP(AS97,polymer_type[],2,FALSE))","v":""},null,null,null,null,null,null,{"$f":"IF(AZ97=\"\",\"\",VLOOKUP(AZ97,organisation[],2,FALSE))","v":""},null,null,{"$f":"IF(BC97=\"\",\"\",VLOOKUP(BC97,activity[],2,FALSE))","v":""},null,null,null,null,null,null,{"$f":"IF(BJ97=\"\",\"\",VLOOKUP(BJ97,recycle_component[],2,FALSE))","v":""},null,null,null,null,null,null,null,null,null,{"$f":"IF(BT97=\"\",\"\",VLOOKUP(BT97,condition[],2,FALSE))","v":""}]
["null","null",null,null,null,null,null,{"$f":"IF(G98=\"\",\"\",VLOOKUP(G98,surface_material[],2,FALSE))","v":""},null,null,{"$f":"IF(J98=\"\",\"\",VLOOKUP(J98,surface_specification[],2,FALSE))","v":""},null,{"$f":"IF(L98=\"\",\"\",VLOOKUP(L98,surface_reason[],2,FALSE))","v":""},null,null,null,null,null,null,null,null,null,null,null,null,null,null,null,null,null,null,null,null,null,{"$f":"IF(AH98=\"\",\"\",VLOOKUP(AH98,asset_owner[],2,FALSE))","v":""},null,{"$f":"IF(AJ98=\"\",\"\",VLOOKUP(AJ98,surface_binder[],2,FALSE))","v":""},null,null,{"$f":"IF(AM98=\"\",\"\",VLOOKUP(AM98,adhesion_agent[],2,FALSE))","v":""},null,null,{"$f":"IF(AP98=\"\",\"\",VLOOKUP(AP98,additive_type[],2,FALSE))","v":""},null,null,{"$f":"IF(AS98=\"\",\"\",VLOOKUP(AS98,polymer_type[],2,FALSE))","v":""},null,null,null,null,null,null,{"$f":"IF(AZ98=\"\",\"\",VLOOKUP(AZ98,organisation[],2,FALSE))","v":""},null,null,{"$f":"IF(BC98=\"\",\"\",VLOOKUP(BC98,activity[],2,FALSE))","v":""},null,null,null,null,null,null,{"$f":"IF(BJ98=\"\",\"\",VLOOKUP(BJ98,recycle_component[],2,FALSE))","v":""},null,null,null,null,null,null,null,null,null,{"$f":"IF(BT98=\"\",\"\",VLOOKUP(BT98,condition[],2,FALSE))","v":""}]
["null","null",null,null,null,null,null,{"$f":"IF(G99=\"\",\"\",VLOOKUP(G99,surface_material[],2,FALSE))","v":""},null,null,{"$f":"IF(J99=\"\",\"\",VLOOKUP(J99,surface_specification[],2,FALSE))","v":""},null,{"$f":"IF(L99=\"\",\"\",VLOOKUP(L99,surface_reason[],2,FALSE))","v":""},null,null,null,null,null,null,null,null,null,null,null,null,null,null,null,null,null,null,null,null,null,{"$f":"IF(AH99=\"\",\"\",VLOOKUP(AH99,asset_owner[],2,FALSE))","v":""},null,{"$f":"IF(AJ99=\"\",\"\",VLOOKUP(AJ99,surface_binder[],2,FALSE))","v":""},null,null,{"$f":"IF(AM99=\"\",\"\",VLOOKUP(AM99,adhesion_agent[],2,FALSE))","v":""},null,null,{"$f":"IF(AP99=\"\",\"\",VLOOKUP(AP99,additive_type[],2,FALSE))","v":""},null,null,{"$f":"IF(AS99=\"\",\"\",VLOOKUP(AS99,polymer_type[],2,FALSE))","v":""},null,null,null,null,null,null,{"$f":"IF(AZ99=\"\",\"\",VLOOKUP(AZ99,organisation[],2,FALSE))","v":""},null,null,{"$f":"IF(BC99=\"\",\"\",VLOOKUP(BC99,activity[],2,FALSE))","v":""},null,null,null,null,null,null,{"$f":"IF(BJ99=\"\",\"\",VLOOKUP(BJ99,recycle_component[],2,FALSE))","v":""},null,null,null,null,null,null,null,null,null,{"$f":"IF(BT99=\"\",\"\",VLOOKUP(BT99,condition[],2,FALSE))","v":""}]
["null","null",null,null,null,null,null,{"$f":"IF(G100=\"\",\"\",VLOOKUP(G100,surface_material[],2,FALSE))","v":""},null,null,{"$f":"IF(J100=\"\",\"\",VLOOKUP(J100,surface_specification[],2,FALSE))","v":""},null,{"$f":"IF(L100=\"\",\"\",VLOOKUP(L100,surface_reason[],2,FALSE))","v":""},null,null,null,null,null,null,null,null,null,null,null,null,null,null,null,null,null,null,null,null,null,{"$f":"IF(AH100=\"\",\"\",VLOOKUP(AH100,asset_owner[],2,FALSE))","v":""},null,{"$f":"IF(AJ100=\"\",\"\",VLOOKUP(AJ100,surface_binder[],2,FALSE))","v":""},null,null,{"$f":"IF(AM100=\"\",\"\",VLOOKUP(AM100,adhesion_agent[],2,FALSE))","v":""},null,null,{"$f":"IF(AP100=\"\",\"\",VLOOKUP(AP100,additive_type[],2,FALSE))","v":""},null,null,{"$f":"IF(AS100=\"\",\"\",VLOOKUP(AS100,polymer_type[],2,FALSE))","v":""},null,null,null,null,null,null,{"$f":"IF(AZ100=\"\",\"\",VLOOKUP(AZ100,organisation[],2,FALSE))","v":""},null,null,{"$f":"IF(BC100=\"\",\"\",VLOOKUP(BC100,activity[],2,FALSE))","v":""},null,null,null,null,null,null,{"$f":"IF(BJ100=\"\",\"\",VLOOKUP(BJ100,recycle_component[],2,FALSE))","v":""},null,null,null,null,null,null,null,null,null,{"$f":"IF(BT100=\"\",\"\",VLOOKUP(BT100,condition[],2,FALSE))","v":""}]

{"sheet":"Lookups","index":1,"n_rows":250,"n_cols":47,"rows_kept":250,"cut":false,"hidden":false,"merged":[]}
["contract name",null,"surface material description","surface material",null,"surface function",null,"surface specification description","surface specification",null,"surface reason description","surface reason",null,"pavement source",null,"asset owner description","asset owner",null,"surface binder description","surface binder",null,"adhesion agent description","adhesion agent",null,"additive type description","additive type",null,"polymer type description","polymer type",null,"cutter type",null,"organisation description","organisation",null,"activity description","activity",null,"work origin",null,"work category",null,"recycle component description","recycle component",null,"condition description","condition"]
["(AMA) AUCK ALLIANCE",null,"Single Coat Seal","1CHIP",null,"1st Coat",null,"Specification for dense graded and stone mastic asphalts.","M10",null,"Cracking","CR",null,"AHAURA",null,"Crown","C",null,"Bitumen 130/150","B130",null,"Aggbind Exp 75","AG75",null,"Cellulose Fibre","CF",null,"Flexiphalt 160A","160A",null,"KERO",null,"3M","3M",null,"Original Construction","OC",null,"AC Inlay",null,"111 - Sealed pavement maintenance",null,"Crumb Rubber","CRBR",null,"Excellent","1"]
["(EC) Marlborough",null,"Two Coat Seal","2CHIP",null,"2nd Coat",null,"Specification for Open Graded Porous Asphalt","P11",null,"First Coat (on new pavement , AWT or rehab)","FC",null,"ALEXANDRA",null,"Local Authority","L",null,"Bitumen 180/200","B180",null,"Aggbind AF","AGAF",null,"Crumb Rubber","CRBR",null,"Flexiphalt 330A","330A",null,"OTHR",null,"Automobile Association","AA",null,"Reconstruction","RC",null,"Basecourse Overlay",null,"140 - Minor events",null,"Glass","GLAS",null,"Good","2"]
["(EC) West Waikato North",null,"Three Coat Seal","3CHIP",null,"Enrichment",null,"Specification for Epoxy Modified Open Graded Porous Asphalt","P11E",null,"Flushing (all loss of macrotexture)","FL",null,"ARAPAE",null,"Private","P",null,"Bitumen 45/55","B45",null,"Bitubind AS18","AS18",null,"Lime","LIME",null,"Flexiphalt 340A","340A",null,"TURP",null,"Auckland Council","ACC",null,"Rehabilitation","RH",null,"Customer LoS roughness maintenance",null,"141 - Emergency works",null,"Marginal Aggregate","MA",null,"Average","3"]
["(EC) West Waikato South",null,"Asphaltic Concrete","AC",null,"Membrane Seal",null,"Performance Based Specification for Reseals","P17",null,"Holding Seal","HS",null,"ASHBURTON",null,null,null,null,"Bitumen 60/70","B60",null,"BP50C","BP50",null,"Natural Rubber Latex","NRLX",null,"Flexiphalt 350A","350A",null,null,null,"Alarm Centre Installation Ltd","ACI",null,"Reseal","RS",null,"Customer LoS rutting maintenance",null,"212 - Sealed road resurfacing",null,"Reclaimed Asphaltic Pavement","RAP",null,"Poor","4"]
["(NOC) BOP East",null,"Dense graded asphalt AC (M/10)","ACM",null,"Pre-levelling",null,"Performance Based Specification for Hotmix Asphalt Wearing Course Surfacing","P23",null,"Polished Stone (from SCRIM)","PS",null,"ASHBURTON RIVER",null,null,null,null,"Bitumen 80/100","B80",null,"Bitran H","BTRN",null,"Plastic - PVC or PET","PLST",null,"Flexiphalt 351A","351A",null,null,null,"Agfirst","AGF",null,null,null,null,"Cycling facilities",null,"214 - Sealed road pavement rehabilitation",null,"Slag","SLAG",null,"Very poor","5"]
["(NOC) BOP West",null,"Sandwich Seal","B/S",null,"Reseal",null,"Pilot Specification for Calcined Bauxite","P25",null,"Ravelling (AC surfaces)","RA",null,"ASHHURST",null,null,null,null,"Emulsion 130/150","E130",null,"Chemcolour 101","C101",null,null,null,null,"Mobilflex","AX14",null,null,null,"Auckland Motorway Alliance","AMA",null,null,null,null,"Efficiency",null,"322 - Replacement of Bridges and Other Structures"]
["(NOC) Central Waikato",null,"Bitumen Bound Macadam","BBM",null,null,null,"Specification for First Coat Sealing - Method Based","P3",null,"Rutting (wheelpath treatment only)","RU",null,"AWAKERI",null,null,null,null,"Emulsion 180/200","E180",null,"Synthecol CC59LT","CC59",null,null,null,null,"PAVEflex SBS High Modified Asphalt Binder","AXH",null,null,null,"Asset Management Engineers Ltd","AME",null,null,null,null,"Emergency works",null,"323 - New roads"]
["(NOC) Coastal Otago",null,"BOLIDT Polyurethane Mix","BOLID",null,null,null,"Specification for Resealing - Method Based","P4",null,"Scabbing","SC",null,"AWAPUNI",null,null,null,null,"Emulsion 80/100","E80",null,"CECA EXP 3747","CECA",null,null,null,null,"PAVEflex SBS Medium Modified Asphalt Binder","AXM",null,null,null,"Asset Management Technicians Ltd","AMT",null,null,null,null,"Foam Bitumen Stabilisation",null,"324 - Road Improvements"]
["(NOC) East Waikato",null,"Capeseal","CAPE",null,null,null,"Construction of Asphaltic Concrete Paving","P9",null,"Second Coat","SE",null,"AWATOTO",null,null,null,null,"Epoxy Resin","EPOX",null,"CECABASE RT BIO 10","CERT",null,null,null,null,"Emulsiphalt 373","E373",null,null,null,"Armitage Systems","ARM",null,null,null,null,"Full Replacement",null,"325 - Seal extension"]
["(NOC) Hawkes Bay",null,"Combination Seal","COMB",null,null,null,"Contract specific Specification for Hotmix Asphalt Wearing Course Surfacing","PCON",null,"Special Surfacings (reason req'd)","SS",null,"BALCLUTHA",null,null,null,null,"Multi Grade Binder","MGB",null,"Dinaram 184","D184",null,null,null,null,"Emulsiphalt 374","E374",null,null,null,"Aspect Solutions Ltd","ASL",null,null,null,null,"Granular Replacement",null,"341 - Minor improvements"]
["(NOC) Manawatu Wanganui",null,"Concrete","CONC",null,null,null,null,null,null,null,null,null,"BALDROCK",null,null,null,null,"Polyurethane","POLY",null,"Dinaram 3747","D374",null,null,null,null,"Emulsiphalt 375","E375",null,null,null,"Auckland System Management","ASM",null,null,null,null,"Heavy Duty Maintenance - NPV option",null,"357 - Resilience improvements"]
["(NOC) NORTH CANTERBURY",null,"Dense graded asphalt DG (M/10)","DGM",null,null,null,null,null,null,null,null,null,"BARTLETTS",null,null,null,null,"Portland Cement","PORT",null,"Rhodoval DA310","DA31",null,null,null,null,"Emoflex C","EFXC",null,null,null,"Auckland Transport","AT2",null,null,null,null,"Minor events",null,"451 - Walking facilities"]
["(NOC) Nelson-Tasman",null,"Enrichment seal over Asphalt","ENRAC",null,null,null,null,null,null,null,null,null,"BEATSONS",null,null,null,null,null,null,null,"Diamin HBG","DHBG",null,null,null,null,"PAVEflex SBR Low Modified 180/200 Emulsion","ERL",null,null,null,"Aspect Technology and Equipment Ltd","ATE",null,null,null,null,"New roads",null,"452 - Cycling facilities"]
["(NOC) Northland",null,"Enrichment seal over chipseal","ENRCS",null,null,null,null,null,null,null,null,null,"BELMONT",null,null,null,null,null,null,null,"Dope MP-2","DMP2",null,null,null,null,"PAVEflex SBR Medium Modified 180/200 Emulsion","ERM",null,null,null,"ARRB Transport Research Ltd","ATR",null,null,null,null,"Non-Base Preservation",null,"998 - Unfunded Third Party Work"]
["(NOC) Otago Central",null,"Epoxy Porous Asphalt (EMOGPA)","EPA",null,null,null,null,null,null,null,null,null,"BERRYS",null,null,null,null,null,null,null,"Duomeen T(Pastille)","DMPL",null,null,null,null,"PAVEflex SBS High Modified 180/200 Emulsion","EXH",null,null,null,"Auckland University","AUN",null,null,null,null,"Pavement Preservation",null,"999 - Unfunded Rework"]
["(NOC) South Canterbury",null,"EpoxyPorousAsphalt High Stren","EPAHS",null,null,null,null,null,null,null,null,null,"BLACK MARBLE",null,null,null,null,null,null,null,"Duomeen T(Paste)","DMPS",null,null,null,null,"PAVEflex SBS Low Modified 180/200 Emulsion","EXL",null,null,null,"Broadspectrum (NZ) Ltd","B(L",null,null,null,null,"Principal's Risk Non-routine maintenance"]
["(NOC) Southland",null,"Epoxy PorousAsphalt HIGH VOIDS","EPAHV",null,null,null,null,null,null,null,null,null,"BLACKHEAD",null,null,null,null,null,null,null,"Diamin OLB","DOLB",null,null,null,null,"PAVEflex SBS Medium Modified 180/200 Emulsion","EXM",null,null,null,"Bri-Ken and Associates Ltd","BAA",null,null,null,null,"Recycle"]
["(NOC) Tairawhiti Roads Northern",null,"Friction Seal","FRIC",null,null,null,null,null,null,null,null,null,"BLENHEIM",null,null,null,null,null,null,null,"Fentamine BE102","F102",null,null,null,null,"Flexiphalt HiFlex","HIFX",null,null,null,"Bartley Consultants Ltd","BAR",null,null,null,null,"Replacement of bridges and other structures"]
["(NOC) Tairawhiti Roads Western",null,"Interlocking concrete blocks","INBLK",null,null,null,null,null,null,null,null,null,"BLUEROCK",null,null,null,null,null,null,null,"Interfacial adhesion","INTF",null,null,null,null,"Flexiphalt HiMod","HIMD",null,null,null,"Bloxam Burnett & Olliver Ltd","BB&",null,null,null,null,"Resilience"]
["(NOC) Taranaki",null,"Locking Coat Seal","LOCK",null,null,null,null,null,null,null,null,null,"BOMBAY MILB",null,null,null,null,null,null,null,"Megamine 100","MGA1",null,null,null,null,"PAVEflex PMB","PMBP",null,null,null,"Beca Infrastructure","BCF",null,null,null,null,"Resilience improvements"]
["(NOC) Wellington",null,"Metal running course","METAL",null,null,null,null,null,null,null,null,null,"BOULDER CREEK",null,null,null,null,null,null,null,"Megamine BA","MGBA",null,null,null,null,"RLA2066/S","RLA",null,null,null,"Buller District Council","BDC",null,null,null,null,"Road improvements"]
["(NOC) West Coast",null,"Open Graded Porous Asphalt","OGPA",null,null,null,null,null,null,null,null,null,"BOYLE RIVER",null,null,null,null,null,null,null,"Redicote N422","N422",null,null,null,null,"Road Science RS 2 Dust Seal","RSDS",null,null,null,"Blacktop","BLA",null,null,null,null,"Routine Maintenance"]
["Milford",null,"HighStrength Open Graded Porou","OGPAH",null,null,null,null,null,null,null,null,null,"BRIXTON",null,null,null,null,null,null,null,"Redicote N561","N561",null,null,null,null,"Road Science RS 4 Heavy Duty","RSHD",null,null,null,"Beca Ltd.","BLT",null,null,null,null,"Safety"]
[null,null,"High Voids Open Graded Porous","OGPAV",null,null,null,null,null,null,null,null,null,"BROOKBY",null,null,null,null,null,null,null,"Redicote N606","N606",null,null,null,null,"Road Science RS 4 Heavy Duty Extreme","RSHE",null,null,null,"Civil Assist Ltd","CAL",null,null,null,null,"Seal extension"]
[null,null,"Prime Coat","PSEAL",null,null,null,null,null,null,null,null,null,"BULLOCK",null,null,null,null,null,null,null,"Redicote N893","N893",null,null,null,null,"Road Science RS 3 High Strength","RSHG",null,null,null,"Christchurch City Council","CCC",null,null,null,null,"Skid Resistance"]
[null,null,"Premium skid surface PSV >70","PSKID",null,null,null,null,null,null,null,null,null,"BULLS_HIG",null,null,null,null,null,null,null,"Polyram L200","P200",null,null,null,null,"Road Science RS 4 Heavy Duty Plus","RSHP",null,null,null,"City Care Ltd","CCL",null,null,null,null,"Stabilisation Inlay (Rip & Remake)"]
[null,null,"Racked in Seal","RACK",null,null,null,null,null,null,null,null,null,"CAMPION ROAD",null,null,null,null,null,null,null,"Polyram 3747","P374",null,null,null,null,"Road Science RS 1 Improved Seal","RSL1",null,null,null,"Currie Electrical Ltd.","CEL",null,null,null,null,"T10 treatments"]
[null,null,"Red Chip Seal (McCullum)","RCHIP",null,null,null,null,null,null,null,null,null,"CASS RIVER",null,null,null,null,null,null,null,"Redicote Z","RDIZ",null,null,null,null,"Road Science RS 1 Improved Seal Plus","RSL2",null,null,null,"Company-X Ltd.","CL",null,null,null,null,"Unfunded rework"]
[null,null,"Rejuvenation seal over Asphalt","REJAC",null,null,null,null,null,null,null,null,null,"COOKS ROAD",null,null,null,null,null,null,null,"Rivertex","RIVR",null,null,null,null,"Road Science RS 1 Improved Seal Extreme","RSL3",null,null,null,"Critchlow Limited","CL2",null,null,null,null,"Unfunded third party work"]
[null,null,"Rejuvenation seal over chipsea","REJCS",null,null,null,null,null,null,null,null,null,"CORBETT ROAD",null,null,null,null,null,null,null,"Synthecol 520","S520",null,null,null,null,"Road Science RS 3 Porous Asphalt","RSPA",null,null,null,"Coastline Markers Ltd","CML",null,null,null,null,"Walking facilities"]
[null,null,"Slurry Seal","SLRY",null,null,null,null,null,null,null,null,null,"COUTTS ISL",null,null,null,null,null,null,null,"Synthecol CC 519 A","SCOL",null,null,null,null,"Road Science RS 3 Quiet Road","RSQR",null,null,null,"CoreLogic NZ Ltd.","CNL"]
[null,null,"Stone Mastic Asphalt","SMA",null,null,null,null,null,null,null,null,null,"CRAWFORD PIT",null,null,null,null,null,null,null,"Shell Tenicon A","SHTA",null,null,null,null,"Road Science RS 1 Superior Seal","RSS1",null,null,null,"Central Otago District Council","COD"]
[null,null,"Texturising Seal","TEXT",null,null,null,null,null,null,null,null,null,"DANNEVIRKE",null,null,null,null,null,null,null,"Tomah 3000","TAA3",null,null,null,null,"Road Science RS 1 Superior Seal Plus","RSS2",null,null,null,"Other Contractor","CON"]
[null,null,"Ultra Thin Asphalt","UTA",null,null,null,null,null,null,null,null,null,"DAVIES",null,null,null,null,null,null,null,"Wetfix BE","WTBE",null,null,null,null,"Road Science RS 1 Superior Seal Extreme","RSS3",null,null,null,"CSL Traffic","CSL"]
[null,null,"Void fill seal","VFILL",null,null,null,null,null,null,null,null,null,"DESERT ROAD",null,null,null,null,null,null,null,"Wetfix C","WTFX",null,null,null,null,"Road Science RS 4 Spill Resistant","RSSP",null,null,null,"Connell Wagner Ltd","CWL"]
[null,null,null,null,null,null,null,null,null,null,null,null,null,"DOUGHERTYS",null,null,null,null,null,null,null,null,null,null,null,null,null,"Road Science RS 3 Ultra Thin","RSUT",null,null,null,"Dunedin City Council","DCC"]
[null,null,null,null,null,null,null,null,null,null,null,null,null,"DRURY/STEV",null,null,null,null,null,null,null,null,null,null,null,null,null,"Styrene Butadiene Rubber","SBR",null,null,null,"D & L Crowe Ltd","DLC"]
[null,null,null,null,null,null,null,null,null,null,null,null,null,"EARNSCLEUGH",null,null,null,null,null,null,null,null,null,null,null,null,null,"Styrene Butadiene Styrene","SBS",null,null,null,"Spiire NZ Ltd","DWK"]
[null,null,null,null,null,null,null,null,null,null,null,null,null,"EX TOKAANU",null,null,null,null,null,null,null,null,null,null,null,null,null,"Styrene Isoprene Styrene","SIS",null,null,null,"Excell Corporation","ECL"]
[null,null,null,null,null,null,null,null,null,null,null,null,null,"EXPOSED EXISTING",null,null,null,null,null,null,null,null,null,null,null,null,null,"PAVEflex SBS High Modified 180/200 Cutback","SXH",null,null,null,"Ferguson Ind","FGI"]
[null,null,null,null,null,null,null,null,null,null,null,null,null,"FALCONERS",null,null,null,null,null,null,null,null,null,null,null,null,null,"PAVEflex SBS Low Modified 180/200 Cutback","SXL",null,null,null,"Fulton Hogan (NZ) Ltd.","FUL"]
[null,null,null,null,null,null,null,null,null,null,null,null,null,"FERNIEHURST",null,null,null,null,null,null,null,null,null,null,null,null,null,"PAVEflex SBS Medium Modified 180/200 Cutback","SXM",null,null,null,"Gisborne District Council","GDC"]
[null,null,null,null,null,null,null,null,null,null,null,null,null,"FLAXMORE",null,null,null,null,null,null,null,null,null,null,null,null,null,"Techniflex PM Emuls","TMEH",null,null,null,"Geosolve Ltd","GEO"]
[null,null,null,null,null,null,null,null,null,null,null,null,null,"FRASER",null,null,null,null,null,null,null,null,null,null,null,null,null,null,null,null,null,null,"GHD Ltd.","GHD"]
[null,null,null,null,null,null,null,null,null,null,null,null,null,"FRASR-ASHBRTN BLEND",null,null,null,null,null,null,null,null,null,null,null,null,null,null,null,null,null,null,"HEB Construction Ltd","HEB"]
[null,null,null,null,null,null,null,null,null,null,null,null,null,"GLADSTONE",null,null,null,null,null,null,null,null,null,null,null,null,null,null,null,null,null,null,"Higgins Contractors Ltd.","HIG"]
[null,null,null,null,null,null,null,null,null,null,null,null,null,"GLENBROOK",null,null,null,null,null,null,null,null,null,null,null,null,null,null,null,null,null,null,"HMI Technologies","HMI"]
[null,null,null,null,null,null,null,null,null,null,null,null,null,"GORE",null,null,null,null,null,null,null,null,null,null,null,null,null,null,null,null,null,null,"HERE New Zealand Ltd","HNZ"]
[null,null,null,null,null,null,null,null,null,null,null,null,null,"GREENHILLS",null,null,null,null,null,null,null,null,null,null,null,null,null,null,null,null,null,null,"HTS Group","HTS"]
[null,null,null,null,null,null,null,null,null,null,null,null,null,"HALLIWELLS",null,null,null,null,null,null,null,null,null,null,null,null,null,null,null,null,null,null,"Inframix Construction Ltd","IMX"]
[null,null,null,null,null,null,null,null,null,null,null,null,null,"HALLS_RD",null,null,null,null,null,null,null,null,null,null,null,null,null,null,null,null,null,null,"Inzone","INZ"]
[null,null,null,null,null,null,null,null,null,null,null,null,null,"HAPUKU RIVER",null,null,null,null,null,null,null,null,null,null,null,null,null,null,null,null,null,null,"Isaac Construction","ISC"]
[null,null,null,null,null,null,null,null,null,null,null,null,null,"HARTSTONES",null,null,null,null,null,null,null,null,null,null,null,null,null,null,null,null,null,null,"Island Asphalts","ISL"]
[null,null,null,null,null,null,null,null,null,null,null,null,null,"HILDERTHORPE",null,null,null,null,null,null,null,null,null,null,null,null,null,null,null,null,null,null,"ITS","ITS"]
[null,null,null,null,null,null,null,null,null,null,null,null,null,"HOGGS_RD",null,null,null,null,null,null,null,null,null,null,null,null,null,null,null,null,null,null,"Jacobs New Zealand Ltd","JAC"]
[null,null,null,null,null,null,null,null,null,null,null,null,null,"HONGEAKA Q",null,null,null,null,null,null,null,null,null,null,null,null,null,null,null,null,null,null,"JCW Consultant","JC"]
[null,null,null,null,null,null,null,null,null,null,null,null,null,"HOROKIWI QUARRIES",null,null,null,null,null,null,null,null,null,null,null,null,null,null,null,null,null,null,"JCL Asphalt subcontractor","JCL"]
[null,null,null,null,null,null,null,null,null,null,null,null,null,"HUANGARUA PONATAHI",null,null,null,null,null,null,null,null,null,null,null,null,null,null,null,null,null,null,"JJ Walters","JJW"]
[null,null,null,null,null,null,null,null,null,null,null,null,null,"HUNTLY QUA",null,null,null,null,null,null,null,null,null,null,null,null,null,null,null,null,null,null,"Johnstone & Masters Ltd","JM"]
[null,null,null,null,null,null,null,null,null,null,null,null,null,"HUNUA/WINST",null,null,null,null,null,null,null,null,null,null,null,null,null,null,null,null,null,null,"NZTA (JTOC)","JTO"]
[null,null,null,null,null,null,null,null,null,null,null,null,null,"HURUNUI RIVER SH7",null,null,null,null,null,null,null,null,null,null,null,null,null,null,null,null,null,null,"Juno Services Ltd","JUN"]
[null,null,null,null,null,null,null,null,null,null,null,null,null,"HYNDMANS",null,null,null,null,null,null,null,null,null,null,null,null,null,null,null,null,null,null,"Kapiti Coast District Council","KCD"]
[null,null,null,null,null,null,null,null,null,null,null,null,null,"INGLEWOOD",null,null,null,null,null,null,null,null,null,null,null,null,null,null,null,null,null,null,"Kampung Consulting Ltd.","KCL"]
[null,null,null,null,null,null,null,null,null,null,null,null,null,"ISLAND BLOCK",null,null,null,null,null,null,null,null,null,null,null,null,null,null,null,null,null,null,"Kelcroft Engineering","KEL"]
[null,null,null,null,null,null,null,null,null,null,null,null,null,"JOHNSONS",null,null,null,null,null,null,null,null,null,null,null,null,null,null,null,null,null,null,"Local Authority","LA"]
[null,null,null,null,null,null,null,null,null,null,null,null,null,"KAIK RD",null,null,null,null,null,null,null,null,null,null,null,null,null,null,null,null,null,null,"Lonrix Ltd","LL"]
[null,null,null,null,null,null,null,null,null,null,null,null,null,"KAIPARA",null,null,null,null,null,null,null,null,null,null,null,null,null,null,null,null,null,null,"McKays Consultants","MCC"]
[null,null,null,null,null,null,null,null,null,null,null,null,null,"KAKANUI",null,null,null,null,null,null,null,null,null,null,null,null,null,null,null,null,null,null,"Matamata-Piako District Council","MD2"]
[null,null,null,null,null,null,null,null,null,null,null,null,null,"KAKARIKI_HIG",null,null,null,null,null,null,null,null,null,null,null,null,null,null,null,null,null,null,"Manawatu District Council","MDC"]
[null,null,null,null,null,null,null,null,null,null,null,null,null,"KARAKATUWHERO RIVER",null,null,null,null,null,null,null,null,null,null,null,null,null,null,null,null,null,null,"McKay Electrical Ltd","MEL"]
[null,null,null,null,null,null,null,null,null,null,null,null,null,"KATIKATI",null,null,null,null,null,null,null,null,null,null,null,null,null,null,null,null,null,null,"Aecom NZ Ltd","MER"]
[null,null,null,null,null,null,null,null,null,null,null,null,null,"KB QUARRIES",null,null,null,null,null,null,null,null,null,null,null,null,null,null,null,null,null,null,"MetService","MET"]
[null,null,null,null,null,null,null,null,null,null,null,null,null,"KCEC",null,null,null,null,null,null,null,null,null,null,null,null,null,null,null,null,null,null,"Marlborough NOC JV","MJV"]
[null,null,null,null,null,null,null,null,null,null,null,null,null,"KIWI POINT QUARRY",null,null,null,null,null,null,null,null,null,null,null,null,null,null,null,null,null,null,"McKay Ltd.","ML"]
[null,null,null,null,null,null,null,null,null,null,null,null,null,"KOWAI RIVER",null,null,null,null,null,null,null,null,null,null,null,null,null,null,null,null,null,null,"Marlborough Roads","MR"]
[null,null,null,null,null,null,null,null,null,null,null,null,null,"KOWAI RIVER #2",null,null,null,null,null,null,null,null,null,null,null,null,null,null,null,null,null,null,"MWH NZ Ltd.","MWH"]
[null,null,null,null,null,null,null,null,null,null,null,null,null,"KOWHAI RIVER",null,null,null,null,null,null,null,null,null,null,null,null,null,null,null,null,null,null,"Napier City Council","NCC"]
[null,null,null,null,null,null,null,null,null,null,null,null,null,"KYEBURN",null,null,null,null,null,null,null,null,null,null,null,null,null,null,null,null,null,null,"NZ Transport Agency - Highway Programme","NTA"]
[null,null,null,null,null,null,null,null,null,null,null,null,null,"LARMERS ROAD",null,null,null,null,null,null,null,null,null,null,null,null,null,null,null,null,null,null,"NZ Transport Agency - Funding","NTF"]
[null,null,null,null,null,null,null,null,null,null,null,null,null,"LAWS ROAD",null,null,null,null,null,null,null,null,null,null,null,null,null,null,null,null,null,null,"North Power","NTH"]
[null,null,null,null,null,null,null,null,null,null,null,null,null,"LEVELS PIT",null,null,null,null,null,null,null,null,null,null,null,null,null,null,null,null,null,null,"Nutech Security","NUT"]
[null,null,null,null,null,null,null,null,null,null,null,null,null,"LINTON",null,null,null,null,null,null,null,null,null,null,null,null,null,null,null,null,null,null,"Odyssey Energy (2009) Ltd.","OE("]
[null,null,null,null,null,null,null,null,null,null,null,null,null,"LOGAN PT",null,null,null,null,null,null,null,null,null,null,null,null,null,null,null,null,null,null,"Opus International Consultants Ltd (NZ)","OI2"]
[null,null,null,null,null,null,null,null,null,null,null,null,null,"LONGBURN",null,null,null,null,null,null,null,null,null,null,null,null,null,null,null,null,null,null,"Opus International Consultants Ltd.","OIC"]
[null,null,null,null,null,null,null,null,null,null,null,null,null,"LOWBURN",null,null,null,null,null,null,null,null,null,null,null,null,null,null,null,null,null,null,"Oldfields","OLD"]
[null,null,null,null,null,null,null,null,null,null,null,null,null,"LWR GLENN RD",null,null,null,null,null,null,null,null,null,null,null,null,null,null,null,null,null,null,"Porirua City Council","PCC"]
[null,null,null,null,null,null,null,null,null,null,null,null,null,"MANGAMAIRE",null,null,null,null,null,null,null,null,null,null,null,null,null,null,null,null,null,null,"Pinnacles Civil Group Ltd.","PCG"]
[null,null,null,null,null,null,null,null,null,null,null,null,null,"MANGATAWHIRI",null,null,null,null,null,null,null,null,null,null,null,null,null,null,null,null,null,null,"Pope Electrical Ltd","PE2"]
[null,null,null,null,null,null,null,null,null,null,null,null,null,"MANUNUI",null,null,null,null,null,null,null,null,null,null,null,null,null,null,null,null,null,null,"Pope Electrical Limited","PEL"]
[null,null,null,null,null,null,null,null,null,null,null,null,null,"MATAKANA",null,null,null,null,null,null,null,null,null,null,null,null,null,null,null,null,null,null,"Pavement Management Services","PMS"]
[null,null,null,null,null,null,null,null,null,null,null,null,null,"MATAMATA",null,null,null,null,null,null,null,null,null,null,null,null,null,null,null,null,null,null,"Power Solutions Ltd","PSL"]
[null,null,null,null,null,null,null,null,null,null,null,null,null,"MATATOKI",null,null,null,null,null,null,null,null,null,null,null,null,null,null,null,null,null,null,"Queenstown-Lakes District Council","QDC"]
[null,null,null,null,null,null,null,null,null,null,null,null,null,"MATAURA",null,null,null,null,null,null,null,null,null,null,null,null,null,null,null,null,null,null,"Quality Roading and Services","QRS"]
[null,null,null,null,null,null,null,null,null,null,null,null,null,"MATAURA - G",null,null,null,null,null,null,null,null,null,null,null,null,null,null,null,null,null,null,"Read-only access for Tenderers","RAF"]
[null,null,null,null,null,null,null,null,null,null,null,null,null,"MATAURA - R",null,null,null,null,null,null,null,null,null,null,null,null,null,null,null,null,null,null,"Rangitikei District Council","RDC"]
[null,null,null,null,null,null,null,null,null,null,null,null,null,"MATAWAI",null,null,null,null,null,null,null,null,null,null,null,null,null,null,null,null,null,null,"Roadex","RDX"]
[null,null,null,null,null,null,null,null,null,null,null,null,null,"MCARTHURS RD",null,null,null,null,null,null,null,null,null,null,null,null,null,null,null,null,null,null,"Roading Logistics Ltd","RLL"]
[null,null,null,null,null,null,null,null,null,null,null,null,null,"MCBETH",null,null,null,null,null,null,null,null,null,null,null,null,null,null,null,null,null,null,"Rationale Ltd","RLT"]
[null,null,null,null,null,null,null,null,null,null,null,null,null,"MCCALLUMS",null,null,null,null,null,null,null,null,null,null,null,null,null,null,null,null,null,null,"Rotorua District Council","ROT"]
[null,null,null,null,null,null,null,null,null,null,null,null,null,"MCCLOUDS",null,null,null,null,null,null,null,null,null,null,null,null,null,null,null,null,null,null,"RAMM Software Limited","RSL"]
[null,null,null,null,null,null,null,null,null,null,null,null,null,"MCGREGORS",null,null,null,null,null,null,null,null,null,null,null,null,null,null,null,null,null,null,"Road Signs & Traffic Control Equipment Limited","RTL"]
[null,null,null,null,null,null,null,null,null,null,null,null,null,"MCLEANS ISLAND",null,null,null,null,null,null,null,null,null,null,null,null,null,null,null,null,null,null,"Russell Roads","RUS"]
[null,null,null,null,null,null,null,null,null,null,null,null,null,"MEREMERE",null,null,null,null,null,null,null,null,null,null,null,null,null,null,null,null,null,null,"Salient Consultants","SAL"]
[null,null,null,null,null,null,null,null,null,null,null,null,null,"MILFORD - DWB",null,null,null,null,null,null,null,null,null,null,null,null,null,null,null,null,null,null,"Sealcoat Central Ltd.","SCL"]
[null,null,null,null,null,null,null,null,null,null,null,null,null,"MILLBROOK PAKIRI",null,null,null,null,null,null,null,null,null,null,null,null,null,null,null,null,null,null,"Shaw's Consulting Services Ltd","SCS"]
[null,null,null,null,null,null,null,null,null,null,null,null,null,"MILLBROOK WAIPU",null,null,null,null,null,null,null,null,null,null,null,null,null,null,null,null,null,null,"Southland District Council","SDC"]
[null,null,null,null,null,null,null,null,null,null,null,null,null,"MINERS RD",null,null,null,null,null,null,null,null,null,null,null,null,null,null,null,null,null,null,"Signopsys Electronic Signs","SES"]
[null,null,null,null,null,null,null,null,null,null,null,null,null,"MOHAKA - SH2",null,null,null,null,null,null,null,null,null,null,null,null,null,null,null,null,null,null,"Sicon Ltd.","SL2"]
[null,null,null,null,null,null,null,null,null,null,null,null,null,"MOHAKA AGG",null,null,null,null,null,null,null,null,null,null,null,null,null,null,null,null,null,null,"Stantec New Zealand","SN2"]
[null,null,null,null,null,null,null,null,null,null,null,null,null,"MOHARA",null,null,null,null,null,null,null,null,null,null,null,null,null,null,null,null,null,null,"Stantec New Zealand Ltd","SNZ"]
[null,null,null,null,null,null,null,null,null,null,null,null,null,"MOTU",null,null,null,null,null,null,null,null,null,null,null,null,null,null,null,null,null,null,"SouthRoads Ltd.","SOU"]
[null,null,null,null,null,null,null,null,null,null,null,null,null,"MOTUEKA RIVER",null,null,null,null,null,null,null,null,null,null,null,null,null,null,null,null,null,null,"Safe Roads Alliance","SRA"]
[null,null,null,null,null,null,null,null,null,null,null,null,null,"MOUTOHORA RIVER",null,null,null,null,null,null,null,null,null,null,null,null,null,null,null,null,null,null,"Services South East (NZ) Ltd.","SS2"]
[null,null,null,null,null,null,null,null,null,null,null,null,null,"MT HERBERT",null,null,null,null,null,null,null,null,null,null,null,null,null,null,null,null,null,null,"Services South East Pty Ltd","SSE"]
[null,null,null,null,null,null,null,null,null,null,null,null,null,"MURCHISON",null,null,null,null,null,null,null,null,null,null,null,null,null,null,null,null,null,null,"Tonkin & Taylor Ltd","T&T"]
[null,null,null,null,null,null,null,null,null,null,null,null,null,"MUTTONTOWN",null,null,null,null,null,null,null,null,null,null,null,null,null,null,null,null,null,null,"Tasman Howey","TAS"]
[null,null,null,null,null,null,null,null,null,null,null,null,null,"NGARUAWAHIA",null,null,null,null,null,null,null,null,null,null,null,null,null,null,null,null,null,null,"NZTA and WDM","TAW"]
[null,null,null,null,null,null,null,null,null,null,null,null,null,"NGARURONO",null,null,null,null,null,null,null,null,null,null,null,null,null,null,null,null,null,null,"Tauranga City Council","TC2"]
[null,null,null,null,null,null,null,null,null,null,null,null,null,"NGARURORO",null,null,null,null,null,null,null,null,null,null,null,null,null,null,null,null,null,null,"Taranaki Civil Construction","TCC"]
[null,null,null,null,null,null,null,null,null,null,null,null,null,"NIREMU RD",null,null,null,null,null,null,null,null,null,null,null,null,null,null,null,null,null,null,"TC Nicholls","TCN"]
[null,null,null,null,null,null,null,null,null,null,null,null,null,"OHAU A",null,null,null,null,null,null,null,null,null,null,null,null,null,null,null,null,null,null,"Traffic Control Systems","TCS"]
[null,null,null,null,null,null,null,null,null,null,null,null,null,"OKETE",null,null,null,null,null,null,null,null,null,null,null,null,null,null,null,null,null,null,"Taupo District Council","TD2"]
[null,null,null,null,null,null,null,null,null,null,null,null,null,"OMARAMA",null,null,null,null,null,null,null,null,null,null,null,null,null,null,null,null,null,null,"Tasman District Council","TDC"]
[null,null,null,null,null,null,null,null,null,null,null,null,null,"OPIHI RIVER",null,null,null,null,null,null,null,null,null,null,null,null,null,null,null,null,null,null,"The Datastack Ltd","TDL"]
[null,null,null,null,null,null,null,null,null,null,null,null,null,"ORARI RIVER",null,null,null,null,null,null,null,null,null,null,null,null,null,null,null,null,null,null,"Taupo East Traffic Services Contractor","TET"]
[null,null,null,null,null,null,null,null,null,null,null,null,null,"ORETI",null,null,null,null,null,null,null,null,null,null,null,null,null,null,null,null,null,null,"Broadspectrum (NZ) Ltd","TFD"]
[null,null,null,null,null,null,null,null,null,null,null,null,null,"ORETI - LOW",null,null,null,null,null,null,null,null,null,null,null,null,null,null,null,null,null,null,"Waka Kotahi NZ Transport Agency","TNZ"]
[null,null,null,null,null,null,null,null,null,null,null,null,null,"ORETI - LUMS",null,null,null,null,null,null,null,null,null,null,null,null,null,null,null,null,null,null,"Top Energy","TOP"]
[null,null,null,null,null,null,null,null,null,null,null,null,null,"ORETI - MID",null,null,null,null,null,null,null,null,null,null,null,null,null,null,null,null,null,null,"The Roading Company","TRC"]
[null,null,null,null,null,null,null,null,null,null,null,null,null,"ORETI - MOSS",null,null,null,null,null,null,null,null,null,null,null,null,null,null,null,null,null,null,"Transfield Services (NZ) Ltd","TS("]
[null,null,null,null,null,null,null,null,null,null,null,null,null,"ORETI - WINT",null,null,null,null,null,null,null,null,null,null,null,null,null,null,null,null,null,null,"Tonkin and Taylor Ltd","TT"]
[null,null,null,null,null,null,null,null,null,null,null,null,null,"ORETI-B",null,null,null,null,null,null,null,null,null,null,null,null,null,null,null,null,null,null,"Tyco Traffic and Transportation","TYC"]
[null,null,null,null,null,null,null,null,null,null,null,null,null,"ORINGI #1",null,null,null,null,null,null,null,null,null,null,null,null,null,null,null,null,null,null,"Urban Connection Ltd","UCL"]
[null,null,null,null,null,null,null,null,null,null,null,null,null,"ORINGI #2",null,null,null,null,null,null,null,null,null,null,null,null,null,null,null,null,null,null,"University of Canterbury","UOC"]
[null,null,null,null,null,null,null,null,null,null,null,null,null,"ORINGI #3",null,null,null,null,null,null,null,null,null,null,null,null,null,null,null,null,null,null,"Ventia Pty Ltd","VPL"]
[null,null,null,null,null,null,null,null,null,null,null,null,null,"ORUAKERETAKI",null,null,null,null,null,null,null,null,null,null,null,null,null,null,null,null,null,null,"Western Bay of Plenty District Council","WBO"]
[null,null,null,null,null,null,null,null,null,null,null,null,null,"OSTERNS",null,null,null,null,null,null,null,null,null,null,null,null,null,null,null,null,null,null,"Wellington City Council","WCC"]
[null,null,null,null,null,null,null,null,null,null,null,null,null,"OTAIKA",null,null,null,null,null,null,null,null,null,null,null,null,null,null,null,null,null,null,"Waimakariri District Council","WD2"]
[null,null,null,null,null,null,null,null,null,null,null,null,null,"OTAIO RIVER",null,null,null,null,null,null,null,null,null,null,null,null,null,null,null,null,null,null,"Whakatane District Council","WD3"]
[null,null,null,null,null,null,null,null,null,null,null,null,null,"OTAKI",null,null,null,null,null,null,null,null,null,null,null,null,null,null,null,null,null,null,"Wairoa District Council","WD4"]
[null,null,null,null,null,null,null,null,null,null,null,null,null,"OTOROHANGA",null,null,null,null,null,null,null,null,null,null,null,null,null,null,null,null,null,null,"Waipa District Council","WD5"]
[null,null,null,null,null,null,null,null,null,null,null,null,null,"OTUREHUA",null,null,null,null,null,null,null,null,null,null,null,null,null,null,null,null,null,null,"Waikato District Council","WD6"]
[null,null,null,null,null,null,null,null,null,null,null,null,null,"PACIFIC STEEL",null,null,null,null,null,null,null,null,null,null,null,null,null,null,null,null,null,null,"Whangarei District Council","WDC"]
[null,null,null,null,null,null,null,null,null,null,null,null,null,"PAHIATUA",null,null,null,null,null,null,null,null,null,null,null,null,null,null,null,null,null,null,"WDM","WDM"]
[null,null,null,null,null,null,null,null,null,null,null,null,null,"PANGATOTARA",null,null,null,null,null,null,null,null,null,null,null,null,null,null,null,null,null,null,"WSP-Opus International Consultants Ltd","WIC"]
[null,null,null,null,null,null,null,null,null,null,null,null,null,"PAREORA SH1",null,null,null,null,null,null,null,null,null,null,null,null,null,null,null,null,null,null,"Downer New Zealand Limited","WIL"]
[null,null,null,null,null,null,null,null,null,null,null,null,null,"PARKBURN_DNZ",null,null,null,null,null,null,null,null,null,null,null,null,null,null,null,null,null,null,"W J Ashton Service Ltd","WJA"]
[null,null,null,null,null,null,null,null,null,null,null,null,null,"PARKBURN_FUL",null,null,null,null,null,null,null,null,null,null,null,null,null,null,null,null,null,null,"Waka Kotahi NZ Transport Agency - Highways","WK2"]
[null,null,null,null,null,null,null,null,null,null,null,null,null,"PATUTAHI",null,null,null,null,null,null,null,null,null,null,null,null,null,null,null,null,null,null,"Waka Kotahi NZ Transport Agency","WKN"]
[null,null,null,null,null,null,null,null,null,null,null,null,null,"PEACOCKS",null,null,null,null,null,null,null,null,null,null,null,null,null,null,null,null,null,null,"WSP New Zealand Ltd","WNZ"]
[null,null,null,null,null,null,null,null,null,null,null,null,null,"PELORUS RIVER"]
[null,null,null,null,null,null,null,null,null,null,null,null,null,"PIOPIO"]
[null,null,null,null,null,null,null,null,null,null,null,null,null,"PIROA"]
[null,null,null,null,null,null,null,null,null,null,null,null,null,"POIHIPI"]
[null,null,null,null,null,null,null,null,null,null,null,null,null,"POPLAR LANE"]
[null,null,null,null,null,null,null,null,null,null,null,null,null,"POUND RD"]
[null,null,null,null,null,null,null,null,null,null,null,null,null,"PUHIPUHI"]
[null,null,null,null,null,null,null,null,null,null,null,null,null,"PUHUNUI"]
[null,null,null,null,null,null,null,null,null,null,null,null,null,"PUKEHOU"]
[null,null,null,null,null,null,null,null,null,null,null,null,null,"PUKEKAWA"]
[null,null,null,null,null,null,null,null,null,null,null,null,null,"PUKEPOTO"]
[null,null,null,null,null,null,null,null,null,null,null,null,null,"PUKETAPU"]
[null,null,null,null,null,null,null,null,null,null,null,null,null,"PUKETONA"]
[null,null,null,null,null,null,null,null,null,null,null,null,null,"PUKINUI"]
[null,null,null,null,null,null,null,null,null,null,null,null,null,"RAINBOW MOUNTAIN"]
[null,null,null,null,null,null,null,null,null,null,null,null,null,"RAKAIA MCKAYS"]
[null,null,null,null,null,null,null,null,null,null,null,null,null,"RAKAIA SOMERTON"]
[null,null,null,null,null,null,null,null,null,null,null,null,null,"RANGITIKEI"]
[null,null,null,null,null,null,null,null,null,null,null,null,null,"RANGRRBULL"]
[null,null,null,null,null,null,null,null,null,null,null,null,null,"RECYCLED EXISTING"]
[null,null,null,null,null,null,null,null,null,null,null,null,null,"REIDS ROAD"]
[null,null,null,null,null,null,null,null,null,null,null,null,null,"RENWICK"]
[null,null,null,null,null,null,null,null,null,null,null,null,null,"RIDGE ROAD"]
[null,null,null,null,null,null,null,null,null,null,null,null,null,"ROXBURGH"]
[null,null,null,null,null,null,null,null,null,null,null,null,null,"RUAMAHANGA RIVER"]
[null,null,null,null,null,null,null,null,null,null,null,null,null,"SADDLE HILL"]
[null,null,null,null,null,null,null,null,null,null,null,null,null,"SANDFORD"]
[null,null,null,null,null,null,null,null,null,null,null,null,null,"SELWYN RIVER"]
[null,null,null,null,null,null,null,null,null,null,null,null,null,"SIDDS RD"]
[null,null,null,null,null,null,null,null,null,null,null,null,null,"SMYTHES"]
[null,null,null,null,null,null,null,null,null,null,null,null,null,"SNEE ROAD"]
[null,null,null,null,null,null,null,null,null,null,null,null,null,"SPIERS"]
[null,null,null,null,null,null,null,null,null,null,null,null,null,"STAPLES"]
[null,null,null,null,null,null,null,null,null,null,null,null,null,"T NICHOLS"]
[null,null,null,null,null,null,null,null,null,null,null,null,null,"TAHUNA"]
[null,null,null,null,null,null,null,null,null,null,null,null,null,"TAIRUA"]
[null,null,null,null,null,null,null,null,null,null,null,null,null,"TAMAKI RIVER"]
[null,null,null,null,null,null,null,null,null,null,null,null,null,"TAOTAOROA"]
[null,null,null,null,null,null,null,null,null,null,null,null,null,"TAPUWAE QUARRY"]
[null,null,null,null,null,null,null,null,null,null,null,null,null,"TARAMAKAU RIVER"]
[null,null,null,null,null,null,null,null,null,null,null,null,null,"TAUHARA"]
[null,null,null,null,null,null,null,null,null,null,null,null,null,"TAUHEI"]
[null,null,null,null,null,null,null,null,null,null,null,null,null,"TAUHERENIK"]
[null,null,null,null,null,null,null,null,null,null,null,null,null,"TAUHERENIKAU SH53"]
[null,null,null,null,null,null,null,null,null,null,null,null,null,"TAUMARANUI"]
[null,null,null,null,null,null,null,null,null,null,null,null,null,"TE KUITI"]
[null,null,null,null,null,null,null,null,null,null,null,null,null,"TE MATA"]
[null,null,null,null,null,null,null,null,null,null,null,null,null,"TE MATAI"]
[null,null,null,null,null,null,null,null,null,null,null,null,null,"TE MOANA RIVER"]
[null,null,null,null,null,null,null,null,null,null,null,null,null,"TE RANGIITA"]
[null,null,null,null,null,null,null,null,null,null,null,null,null,"TE RANGITA"]
[null,null,null,null,null,null,null,null,null,null,null,null,null,"TE RIMU"]
[null,null,null,null,null,null,null,null,null,null,null,null,null,"TEKUITIM/S"]
[null,null,null,null,null,null,null,null,null,null,null,null,null,"TEMPLETONS"]
[null,null,null,null,null,null,null,null,null,null,null,null,null,"TETLEYS"]
[null,null,null,null,null,null,null,null,null,null,null,null,null,"TIROHIA"]
[null,null,null,null,null,null,null,null,null,null,null,null,null,"TITOKI"]
[null,null,null,null,null,null,null,null,null,null,null,null,null,"TOETOE"]
[null,null,null,null,null,null,null,null,null,null,null,null,null,"TURIWIRI"]
[null,null,null,null,null,null,null,null,null,null,null,null,null,"TWIZEL"]
[null,null,null,null,null,null,null,null,null,null,null,null,null,"WAERENGA"]
[null,null,null,null,null,null,null,null,null,null,null,null,null,"WAI BIT"]
[null,null,null,null,null,null,null,null,null,null,null,null,null,"WAIAPU RIVER"]
[null,null,null,null,null,null,null,null,null,null,null,null,null,"WAIAU"]
[null,null,null,null,null,null,null,null,null,null,null,null,null,"WAIAU RIVER"]
[null,null,null,null,null,null,null,null,null,null,null,null,null,"WAIAU RIVER LOCHIEL"]
[null,null,null,null,null,null,null,null,null,null,null,null,null,"WAIAU-CLIF"]
[null,null,null,null,null,null,null,null,null,null,null,null,null,"WAIKANAE RIVER"]
[null,null,null,null,null,null,null,null,null,null,null,null,null,"WAIMAKARIRI RIVER"]
[null,null,null,null,null,null,null,null,null,null,null,null,null,"WAIMEA RIVER"]
[null,null,null,null,null,null,null,null,null,null,null,null,null,"WAINGAWA"]
[null,null,null,null,null,null,null,null,null,null,null,null,null,"WAIOEKA"]
[null,null,null,null,null,null,null,null,null,null,null,null,null,"WAIOHINE RIVER"]
[null,null,null,null,null,null,null,null,null,null,null,null,null,"WAIPA METAL"]
[null,null,null,null,null,null,null,null,null,null,null,null,null,"WAIPARA RIVER"]
[null,null,null,null,null,null,null,null,null,null,null,null,null,"WAIPAWA RIVER"]
[null,null,null,null,null,null,null,null,null,null,null,null,null,"WAIRATA"]
[null,null,null,null,null,null,null,null,null,null,null,null,null,"WAIROA RIVER"]
[null,null,null,null,null,null,null,null,null,null,null,null,null,"WAITAWHETA"]
[null,null,null,null,null,null,null,null,null,null,null,null,null,"WAITOMO DC"]
[null,null,null,null,null,null,null,null,null,null,null,null,null,"WAIWHAKAIHO"]
[null,null,null,null,null,null,null,null,null,null,null,null,null,"WAOTU"]
[null,null,null,null,null,null,null,null,null,null,null,null,null,"WATTS"]
[null,null,null,null,null,null,null,null,null,null,null,null,null,"WEDDINGS"]
[null,null,null,null,null,null,null,null,null,null,null,null,null,"WERI"]
[null,null,null,null,null,null,null,null,null,null,null,null,null,"WEST EWEBURN"]
[null,null,null,null,null,null,null,null,null,null,null,null,null,"WHANGAEHU RIVER"]
[null,null,null,null,null,null,null,null,null,null,null,null,null,"WHANGAMATA METAL"]
[null,null,null,null,null,null,null,null,null,null,null,null,null,"WHANGARIPO"]
[null,null,null,null,null,null,null,null,null,null,null,null,null,"WHEATSHEAF"]
[null,null,null,null,null,null,null,null,null,null,null,null,null,"WHITEHALL"]
[null,null,null,null,null,null,null,null,null,null,null,null,null,"WHITFORD QUARRY"]
[null,null,null,null,null,null,null,null,null,null,null,null,null,"WHITIANGA"]
[null,null,null,null,null,null,null,null,null,null,null,null,null,"WINDY POINT"]
[null,null,null,null,null,null,null,null,null,null,null,null,null,"WIREMU RD"]
[null,null,null,null,null,null,null,null,null,null,null,null,null,"WIREMU ROAD NORTH"]
[null,null,null,null,null,null,null,null,null,null,null,null,null,"WIREMU ROAD SOUTH"]
[null,null,null,null,null,null,null,null,null,null,null,null,null,"YORK QUARRY"]
[null,null,null,null,null,null,null,null,null,null,null,null,null,"YORK ROAD"]